{"text_format":"1","workbook":"xlsx","n_sheets":6,"sheets":["fatoura","كشف حساب","الاصناف","المبيعات","استعلام","اسماء الزبائن"],"not_rendered":{"charts":0,"images":0,"macros":1,"external_links":0,"defined_names":9,"comments":0,"pivot_tables":0},"unopened":[],"bounds":{"document_bytes":16777216,"sheet_cells":100000,"rows_first":2000,"rows_last":500,"rows_between":2000,"halvings":0,"cell_chars":16384,"cell_head_chars":4096},"cells_cut":0,"cells_raw":0,"read":"whole","date_system":"1900"}

{"sheet":"fatoura","index":0,"n_rows":543,"n_cols":10,"rows_kept":543,"cut":false,"hidden":false,"merged":[]}
[null,null,"f7:f20","b7:b20"]
[null,null,null,"الرقم",58,null,null,"دفعة","رقم الشيك","تاريخ الدفعة"]
[null,null,null,"التاريخ",null,{"$f":"SUM(F7:F500)","v":0},{"$f":"SUM(F7:F500)/2","v":0}]
[" السيد:"]
[]
["رقم","الوصف","عدد","الوحدة","السعر","مجموع سعر الوحدة"]
[null,"`",null,{"$f":"IF(A7<>0,VLOOKUP(fatoura!A7,v,4,FALSE),\"\")","v":""},"الرصيد:",0]
[null,"`",null,{"$f":"IF(A8<>0,VLOOKUP(fatoura!A8,v,4,FALSE),\"\")","v":""},null,{"$f":"IF(A8<>0,SUM(E8*C8),\"\")","v":""}]
[null,"`",null,{"$f":"IF(A9<>0,VLOOKUP(fatoura!A9,v,4,FALSE),\"\")","v":""},null,{"$f":"IF(A9<>0,SUM(E9*C9),\"\")","v":""}]
[null,{"$f":"IF(A10<>0,VLOOKUP(fatoura!A10,v,2,FALSE),\"\")","v":""},null,{"$f":"IF(A10<>0,VLOOKUP(fatoura!A10,v,4,FALSE),\"\")","v":""},null,{"$f":"IF(A10<>0,SUM(E10*C10),\"\")","v":""}]
[null,{"$f":"IF(A11<>0,VLOOKUP(fatoura!A11,v,2,FALSE),\"\")","v":""},null,{"$f":"IF(A11<>0,VLOOKUP(fatoura!A11,v,4,FALSE),\"\")","v":""},null,""]
[null,{"$f":"IF(A12<>0,VLOOKUP(fatoura!A12,v,2,FALSE),\"\")","v":""},null,{"$f":"IF(A12<>0,VLOOKUP(fatoura!A12,v,4,FALSE),\"\")","v":""},null,""]
[null,{"$f":"IF(A13<>0,VLOOKUP(fatoura!A13,v,2,FALSE),\"\")","v":""},null,{"$f":"IF(A13<>0,VLOOKUP(fatoura!A13,v,4,FALSE),\"\")","v":""},null,""]
[null,{"$f":"IF(A14<>0,VLOOKUP(fatoura!A14,v,2,FALSE),\"\")","v":""},null,{"$f":"IF(A14<>0,VLOOKUP(fatoura!A14,v,4,FALSE),\"\")","v":""},null,""]
[null,{"$f":"IF(A15<>0,VLOOKUP(fatoura!A15,v,2,FALSE),\"\")","v":""},null,{"$f":"IF(A15<>0,VLOOKUP(fatoura!A15,v,4,FALSE),\"\")","v":""},null,""]
[null,{"$f":"IF(A16<>0,VLOOKUP(fatoura!A16,v,2,FALSE),\"\")","v":""},null,{"$f":"IF(A16<>0,VLOOKUP(fatoura!A16,v,4,FALSE),\"\")","v":""},null,""]
[null,{"$f":"IF(A17<>0,VLOOKUP(fatoura!A17,v,2,FALSE),\"\")","v":""},null,{"$f":"IF(A17<>0,VLOOKUP(fatoura!A17,v,4,FALSE),\"\")","v":""},null,""]
[null,{"$f":"IF(A18<>0,VLOOKUP(fatoura!A18,v,2,FALSE),\"\")","v":""},null,{"$f":"IF(A18<>0,VLOOKUP(fatoura!A18,v,4,FALSE),\"\")","v":""},null,""]
[null,{"$f":"IF(A19<>0,VLOOKUP(fatoura!A19,v,2,FALSE),\"\")","v":""},null,{"$f":"IF(A19<>0,VLOOKUP(fatoura!A19,v,4,FALSE),\"\")","v":""},null,""]
[null,{"$f":"IF(A20<>0,VLOOKUP(fatoura!A20,v,2,FALSE),\"\")","v":""},null,{"$f":"IF(A20<>0,VLOOKUP(fatoura!A20,v,4,FALSE),\"\")","v":""},null,""]
[null,{"$f":"IF(A21<>0,VLOOKUP(fatoura!A21,v,2,FALSE),\"\")","v":""},null,{"$f":"IF(A21<>0,VLOOKUP(fatoura!A21,v,4,FALSE),\"\")","v":""},null,""]
[null,{"$f":"IF(A22<>0,VLOOKUP(fatoura!A22,v,2,FALSE),\"\")","v":""},null,{"$f":"IF(A22<>0,VLOOKUP(fatoura!A22,v,4,FALSE),\"\")","v":""},null,""]
[null,{"$f":"IF(A23<>0,VLOOKUP(fatoura!A23,v,2,FALSE),\"\")","v":""},null,{"$f":"IF(A23<>0,VLOOKUP(fatoura!A23,v,4,FALSE),\"\")","v":""},null,""]
[null,{"$f":"IF(A24<>0,VLOOKUP(fatoura!A24,v,2,FALSE),\"\")","v":""},null,{"$f":"IF(A24<>0,VLOOKUP(fatoura!A24,v,4,FALSE),\"\")","v":""},null,""]
[null,{"$f":"IF(A25<>0,VLOOKUP(fatoura!A25,v,2,FALSE),\"\")","v":""},null,{"$f":"IF(A25<>0,VLOOKUP(fatoura!A25,v,4,FALSE),\"\")","v":""},null,""]
[null,{"$f":"IF(A26<>0,VLOOKUP(fatoura!A26,v,2,FALSE),\"\")","v":""},null,{"$f":"IF(A26<>0,VLOOKUP(fatoura!A26,v,4,FALSE),\"\")","v":""},null,""]
[null,{"$f":"IF(A27<>0,VLOOKUP(fatoura!A27,v,2,FALSE),\"\")","v":""},null,{"$f":"IF(A27<>0,VLOOKUP(fatoura!A27,v,4,FALSE),\"\")","v":""},null,""]
[null,{"$f":"IF(A28<>0,VLOOKUP(fatoura!A28,v,2,FALSE),\"\")","v":""},null,{"$f":"IF(A28<>0,VLOOKUP(fatoura!A28,v,4,FALSE),\"\")","v":""},null,""]
[null,{"$f":"IF(A29<>0,VLOOKUP(fatoura!A29,v,2,FALSE),\"\")","v":""},null,{"$f":"IF(A29<>0,VLOOKUP(fatoura!A29,v,4,FALSE),\"\")","v":""},null,""]
[null,{"$f":"IF(A30<>0,VLOOKUP(fatoura!A30,v,2,FALSE),\"\")","v":""},null,{"$f":"IF(A30<>0,VLOOKUP(fatoura!A30,v,4,FALSE),\"\")","v":""},null,""]
[null,{"$f":"IF(A31<>0,VLOOKUP(fatoura!A31,v,2,FALSE),\"\")","v":""},null,{"$f":"IF(A31<>0,VLOOKUP(fatoura!A31,v,4,FALSE),\"\")","v":""},null,""]
[null,{"$f":"IF(A32<>0,VLOOKUP(fatoura!A32,v,2,FALSE),\"\")","v":""},null,{"$f":"IF(A32<>0,VLOOKUP(fatoura!A32,v,4,FALSE),\"\")","v":""},null,""]
[null,{"$f":"IF(A33<>0,VLOOKUP(fatoura!A33,v,2,FALSE),\"\")","v":""},null,{"$f":"IF(A33<>0,VLOOKUP(fatoura!A33,v,4,FALSE),\"\")","v":""},null,""]
[null,{"$f":"IF(A34<>0,VLOOKUP(fatoura!A34,v,2,FALSE),\"\")","v":""},null,{"$f":"IF(A34<>0,VLOOKUP(fatoura!A34,v,4,FALSE),\"\")","v":""},null,""]
[null,{"$f":"IF(A35<>0,VLOOKUP(fatoura!A35,v,2,FALSE),\"\")","v":""},null,{"$f":"IF(A35<>0,VLOOKUP(fatoura!A35,v,4,FALSE),\"\")","v":""},null,""]
[null,{"$f":"IF(A36<>0,VLOOKUP(fatoura!A36,v,2,FALSE),\"\")","v":""},null,{"$f":"IF(A36<>0,VLOOKUP(fatoura!A36,v,4,FALSE),\"\")","v":""},null,""]
[null,{"$f":"IF(A37<>0,VLOOKUP(fatoura!A37,v,2,FALSE),\"\")","v":""},null,{"$f":"IF(A37<>0,VLOOKUP(fatoura!A37,v,4,FALSE),\"\")","v":""},null,""]
[null,{"$f":"IF(A38<>0,VLOOKUP(fatoura!A38,v,2,FALSE),\"\")","v":""},null,{"$f":"IF(A38<>0,VLOOKUP(fatoura!A38,v,4,FALSE),\"\")","v":""},null,""]
[null,{"$f":"IF(A39<>0,VLOOKUP(fatoura!A39,v,2,FALSE),\"\")","v":""},null,{"$f":"IF(A39<>0,VLOOKUP(fatoura!A39,v,4,FALSE),\"\")","v":""},null,""]
[null,{"$f":"IF(A40<>0,VLOOKUP(fatoura!A40,v,2,FALSE),\"\")","v":""},null,{"$f":"IF(A40<>0,VLOOKUP(fatoura!A40,v,4,FALSE),\"\")","v":""},null,""]
[null,{"$f":"IF(A41<>0,VLOOKUP(fatoura!A41,v,2,FALSE),\"\")","v":""},null,{"$f":"IF(A41<>0,VLOOKUP(fatoura!A41,v,4,FALSE),\"\")","v":""},null,""]
[null,{"$f":"IF(A42<>0,VLOOKUP(fatoura!A42,v,2,FALSE),\"\")","v":""},null,{"$f":"IF(A42<>0,VLOOKUP(fatoura!A42,v,4,FALSE),\"\")","v":""},null,""]
[null,{"$f":"IF(A43<>0,VLOOKUP(fatoura!A43,v,2,FALSE),\"\")","v":""},null,{"$f":"IF(A43<>0,VLOOKUP(fatoura!A43,v,4,FALSE),\"\")","v":""},null,""]
[null,{"$f":"IF(A44<>0,VLOOKUP(fatoura!A44,v,2,FALSE),\"\")","v":""},null,{"$f":"IF(A44<>0,VLOOKUP(fatoura!A44,v,4,FALSE),\"\")","v":""},null,""]
[null,{"$f":"IF(A45<>0,VLOOKUP(fatoura!A45,v,2,FALSE),\"\")","v":""},null,{"$f":"IF(A45<>0,VLOOKUP(fatoura!A45,v,4,FALSE),\"\")","v":""},null,""]
[null,{"$f":"IF(A46<>0,VLOOKUP(fatoura!A46,v,2,FALSE),\"\")","v":""},null,{"$f":"IF(A46<>0,VLOOKUP(fatoura!A46,v,4,FALSE),\"\")","v":""},null,""]
[null,{"$f":"IF(A47<>0,VLOOKUP(fatoura!A47,v,2,FALSE),\"\")","v":""},null,{"$f":"IF(A47<>0,VLOOKUP(fatoura!A47,v,4,FALSE),\"\")","v":""},null,""]
[null,{"$f":"IF(A48<>0,VLOOKUP(fatoura!A48,v,2,FALSE),\"\")","v":""},null,{"$f":"IF(A48<>0,VLOOKUP(fatoura!A48,v,4,FALSE),\"\")","v":""},null,""]
[null,{"$f":"IF(A49<>0,VLOOKUP(fatoura!A49,v,2,FALSE),\"\")","v":""},null,{"$f":"IF(A49<>0,VLOOKUP(fatoura!A49,v,4,FALSE),\"\")","v":""},null,""]
[null,{"$f":"IF(A50<>0,VLOOKUP(fatoura!A50,v,2,FALSE),\"\")","v":""},null,{"$f":"IF(A50<>0,VLOOKUP(fatoura!A50,v,4,FALSE),\"\")","v":""},null,""]
[null,{"$f":"IF(A51<>0,VLOOKUP(fatoura!A51,v,2,FALSE),\"\")","v":""},null,{"$f":"IF(A51<>0,VLOOKUP(fatoura!A51,v,4,FALSE),\"\")","v":""},null,""]
[null,{"$f":"IF(A52<>0,VLOOKUP(fatoura!A52,v,2,FALSE),\"\")","v":""},null,{"$f":"IF(A52<>0,VLOOKUP(fatoura!A52,v,4,FALSE),\"\")","v":""},null,""]
[null,{"$f":"IF(A53<>0,VLOOKUP(fatoura!A53,v,2,FALSE),\"\")","v":""},null,{"$f":"IF(A53<>0,VLOOKUP(fatoura!A53,v,4,FALSE),\"\")","v":""},null,""]
[null,{"$f":"IF(A54<>0,VLOOKUP(fatoura!A54,v,2,FALSE),\"\")","v":""},null,{"$f":"IF(A54<>0,VLOOKUP(fatoura!A54,v,4,FALSE),\"\")","v":""},null,""]
[null,{"$f":"IF(A55<>0,VLOOKUP(fatoura!A55,v,2,FALSE),\"\")","v":""},null,{"$f":"IF(A55<>0,VLOOKUP(fatoura!A55,v,4,FALSE),\"\")","v":""},null,""]
[null,{"$f":"IF(A56<>0,VLOOKUP(fatoura!A56,v,2,FALSE),\"\")","v":""},null,{"$f":"IF(A56<>0,VLOOKUP(fatoura!A56,v,4,FALSE),\"\")","v":""},null,""]
[null,{"$f":"IF(A57<>0,VLOOKUP(fatoura!A57,v,2,FALSE),\"\")","v":""},null,{"$f":"IF(A57<>0,VLOOKUP(fatoura!A57,v,4,FALSE),\"\")","v":""},null,""]
[null,{"$f":"IF(A58<>0,VLOOKUP(fatoura!A58,v,2,FALSE),\"\")","v":""},null,{"$f":"IF(A58<>0,VLOOKUP(fatoura!A58,v,4,FALSE),\"\")","v":""},null,""]
[null,{"$f":"IF(A59<>0,VLOOKUP(fatoura!A59,v,2,FALSE),\"\")","v":""},null,{"$f":"IF(A59<>0,VLOOKUP(fatoura!A59,v,4,FALSE),\"\")","v":""},null,""]
[null,{"$f":"IF(A60<>0,VLOOKUP(fatoura!A60,v,2,FALSE),\"\")","v":""},null,{"$f":"IF(A60<>0,VLOOKUP(fatoura!A60,v,4,FALSE),\"\")","v":""},null,""]
[null,{"$f":"IF(A61<>0,VLOOKUP(fatoura!A61,v,2,FALSE),\"\")","v":""},null,{"$f":"IF(A61<>0,VLOOKUP(fatoura!A61,v,4,FALSE),\"\")","v":""},null,""]
[null,{"$f":"IF(A62<>0,VLOOKUP(fatoura!A62,v,2,FALSE),\"\")","v":""},null,{"$f":"IF(A62<>0,VLOOKUP(fatoura!A62,v,4,FALSE),\"\")","v":""},null,""]
[null,{"$f":"IF(A63<>0,VLOOKUP(fatoura!A63,v,2,FALSE),\"\")","v":""},null,{"$f":"IF(A63<>0,VLOOKUP(fatoura!A63,v,4,FALSE),\"\")","v":""},null,""]
[null,{"$f":"IF(A64<>0,VLOOKUP(fatoura!A64,v,2,FALSE),\"\")","v":""},null,{"$f":"IF(A64<>0,VLOOKUP(fatoura!A64,v,4,FALSE),\"\")","v":""},null,""]
[null,{"$f":"IF(A65<>0,VLOOKUP(fatoura!A65,v,2,FALSE),\"\")","v":""},null,{"$f":"IF(A65<>0,VLOOKUP(fatoura!A65,v,4,FALSE),\"\")","v":""},null,""]
[null,{"$f":"IF(A66<>0,VLOOKUP(fatoura!A66,v,2,FALSE),\"\")","v":""},null,{"$f":"IF(A66<>0,VLOOKUP(fatoura!A66,v,4,FALSE),\"\")","v":""},null,""]
[null,{"$f":"IF(A67<>0,VLOOKUP(fatoura!A67,v,2,FALSE),\"\")","v":""},null,{"$f":"IF(A67<>0,VLOOKUP(fatoura!A67,v,4,FALSE),\"\")","v":""},null,""]
[null,{"$f":"IF(A68<>0,VLOOKUP(fatoura!A68,v,2,FALSE),\"\")","v":""},null,{"$f":"IF(A68<>0,VLOOKUP(fatoura!A68,v,4,FALSE),\"\")","v":""},null,""]
[null,{"$f":"IF(A69<>0,VLOOKUP(fatoura!A69,v,2,FALSE),\"\")","v":""},null,{"$f":"IF(A69<>0,VLOOKUP(fatoura!A69,v,4,FALSE),\"\")","v":""},null,""]
[null,{"$f":"IF(A70<>0,VLOOKUP(fatoura!A70,v,2,FALSE),\"\")","v":""},null,{"$f":"IF(A70<>0,VLOOKUP(fatoura!A70,v,4,FALSE),\"\")","v":""},null,""]
[null,{"$f":"IF(A71<>0,VLOOKUP(fatoura!A71,v,2,FALSE),\"\")","v":""},null,{"$f":"IF(A71<>0,VLOOKUP(fatoura!A71,v,4,FALSE),\"\")","v":""},null,""]
[null,{"$f":"IF(A72<>0,VLOOKUP(fatoura!A72,v,2,FALSE),\"\")","v":""},null,{"$f":"IF(A72<>0,VLOOKUP(fatoura!A72,v,4,FALSE),\"\")","v":""},null,""]
[null,{"$f":"IF(A73<>0,VLOOKUP(fatoura!A73,v,2,FALSE),\"\")","v":""},null,{"$f":"IF(A73<>0,VLOOKUP(fatoura!A73,v,4,FALSE),\"\")","v":""},null,{"$f":"IF(A73<>0,SUM(E73*C73),\"\")","v":""}]
[null,{"$f":"IF(A74<>0,VLOOKUP(fatoura!A74,v,2,FALSE),\"\")","v":""},null,{"$f":"IF(A74<>0,VLOOKUP(fatoura!A74,v,4,FALSE),\"\")","v":""},null,""]
[null,{"$f":"IF(A75<>0,VLOOKUP(fatoura!A75,v,2,FALSE),\"\")","v":""},null,{"$f":"IF(A75<>0,VLOOKUP(fatoura!A75,v,4,FALSE),\"\")","v":""},null,""]
[null,{"$f":"IF(A76<>0,VLOOKUP(fatoura!A76,v,2,FALSE),\"\")","v":""},null,{"$f":"IF(A76<>0,VLOOKUP(fatoura!A76,v,4,FALSE),\"\")","v":""},null,""]
[null,{"$f":"IF(A77<>0,VLOOKUP(fatoura!A77,v,2,FALSE),\"\")","v":""},null,{"$f":"IF(A77<>0,VLOOKUP(fatoura!A77,v,4,FALSE),\"\")","v":""},null,""]
[null,{"$f":"IF(A78<>0,VLOOKUP(fatoura!A78,v,2,FALSE),\"\")","v":""},null,{"$f":"IF(A78<>0,VLOOKUP(fatoura!A78,v,4,FALSE),\"\")","v":""},null,""]
[null,{"$f":"IF(A79<>0,VLOOKUP(fatoura!A79,v,2,FALSE),\"\")","v":""},null,{"$f":"IF(A79<>0,VLOOKUP(fatoura!A79,v,4,FALSE),\"\")","v":""},null,""]
[null,{"$f":"IF(A80<>0,VLOOKUP(fatoura!A80,v,2,FALSE),\"\")","v":""},null,{"$f":"IF(A80<>0,VLOOKUP(fatoura!A80,v,4,FALSE),\"\")","v":""},null,""]
[null,{"$f":"IF(A81<>0,VLOOKUP(fatoura!A81,v,2,FALSE),\"\")","v":""},null,{"$f":"IF(A81<>0,VLOOKUP(fatoura!A81,v,4,FALSE),\"\")","v":""},null,""]
[null,{"$f":"IF(A82<>0,VLOOKUP(fatoura!A82,v,2,FALSE),\"\")","v":""},null,{"$f":"IF(A82<>0,VLOOKUP(fatoura!A82,v,4,FALSE),\"\")","v":""},null,""]
[null,{"$f":"IF(A83<>0,VLOOKUP(fatoura!A83,v,2,FALSE),\"\")","v":""},null,{"$f":"IF(A83<>0,VLOOKUP(fatoura!A83,v,4,FALSE),\"\")","v":""},null,""]
[null,{"$f":"IF(A84<>0,VLOOKUP(fatoura!A84,v,2,FALSE),\"\")","v":""},null,{"$f":"IF(A84<>0,VLOOKUP(fatoura!A84,v,4,FALSE),\"\")","v":""},null,""]
[null,{"$f":"IF(A85<>0,VLOOKUP(fatoura!A85,v,2,FALSE),\"\")","v":""},null,{"$f":"IF(A85<>0,VLOOKUP(fatoura!A85,v,4,FALSE),\"\")","v":""},null,""]
[null,{"$f":"IF(A86<>0,VLOOKUP(fatoura!A86,v,2,FALSE),\"\")","v":""},null,{"$f":"IF(A86<>0,VLOOKUP(fatoura!A86,v,4,FALSE),\"\")","v":""},null,""]
[null,{"$f":"IF(A87<>0,VLOOKUP(fatoura!A87,v,2,FALSE),\"\")","v":""},null,{"$f":"IF(A87<>0,VLOOKUP(fatoura!A87,v,4,FALSE),\"\")","v":""},null,""]
[null,{"$f":"IF(A88<>0,VLOOKUP(fatoura!A88,v,2,FALSE),\"\")","v":""},null,{"$f":"IF(A88<>0,VLOOKUP(fatoura!A88,v,4,FALSE),\"\")","v":""},null,""]
[null,{"$f":"IF(A89<>0,VLOOKUP(fatoura!A89,v,2,FALSE),\"\")","v":""},null,{"$f":"IF(A89<>0,VLOOKUP(fatoura!A89,v,4,FALSE),\"\")","v":""},null,""]
[null,{"$f":"IF(A90<>0,VLOOKUP(fatoura!A90,v,2,FALSE),\"\")","v":""},null,{"$f":"IF(A90<>0,VLOOKUP(fatoura!A90,v,4,FALSE),\"\")","v":""},null,""]
[null,{"$f":"IF(A91<>0,VLOOKUP(fatoura!A91,v,2,FALSE),\"\")","v":""},null,{"$f":"IF(A91<>0,VLOOKUP(fatoura!A91,v,4,FALSE),\"\")","v":""},null,""]
[null,{"$f":"IF(A92<>0,VLOOKUP(fatoura!A92,v,2,FALSE),\"\")","v":""},null,{"$f":"IF(A92<>0,VLOOKUP(fatoura!A92,v,4,FALSE),\"\")","v":""},null,""]
[null,{"$f":"IF(A93<>0,VLOOKUP(fatoura!A93,v,2,FALSE),\"\")","v":""},null,{"$f":"IF(A93<>0,VLOOKUP(fatoura!A93,v,4,FALSE),\"\")","v":""},null,""]
[null,{"$f":"IF(A94<>0,VLOOKUP(fatoura!A94,v,2,FALSE),\"\")","v":""},null,{"$f":"IF(A94<>0,VLOOKUP(fatoura!A94,v,4,FALSE),\"\")","v":""},null,""]
[null,{"$f":"IF(A95<>0,VLOOKUP(fatoura!A95,v,2,FALSE),\"\")","v":""},null,{"$f":"IF(A95<>0,VLOOKUP(fatoura!A95,v,4,FALSE),\"\")","v":""},null,""]
[null,{"$f":"IF(A96<>0,VLOOKUP(fatoura!A96,v,2,FALSE),\"\")","v":""},null,{"$f":"IF(A96<>0,VLOOKUP(fatoura!A96,v,4,FALSE),\"\")","v":""},null,""]
[null,{"$f":"IF(A97<>0,VLOOKUP(fatoura!A97,v,2,FALSE),\"\")","v":""},null,{"$f":"IF(A97<>0,VLOOKUP(fatoura!A97,v,4,FALSE),\"\")","v":""},null,""]
[null,{"$f":"IF(A98<>0,VLOOKUP(fatoura!A98,v,2,FALSE),\"\")","v":""},null,{"$f":"IF(A98<>0,VLOOKUP(fatoura!A98,v,4,FALSE),\"\")","v":""},null,""]
[null,{"$f":"IF(A99<>0,VLOOKUP(fatoura!A99,v,2,FALSE),\"\")","v":""},null,{"$f":"IF(A99<>0,VLOOKUP(fatoura!A99,v,4,FALSE),\"\")","v":""},null,""]
[null,{"$f":"IF(A100<>0,VLOOKUP(fatoura!A100,v,2,FALSE),\"\")","v":""},null,{"$f":"IF(A100<>0,VLOOKUP(fatoura!A100,v,4,FALSE),\"\")","v":""},null,""]
[null,{"$f":"IF(A101<>0,VLOOKUP(fatoura!A101,v,2,FALSE),\"\")","v":""},null,{"$f":"IF(A101<>0,VLOOKUP(fatoura!A101,v,4,FALSE),\"\")","v":""},"",""]
[null,{"$f":"IF(A102<>0,VLOOKUP(fatoura!A102,v,2,FALSE),\"\")","v":""},null,{"$f":"IF(A102<>0,VLOOKUP(fatoura!A102,v,4,FALSE),\"\")","v":""},"",""]
[null,{"$f":"IF(A103<>0,VLOOKUP(fatoura!A103,v,2,FALSE),\"\")","v":""},null,{"$f":"IF(A103<>0,VLOOKUP(fatoura!A103,v,4,FALSE),\"\")","v":""},"",""]
[null,{"$f":"IF(A104<>0,VLOOKUP(fatoura!A104,v,2,FALSE),\"\")","v":""},null,{"$f":"IF(A104<>0,VLOOKUP(fatoura!A104,v,4,FALSE),\"\")","v":""},"",""]
[null,{"$f":"IF(A105<>0,VLOOKUP(fatoura!A105,v,2,FALSE),\"\")","v":""},null,{"$f":"IF(A105<>0,VLOOKUP(fatoura!A105,v,4,FALSE),\"\")","v":""},"",""]
[null,{"$f":"IF(A106<>0,VLOOKUP(fatoura!A106,v,2,FALSE),\"\")","v":""},null,{"$f":"IF(A106<>0,VLOOKUP(fatoura!A106,v,4,FALSE),\"\")","v":""},"",""]
[null,{"$f":"IF(A107<>0,VLOOKUP(fatoura!A107,v,2,FALSE),\"\")","v":""},null,{"$f":"IF(A107<>0,VLOOKUP(fatoura!A107,v,4,FALSE),\"\")","v":""},"",""]
[null,{"$f":"IF(A108<>0,VLOOKUP(fatoura!A108,v,2,FALSE),\"\")","v":""},null,{"$f":"IF(A108<>0,VLOOKUP(fatoura!A108,v,4,FALSE),\"\")","v":""},"",""]
[null,{"$f":"IF(A109<>0,VLOOKUP(fatoura!A109,v,2,FALSE),\"\")","v":""},null,{"$f":"IF(A109<>0,VLOOKUP(fatoura!A109,v,4,FALSE),\"\")","v":""},"",""]
[null,{"$f":"IF(A110<>0,VLOOKUP(fatoura!A110,v,2,FALSE),\"\")","v":""},null,{"$f":"IF(A110<>0,VLOOKUP(fatoura!A110,v,4,FALSE),\"\")","v":""},"",""]
[null,{"$f":"IF(A111<>0,VLOOKUP(fatoura!A111,v,2,FALSE),\"\")","v":""},null,{"$f":"IF(A111<>0,VLOOKUP(fatoura!A111,v,4,FALSE),\"\")","v":""},"",""]
[null,{"$f":"IF(A112<>0,VLOOKUP(fatoura!A112,v,2,FALSE),\"\")","v":""},null,{"$f":"IF(A112<>0,VLOOKUP(fatoura!A112,v,4,FALSE),\"\")","v":""},"",""]
[null,{"$f":"IF(A113<>0,VLOOKUP(fatoura!A113,v,2,FALSE),\"\")","v":""},null,{"$f":"IF(A113<>0,VLOOKUP(fatoura!A113,v,4,FALSE),\"\")","v":""},"",""]
[null,{"$f":"IF(A114<>0,VLOOKUP(fatoura!A114,v,2,FALSE),\"\")","v":""},null,{"$f":"IF(A114<>0,VLOOKUP(fatoura!A114,v,4,FALSE),\"\")","v":""},"",""]
[null,{"$f":"IF(A115<>0,VLOOKUP(fatoura!A115,v,2,FALSE),\"\")","v":""},null,{"$f":"IF(A115<>0,VLOOKUP(fatoura!A115,v,4,FALSE),\"\")","v":""},"",""]
[null,{"$f":"IF(A116<>0,VLOOKUP(fatoura!A116,v,2,FALSE),\"\")","v":""},null,{"$f":"IF(A116<>0,VLOOKUP(fatoura!A116,v,4,FALSE),\"\")","v":""},"",""]
[null,{"$f":"IF(A117<>0,VLOOKUP(fatoura!A117,v,2,FALSE),\"\")","v":""},null,{"$f":"IF(A117<>0,VLOOKUP(fatoura!A117,v,4,FALSE),\"\")","v":""},"",""]
[null,{"$f":"IF(A118<>0,VLOOKUP(fatoura!A118,v,2,FALSE),\"\")","v":""},null,{"$f":"IF(A118<>0,VLOOKUP(fatoura!A118,v,4,FALSE),\"\")","v":""},"",""]
[null,{"$f":"IF(A119<>0,VLOOKUP(fatoura!A119,v,2,FALSE),\"\")","v":""},null,{"$f":"IF(A119<>0,VLOOKUP(fatoura!A119,v,4,FALSE),\"\")","v":""},"",""]
[null,{"$f":"IF(A120<>0,VLOOKUP(fatoura!A120,v,2,FALSE),\"\")","v":""},null,{"$f":"IF(A120<>0,VLOOKUP(fatoura!A120,v,4,FALSE),\"\")","v":""},"",""]
[null,{"$f":"IF(A121<>0,VLOOKUP(fatoura!A121,v,2,FALSE),\"\")","v":""},null,{"$f":"IF(A121<>0,VLOOKUP(fatoura!A121,v,4,FALSE),\"\")","v":""},"",""]
[null,{"$f":"IF(A122<>0,VLOOKUP(fatoura!A122,v,2,FALSE),\"\")","v":""},null,{"$f":"IF(A122<>0,VLOOKUP(fatoura!A122,v,4,FALSE),\"\")","v":""},"",""]
[null,{"$f":"IF(A123<>0,VLOOKUP(fatoura!A123,v,2,FALSE),\"\")","v":""},null,{"$f":"IF(A123<>0,VLOOKUP(fatoura!A123,v,4,FALSE),\"\")","v":""},"",""]
[null,{"$f":"IF(A124<>0,VLOOKUP(fatoura!A124,v,2,FALSE),\"\")","v":""},null,{"$f":"IF(A124<>0,VLOOKUP(fatoura!A124,v,4,FALSE),\"\")","v":""},"",""]
[null,{"$f":"IF(A125<>0,VLOOKUP(fatoura!A125,v,2,FALSE),\"\")","v":""},null,{"$f":"IF(A125<>0,VLOOKUP(fatoura!A125,v,4,FALSE),\"\")","v":""},"",""]
[null,{"$f":"IF(A126<>0,VLOOKUP(fatoura!A126,v,2,FALSE),\"\")","v":""},null,{"$f":"IF(A126<>0,VLOOKUP(fatoura!A126,v,4,FALSE),\"\")","v":""},"",""]
[null,{"$f":"IF(A127<>0,VLOOKUP(fatoura!A127,v,2,FALSE),\"\")","v":""},null,{"$f":"IF(A127<>0,VLOOKUP(fatoura!A127,v,4,FALSE),\"\")","v":""},"",""]
[null,{"$f":"IF(A128<>0,VLOOKUP(fatoura!A128,v,2,FALSE),\"\")","v":""},null,{"$f":"IF(A128<>0,VLOOKUP(fatoura!A128,v,4,FALSE),\"\")","v":""},"",""]
[null,{"$f":"IF(A129<>0,VLOOKUP(fatoura!A129,v,2,FALSE),\"\")","v":""},null,{"$f":"IF(A129<>0,VLOOKUP(fatoura!A129,v,4,FALSE),\"\")","v":""},"",""]
[null,{"$f":"IF(A130<>0,VLOOKUP(fatoura!A130,v,2,FALSE),\"\")","v":""},null,{"$f":"IF(A130<>0,VLOOKUP(fatoura!A130,v,4,FALSE),\"\")","v":""},"",""]
[null,{"$f":"IF(A131<>0,VLOOKUP(fatoura!A131,v,2,FALSE),\"\")","v":""},null,{"$f":"IF(A131<>0,VLOOKUP(fatoura!A131,v,4,FALSE),\"\")","v":""},"",""]
[null,{"$f":"IF(A132<>0,VLOOKUP(fatoura!A132,v,2,FALSE),\"\")","v":""},null,{"$f":"IF(A132<>0,VLOOKUP(fatoura!A132,v,4,FALSE),\"\")","v":""},"",""]
[null,{"$f":"IF(A133<>0,VLOOKUP(fatoura!A133,v,2,FALSE),\"\")","v":""},null,{"$f":"IF(A133<>0,VLOOKUP(fatoura!A133,v,4,FALSE),\"\")","v":""},"",""]
[null,{"$f":"IF(A134<>0,VLOOKUP(fatoura!A134,v,2,FALSE),\"\")","v":""},null,{"$f":"IF(A134<>0,VLOOKUP(fatoura!A134,v,4,FALSE),\"\")","v":""},"",""]
[null,{"$f":"IF(A135<>0,VLOOKUP(fatoura!A135,v,2,FALSE),\"\")","v":""},null,{"$f":"IF(A135<>0,VLOOKUP(fatoura!A135,v,4,FALSE),\"\")","v":""},"",""]
[null,{"$f":"IF(A136<>0,VLOOKUP(fatoura!A136,v,2,FALSE),\"\")","v":""},null,{"$f":"IF(A136<>0,VLOOKUP(fatoura!A136,v,4,FALSE),\"\")","v":""},"",""]
[null,{"$f":"IF(A137<>0,VLOOKUP(fatoura!A137,v,2,FALSE),\"\")","v":""},null,{"$f":"IF(A137<>0,VLOOKUP(fatoura!A137,v,4,FALSE),\"\")","v":""},"",{"$f":"IF(A137<>0,SUM(E137*C137),\"\")","v":""}]
[null,{"$f":"IF(A138<>0,VLOOKUP(fatoura!A138,v,2,FALSE),\"\")","v":""},null,{"$f":"IF(A138<>0,VLOOKUP(fatoura!A138,v,4,FALSE),\"\")","v":""},"",""]
[null,{"$f":"IF(A139<>0,VLOOKUP(fatoura!A139,v,2,FALSE),\"\")","v":""},null,{"$f":"IF(A139<>0,VLOOKUP(fatoura!A139,v,4,FALSE),\"\")","v":""},"",""]
[null,{"$f":"IF(A140<>0,VLOOKUP(fatoura!A140,v,2,FALSE),\"\")","v":""},null,{"$f":"IF(A140<>0,VLOOKUP(fatoura!A140,v,4,FALSE),\"\")","v":""},"",""]
[null,{"$f":"IF(A141<>0,VLOOKUP(fatoura!A141,v,2,FALSE),\"\")","v":""},null,{"$f":"IF(A141<>0,VLOOKUP(fatoura!A141,v,4,FALSE),\"\")","v":""},"",""]
[null,{"$f":"IF(A142<>0,VLOOKUP(fatoura!A142,v,2,FALSE),\"\")","v":""},null,{"$f":"IF(A142<>0,VLOOKUP(fatoura!A142,v,4,FALSE),\"\")","v":""},"",""]
[null,{"$f":"IF(A143<>0,VLOOKUP(fatoura!A143,v,2,FALSE),\"\")","v":""},null,{"$f":"IF(A143<>0,VLOOKUP(fatoura!A143,v,4,FALSE),\"\")","v":""},"",""]
[null,{"$f":"IF(A144<>0,VLOOKUP(fatoura!A144,v,2,FALSE),\"\")","v":""},null,{"$f":"IF(A144<>0,VLOOKUP(fatoura!A144,v,4,FALSE),\"\")","v":""},"",""]
[null,{"$f":"IF(A145<>0,VLOOKUP(fatoura!A145,v,2,FALSE),\"\")","v":""},null,{"$f":"IF(A145<>0,VLOOKUP(fatoura!A145,v,4,FALSE),\"\")","v":""},"",""]
[null,{"$f":"IF(A146<>0,VLOOKUP(fatoura!A146,v,2,FALSE),\"\")","v":""},null,{"$f":"IF(A146<>0,VLOOKUP(fatoura!A146,v,4,FALSE),\"\")","v":""},"",""]
[null,{"$f":"IF(A147<>0,VLOOKUP(fatoura!A147,v,2,FALSE),\"\")","v":""},null,{"$f":"IF(A147<>0,VLOOKUP(fatoura!A147,v,4,FALSE),\"\")","v":""},"",""]
[null,{"$f":"IF(A148<>0,VLOOKUP(fatoura!A148,v,2,FALSE),\"\")","v":""},null,{"$f":"IF(A148<>0,VLOOKUP(fatoura!A148,v,4,FALSE),\"\")","v":""},"",""]
[null,{"$f":"IF(A149<>0,VLOOKUP(fatoura!A149,v,2,FALSE),\"\")","v":""},null,{"$f":"IF(A149<>0,VLOOKUP(fatoura!A149,v,4,FALSE),\"\")","v":""},"",""]
[null,{"$f":"IF(A150<>0,VLOOKUP(fatoura!A150,v,2,FALSE),\"\")","v":""},null,{"$f":"IF(A150<>0,VLOOKUP(fatoura!A150,v,4,FALSE),\"\")","v":""},"",""]
[null,{"$f":"IF(A151<>0,VLOOKUP(fatoura!A151,v,2,FALSE),\"\")","v":""},null,{"$f":"IF(A151<>0,VLOOKUP(fatoura!A151,v,4,FALSE),\"\")","v":""},"",""]
[null,{"$f":"IF(A152<>0,VLOOKUP(fatoura!A152,v,2,FALSE),\"\")","v":""},null,{"$f":"IF(A152<>0,VLOOKUP(fatoura!A152,v,4,FALSE),\"\")","v":""},"",""]
[null,{"$f":"IF(A153<>0,VLOOKUP(fatoura!A153,v,2,FALSE),\"\")","v":""},null,{"$f":"IF(A153<>0,VLOOKUP(fatoura!A153,v,4,FALSE),\"\")","v":""},"",""]
[null,{"$f":"IF(A154<>0,VLOOKUP(fatoura!A154,v,2,FALSE),\"\")","v":""},null,{"$f":"IF(A154<>0,VLOOKUP(fatoura!A154,v,4,FALSE),\"\")","v":""},"",""]
[null,{"$f":"IF(A155<>0,VLOOKUP(fatoura!A155,v,2,FALSE),\"\")","v":""},null,{"$f":"IF(A155<>0,VLOOKUP(fatoura!A155,v,4,FALSE),\"\")","v":""},"",""]
[null,{"$f":"IF(A156<>0,VLOOKUP(fatoura!A156,v,2,FALSE),\"\")","v":""},null,{"$f":"IF(A156<>0,VLOOKUP(fatoura!A156,v,4,FALSE),\"\")","v":""},"",""]
[null,{"$f":"IF(A157<>0,VLOOKUP(fatoura!A157,v,2,FALSE),\"\")","v":""},null,{"$f":"IF(A157<>0,VLOOKUP(fatoura!A157,v,4,FALSE),\"\")","v":""},"",""]
[null,{"$f":"IF(A158<>0,VLOOKUP(fatoura!A158,v,2,FALSE),\"\")","v":""},null,{"$f":"IF(A158<>0,VLOOKUP(fatoura!A158,v,4,FALSE),\"\")","v":""},"",""]
[null,{"$f":"IF(A159<>0,VLOOKUP(fatoura!A159,v,2,FALSE),\"\")","v":""},null,{"$f":"IF(A159<>0,VLOOKUP(fatoura!A159,v,4,FALSE),\"\")","v":""},"",""]
[null,{"$f":"IF(A160<>0,VLOOKUP(fatoura!A160,v,2,FALSE),\"\")","v":""},null,{"$f":"IF(A160<>0,VLOOKUP(fatoura!A160,v,4,FALSE),\"\")","v":""},"",""]
[null,{"$f":"IF(A161<>0,VLOOKUP(fatoura!A161,v,2,FALSE),\"\")","v":""},null,{"$f":"IF(A161<>0,VLOOKUP(fatoura!A161,v,4,FALSE),\"\")","v":""},"",""]
[null,{"$f":"IF(A162<>0,VLOOKUP(fatoura!A162,v,2,FALSE),\"\")","v":""},null,{"$f":"IF(A162<>0,VLOOKUP(fatoura!A162,v,4,FALSE),\"\")","v":""},"",""]
[null,{"$f":"IF(A163<>0,VLOOKUP(fatoura!A163,v,2,FALSE),\"\")","v":""},null,{"$f":"IF(A163<>0,VLOOKUP(fatoura!A163,v,4,FALSE),\"\")","v":""},"",""]
[null,{"$f":"IF(A164<>0,VLOOKUP(fatoura!A164,v,2,FALSE),\"\")","v":""},null,{"$f":"IF(A164<>0,VLOOKUP(fatoura!A164,v,4,FALSE),\"\")","v":""},"",""]
[null,{"$f":"IF(A165<>0,VLOOKUP(fatoura!A165,v,2,FALSE),\"\")","v":""},null,{"$f":"IF(A165<>0,VLOOKUP(fatoura!A165,v,4,FALSE),\"\")","v":""},"",""]
[null,{"$f":"IF(A166<>0,VLOOKUP(fatoura!A166,v,2,FALSE),\"\")","v":""},null,{"$f":"IF(A166<>0,VLOOKUP(fatoura!A166,v,4,FALSE),\"\")","v":""},"",""]
[null,{"$f":"IF(A167<>0,VLOOKUP(fatoura!A167,v,2,FALSE),\"\")","v":""},null,{"$f":"IF(A167<>0,VLOOKUP(fatoura!A167,v,4,FALSE),\"\")","v":""},"",""]
[null,{"$f":"IF(A168<>0,VLOOKUP(fatoura!A168,v,2,FALSE),\"\")","v":""},null,{"$f":"IF(A168<>0,VLOOKUP(fatoura!A168,v,4,FALSE),\"\")","v":""},"",""]
[null,{"$f":"IF(A169<>0,VLOOKUP(fatoura!A169,v,2,FALSE),\"\")","v":""},null,{"$f":"IF(A169<>0,VLOOKUP(fatoura!A169,v,4,FALSE),\"\")","v":""},"",""]
[null,{"$f":"IF(A170<>0,VLOOKUP(fatoura!A170,v,2,FALSE),\"\")","v":""},null,{"$f":"IF(A170<>0,VLOOKUP(fatoura!A170,v,4,FALSE),\"\")","v":""},"",""]
[null,{"$f":"IF(A171<>0,VLOOKUP(fatoura!A171,v,2,FALSE),\"\")","v":""},null,{"$f":"IF(A171<>0,VLOOKUP(fatoura!A171,v,4,FALSE),\"\")","v":""},"",""]
[null,{"$f":"IF(A172<>0,VLOOKUP(fatoura!A172,v,2,FALSE),\"\")","v":""},null,{"$f":"IF(A172<>0,VLOOKUP(fatoura!A172,v,4,FALSE),\"\")","v":""},"",""]
[null,{"$f":"IF(A173<>0,VLOOKUP(fatoura!A173,v,2,FALSE),\"\")","v":""},null,{"$f":"IF(A173<>0,VLOOKUP(fatoura!A173,v,4,FALSE),\"\")","v":""},"",""]
[null,{"$f":"IF(A174<>0,VLOOKUP(fatoura!A174,v,2,FALSE),\"\")","v":""},null,{"$f":"IF(A174<>0,VLOOKUP(fatoura!A174,v,4,FALSE),\"\")","v":""},"",""]
[null,{"$f":"IF(A175<>0,VLOOKUP(fatoura!A175,v,2,FALSE),\"\")","v":""},null,{"$f":"IF(A175<>0,VLOOKUP(fatoura!A175,v,4,FALSE),\"\")","v":""},"",""]
[null,{"$f":"IF(A176<>0,VLOOKUP(fatoura!A176,v,2,FALSE),\"\")","v":""},null,{"$f":"IF(A176<>0,VLOOKUP(fatoura!A176,v,4,FALSE),\"\")","v":""},"",""]
[null,{"$f":"IF(A177<>0,VLOOKUP(fatoura!A177,v,2,FALSE),\"\")","v":""},null,{"$f":"IF(A177<>0,VLOOKUP(fatoura!A177,v,4,FALSE),\"\")","v":""},"",""]
[null,{"$f":"IF(A178<>0,VLOOKUP(fatoura!A178,v,2,FALSE),\"\")","v":""},null,{"$f":"IF(A178<>0,VLOOKUP(fatoura!A178,v,4,FALSE),\"\")","v":""},"",""]
[null,{"$f":"IF(A179<>0,VLOOKUP(fatoura!A179,v,2,FALSE),\"\")","v":""},null,{"$f":"IF(A179<>0,VLOOKUP(fatoura!A179,v,4,FALSE),\"\")","v":""},"",""]
[null,{"$f":"IF(A180<>0,VLOOKUP(fatoura!A180,v,2,FALSE),\"\")","v":""},null,{"$f":"IF(A180<>0,VLOOKUP(fatoura!A180,v,4,FALSE),\"\")","v":""},"",""]
[null,{"$f":"IF(A181<>0,VLOOKUP(fatoura!A181,v,2,FALSE),\"\")","v":""},null,{"$f":"IF(A181<>0,VLOOKUP(fatoura!A181,v,4,FALSE),\"\")","v":""},"",""]
[null,{"$f":"IF(A182<>0,VLOOKUP(fatoura!A182,v,2,FALSE),\"\")","v":""},null,{"$f":"IF(A182<>0,VLOOKUP(fatoura!A182,v,4,FALSE),\"\")","v":""},"",""]
[null,{"$f":"IF(A183<>0,VLOOKUP(fatoura!A183,v,2,FALSE),\"\")","v":""},null,{"$f":"IF(A183<>0,VLOOKUP(fatoura!A183,v,4,FALSE),\"\")","v":""},"",""]
[null,{"$f":"IF(A184<>0,VLOOKUP(fatoura!A184,v,2,FALSE),\"\")","v":""},null,{"$f":"IF(A184<>0,VLOOKUP(fatoura!A184,v,4,FALSE),\"\")","v":""},"",""]
[null,{"$f":"IF(A185<>0,VLOOKUP(fatoura!A185,v,2,FALSE),\"\")","v":""},null,{"$f":"IF(A185<>0,VLOOKUP(fatoura!A185,v,4,FALSE),\"\")","v":""},"",""]
[null,{"$f":"IF(A186<>0,VLOOKUP(fatoura!A186,v,2,FALSE),\"\")","v":""},null,{"$f":"IF(A186<>0,VLOOKUP(fatoura!A186,v,4,FALSE),\"\")","v":""},"",""]
[null,{"$f":"IF(A187<>0,VLOOKUP(fatoura!A187,v,2,FALSE),\"\")","v":""},null,{"$f":"IF(A187<>0,VLOOKUP(fatoura!A187,v,4,FALSE),\"\")","v":""},"",""]
[null,{"$f":"IF(A188<>0,VLOOKUP(fatoura!A188,v,2,FALSE),\"\")","v":""},null,{"$f":"IF(A188<>0,VLOOKUP(fatoura!A188,v,4,FALSE),\"\")","v":""},"",""]
[null,{"$f":"IF(A189<>0,VLOOKUP(fatoura!A189,v,2,FALSE),\"\")","v":""},null,{"$f":"IF(A189<>0,VLOOKUP(fatoura!A189,v,4,FALSE),\"\")","v":""},"",""]
[null,{"$f":"IF(A190<>0,VLOOKUP(fatoura!A190,v,2,FALSE),\"\")","v":""},null,{"$f":"IF(A190<>0,VLOOKUP(fatoura!A190,v,4,FALSE),\"\")","v":""},"",""]
[null,{"$f":"IF(A191<>0,VLOOKUP(fatoura!A191,v,2,FALSE),\"\")","v":""},null,{"$f":"IF(A191<>0,VLOOKUP(fatoura!A191,v,4,FALSE),\"\")","v":""},"",""]
[null,{"$f":"IF(A192<>0,VLOOKUP(fatoura!A192,v,2,FALSE),\"\")","v":""},null,{"$f":"IF(A192<>0,VLOOKUP(fatoura!A192,v,4,FALSE),\"\")","v":""},"",""]
[null,{"$f":"IF(A193<>0,VLOOKUP(fatoura!A193,v,2,FALSE),\"\")","v":""},null,{"$f":"IF(A193<>0,VLOOKUP(fatoura!A193,v,4,FALSE),\"\")","v":""},"",""]
[null,{"$f":"IF(A194<>0,VLOOKUP(fatoura!A194,v,2,FALSE),\"\")","v":""},null,{"$f":"IF(A194<>0,VLOOKUP(fatoura!A194,v,4,FALSE),\"\")","v":""},"",""]
[null,{"$f":"IF(A195<>0,VLOOKUP(fatoura!A195,v,2,FALSE),\"\")","v":""},null,{"$f":"IF(A195<>0,VLOOKUP(fatoura!A195,v,4,FALSE),\"\")","v":""},"",""]
[null,{"$f":"IF(A196<>0,VLOOKUP(fatoura!A196,v,2,FALSE),\"\")","v":""},null,{"$f":"IF(A196<>0,VLOOKUP(fatoura!A196,v,4,FALSE),\"\")","v":""},"",""]
[null,{"$f":"IF(A197<>0,VLOOKUP(fatoura!A197,v,2,FALSE),\"\")","v":""},null,{"$f":"IF(A197<>0,VLOOKUP(fatoura!A197,v,4,FALSE),\"\")","v":""},"",""]
[null,{"$f":"IF(A198<>0,VLOOKUP(fatoura!A198,v,2,FALSE),\"\")","v":""},null,{"$f":"IF(A198<>0,VLOOKUP(fatoura!A198,v,4,FALSE),\"\")","v":""},"",""]
[null,{"$f":"IF(A199<>0,VLOOKUP(fatoura!A199,v,2,FALSE),\"\")","v":""},null,{"$f":"IF(A199<>0,VLOOKUP(fatoura!A199,v,4,FALSE),\"\")","v":""},"",""]
[null,{"$f":"IF(A200<>0,VLOOKUP(fatoura!A200,v,2,FALSE),\"\")","v":""},null,{"$f":"IF(A200<>0,VLOOKUP(fatoura!A200,v,4,FALSE),\"\")","v":""},"",""]
[null,{"$f":"IF(A201<>0,VLOOKUP(fatoura!A201,v,2,FALSE),\"\")","v":""},null,{"$f":"IF(A201<>0,VLOOKUP(fatoura!A201,v,4,FALSE),\"\")","v":""},"",{"$f":"IF(A201<>0,SUM(E201*C201),\"\")","v":""}]
[null,{"$f":"IF(A202<>0,VLOOKUP(fatoura!A202,v,2,FALSE),\"\")","v":""},null,{"$f":"IF(A202<>0,VLOOKUP(fatoura!A202,v,4,FALSE),\"\")","v":""},"",""]
[null,{"$f":"IF(A203<>0,VLOOKUP(fatoura!A203,v,2,FALSE),\"\")","v":""},null,{"$f":"IF(A203<>0,VLOOKUP(fatoura!A203,v,4,FALSE),\"\")","v":""},"",""]
[null,{"$f":"IF(A204<>0,VLOOKUP(fatoura!A204,v,2,FALSE),\"\")","v":""},null,{"$f":"IF(A204<>0,VLOOKUP(fatoura!A204,v,4,FALSE),\"\")","v":""},"",""]
[null,{"$f":"IF(A205<>0,VLOOKUP(fatoura!A205,v,2,FALSE),\"\")","v":""},null,{"$f":"IF(A205<>0,VLOOKUP(fatoura!A205,v,4,FALSE),\"\")","v":""},"",""]
[null,{"$f":"IF(A206<>0,VLOOKUP(fatoura!A206,v,2,FALSE),\"\")","v":""},null,{"$f":"IF(A206<>0,VLOOKUP(fatoura!A206,v,4,FALSE),\"\")","v":""},"",""]
[null,{"$f":"IF(A207<>0,VLOOKUP(fatoura!A207,v,2,FALSE),\"\")","v":""},null,{"$f":"IF(A207<>0,VLOOKUP(fatoura!A207,v,4,FALSE),\"\")","v":""},"",""]
[null,{"$f":"IF(A208<>0,VLOOKUP(fatoura!A208,v,2,FALSE),\"\")","v":""},null,{"$f":"IF(A208<>0,VLOOKUP(fatoura!A208,v,4,FALSE),\"\")","v":""},"",""]
[null,{"$f":"IF(A209<>0,VLOOKUP(fatoura!A209,v,2,FALSE),\"\")","v":""},null,{"$f":"IF(A209<>0,VLOOKUP(fatoura!A209,v,4,FALSE),\"\")","v":""},"",""]
[null,{"$f":"IF(A210<>0,VLOOKUP(fatoura!A210,v,2,FALSE),\"\")","v":""},null,{"$f":"IF(A210<>0,VLOOKUP(fatoura!A210,v,4,FALSE),\"\")","v":""},"",""]
[null,{"$f":"IF(A211<>0,VLOOKUP(fatoura!A211,v,2,FALSE),\"\")","v":""},null,{"$f":"IF(A211<>0,VLOOKUP(fatoura!A211,v,4,FALSE),\"\")","v":""},"",""]
[null,{"$f":"IF(A212<>0,VLOOKUP(fatoura!A212,v,2,FALSE),\"\")","v":""},null,{"$f":"IF(A212<>0,VLOOKUP(fatoura!A212,v,4,FALSE),\"\")","v":""},"",""]
[null,{"$f":"IF(A213<>0,VLOOKUP(fatoura!A213,v,2,FALSE),\"\")","v":""},null,{"$f":"IF(A213<>0,VLOOKUP(fatoura!A213,v,4,FALSE),\"\")","v":""},"",""]
[null,{"$f":"IF(A214<>0,VLOOKUP(fatoura!A214,v,2,FALSE),\"\")","v":""},null,{"$f":"IF(A214<>0,VLOOKUP(fatoura!A214,v,4,FALSE),\"\")","v":""},"",""]
[null,{"$f":"IF(A215<>0,VLOOKUP(fatoura!A215,v,2,FALSE),\"\")","v":""},null,{"$f":"IF(A215<>0,VLOOKUP(fatoura!A215,v,4,FALSE),\"\")","v":""},"",""]
[null,{"$f":"IF(A216<>0,VLOOKUP(fatoura!A216,v,2,FALSE),\"\")","v":""},null,{"$f":"IF(A216<>0,VLOOKUP(fatoura!A216,v,4,FALSE),\"\")","v":""},"",""]
[null,{"$f":"IF(A217<>0,VLOOKUP(fatoura!A217,v,2,FALSE),\"\")","v":""},null,{"$f":"IF(A217<>0,VLOOKUP(fatoura!A217,v,4,FALSE),\"\")","v":""},"",""]
[null,{"$f":"IF(A218<>0,VLOOKUP(fatoura!A218,v,2,FALSE),\"\")","v":""},null,{"$f":"IF(A218<>0,VLOOKUP(fatoura!A218,v,4,FALSE),\"\")","v":""},"",""]
[null,{"$f":"IF(A219<>0,VLOOKUP(fatoura!A219,v,2,FALSE),\"\")","v":""},null,{"$f":"IF(A219<>0,VLOOKUP(fatoura!A219,v,4,FALSE),\"\")","v":""},"",""]
[null,{"$f":"IF(A220<>0,VLOOKUP(fatoura!A220,v,2,FALSE),\"\")","v":""},null,{"$f":"IF(A220<>0,VLOOKUP(fatoura!A220,v,4,FALSE),\"\")","v":""},"",""]
[null,{"$f":"IF(A221<>0,VLOOKUP(fatoura!A221,v,2,FALSE),\"\")","v":""},null,{"$f":"IF(A221<>0,VLOOKUP(fatoura!A221,v,4,FALSE),\"\")","v":""},"",""]
[null,{"$f":"IF(A222<>0,VLOOKUP(fatoura!A222,v,2,FALSE),\"\")","v":""},null,{"$f":"IF(A222<>0,VLOOKUP(fatoura!A222,v,4,FALSE),\"\")","v":""},"",""]
[null,{"$f":"IF(A223<>0,VLOOKUP(fatoura!A223,v,2,FALSE),\"\")","v":""},null,{"$f":"IF(A223<>0,VLOOKUP(fatoura!A223,v,4,FALSE),\"\")","v":""},"",""]
[null,{"$f":"IF(A224<>0,VLOOKUP(fatoura!A224,v,2,FALSE),\"\")","v":""},null,{"$f":"IF(A224<>0,VLOOKUP(fatoura!A224,v,4,FALSE),\"\")","v":""},"",""]
[null,{"$f":"IF(A225<>0,VLOOKUP(fatoura!A225,v,2,FALSE),\"\")","v":""},null,{"$f":"IF(A225<>0,VLOOKUP(fatoura!A225,v,4,FALSE),\"\")","v":""},"",""]
[null,{"$f":"IF(A226<>0,VLOOKUP(fatoura!A226,v,2,FALSE),\"\")","v":""},null,{"$f":"IF(A226<>0,VLOOKUP(fatoura!A226,v,4,FALSE),\"\")","v":""},"",""]
[null,{"$f":"IF(A227<>0,VLOOKUP(fatoura!A227,v,2,FALSE),\"\")","v":""},null,{"$f":"IF(A227<>0,VLOOKUP(fatoura!A227,v,4,FALSE),\"\")","v":""},"",""]
[null,{"$f":"IF(A228<>0,VLOOKUP(fatoura!A228,v,2,FALSE),\"\")","v":""},null,{"$f":"IF(A228<>0,VLOOKUP(fatoura!A228,v,4,FALSE),\"\")","v":""},"",""]
[null,{"$f":"IF(A229<>0,VLOOKUP(fatoura!A229,v,2,FALSE),\"\")","v":""},null,{"$f":"IF(A229<>0,VLOOKUP(fatoura!A229,v,4,FALSE),\"\")","v":""},"",""]
[null,{"$f":"IF(A230<>0,VLOOKUP(fatoura!A230,v,2,FALSE),\"\")","v":""},null,{"$f":"IF(A230<>0,VLOOKUP(fatoura!A230,v,4,FALSE),\"\")","v":""},"",""]
[null,{"$f":"IF(A231<>0,VLOOKUP(fatoura!A231,v,2,FALSE),\"\")","v":""},null,{"$f":"IF(A231<>0,VLOOKUP(fatoura!A231,v,4,FALSE),\"\")","v":""},"",""]
[null,{"$f":"IF(A232<>0,VLOOKUP(fatoura!A232,v,2,FALSE),\"\")","v":""},null,{"$f":"IF(A232<>0,VLOOKUP(fatoura!A232,v,4,FALSE),\"\")","v":""},"",""]
[null,{"$f":"IF(A233<>0,VLOOKUP(fatoura!A233,v,2,FALSE),\"\")","v":""},null,{"$f":"IF(A233<>0,VLOOKUP(fatoura!A233,v,4,FALSE),\"\")","v":""},"",""]
[null,{"$f":"IF(A234<>0,VLOOKUP(fatoura!A234,v,2,FALSE),\"\")","v":""},null,{"$f":"IF(A234<>0,VLOOKUP(fatoura!A234,v,4,FALSE),\"\")","v":""},"",""]
[null,{"$f":"IF(A235<>0,VLOOKUP(fatoura!A235,v,2,FALSE),\"\")","v":""},null,{"$f":"IF(A235<>0,VLOOKUP(fatoura!A235,v,4,FALSE),\"\")","v":""},"",""]
[null,{"$f":"IF(A236<>0,VLOOKUP(fatoura!A236,v,2,FALSE),\"\")","v":""},null,{"$f":"IF(A236<>0,VLOOKUP(fatoura!A236,v,4,FALSE),\"\")","v":""},"",""]
[null,{"$f":"IF(A237<>0,VLOOKUP(fatoura!A237,v,2,FALSE),\"\")","v":""},null,{"$f":"IF(A237<>0,VLOOKUP(fatoura!A237,v,4,FALSE),\"\")","v":""},"",""]
[null,{"$f":"IF(A238<>0,VLOOKUP(fatoura!A238,v,2,FALSE),\"\")","v":""},null,{"$f":"IF(A238<>0,VLOOKUP(fatoura!A238,v,4,FALSE),\"\")","v":""},"",""]
[null,{"$f":"IF(A239<>0,VLOOKUP(fatoura!A239,v,2,FALSE),\"\")","v":""},null,{"$f":"IF(A239<>0,VLOOKUP(fatoura!A239,v,4,FALSE),\"\")","v":""},"",""]
[null,{"$f":"IF(A240<>0,VLOOKUP(fatoura!A240,v,2,FALSE),\"\")","v":""},null,{"$f":"IF(A240<>0,VLOOKUP(fatoura!A240,v,4,FALSE),\"\")","v":""},"",""]
[null,{"$f":"IF(A241<>0,VLOOKUP(fatoura!A241,v,2,FALSE),\"\")","v":""},null,{"$f":"IF(A241<>0,VLOOKUP(fatoura!A241,v,4,FALSE),\"\")","v":""},"",""]
[null,{"$f":"IF(A242<>0,VLOOKUP(fatoura!A242,v,2,FALSE),\"\")","v":""},null,{"$f":"IF(A242<>0,VLOOKUP(fatoura!A242,v,4,FALSE),\"\")","v":""},"",""]
[null,{"$f":"IF(A243<>0,VLOOKUP(fatoura!A243,v,2,FALSE),\"\")","v":""},null,{"$f":"IF(A243<>0,VLOOKUP(fatoura!A243,v,4,FALSE),\"\")","v":""},"",""]
[null,{"$f":"IF(A244<>0,VLOOKUP(fatoura!A244,v,2,FALSE),\"\")","v":""},null,{"$f":"IF(A244<>0,VLOOKUP(fatoura!A244,v,4,FALSE),\"\")","v":""},"",""]
[null,{"$f":"IF(A245<>0,VLOOKUP(fatoura!A245,v,2,FALSE),\"\")","v":""},null,{"$f":"IF(A245<>0,VLOOKUP(fatoura!A245,v,4,FALSE),\"\")","v":""},"",""]
[null,{"$f":"IF(A246<>0,VLOOKUP(fatoura!A246,v,2,FALSE),\"\")","v":""},null,{"$f":"IF(A246<>0,VLOOKUP(fatoura!A246,v,4,FALSE),\"\")","v":""},"",""]
[null,{"$f":"IF(A247<>0,VLOOKUP(fatoura!A247,v,2,FALSE),\"\")","v":""},null,{"$f":"IF(A247<>0,VLOOKUP(fatoura!A247,v,4,FALSE),\"\")","v":""},"",""]
[null,{"$f":"IF(A248<>0,VLOOKUP(fatoura!A248,v,2,FALSE),\"\")","v":""},null,{"$f":"IF(A248<>0,VLOOKUP(fatoura!A248,v,4,FALSE),\"\")","v":""},"",""]
[null,{"$f":"IF(A249<>0,VLOOKUP(fatoura!A249,v,2,FALSE),\"\")","v":""},null,{"$f":"IF(A249<>0,VLOOKUP(fatoura!A249,v,4,FALSE),\"\")","v":""},"",""]
[null,{"$f":"IF(A250<>0,VLOOKUP(fatoura!A250,v,2,FALSE),\"\")","v":""},null,{"$f":"IF(A250<>0,VLOOKUP(fatoura!A250,v,4,FALSE),\"\")","v":""},"",""]
[null,{"$f":"IF(A251<>0,VLOOKUP(fatoura!A251,v,2,FALSE),\"\")","v":""},null,{"$f":"IF(A251<>0,VLOOKUP(fatoura!A251,v,4,FALSE),\"\")","v":""},"",""]
[null,{"$f":"IF(A252<>0,VLOOKUP(fatoura!A252,v,2,FALSE),\"\")","v":""},null,{"$f":"IF(A252<>0,VLOOKUP(fatoura!A252,v,4,FALSE),\"\")","v":""},"",""]
[null,{"$f":"IF(A253<>0,VLOOKUP(fatoura!A253,v,2,FALSE),\"\")","v":""},null,{"$f":"IF(A253<>0,VLOOKUP(fatoura!A253,v,4,FALSE),\"\")","v":""},"",""]
[null,{"$f":"IF(A254<>0,VLOOKUP(fatoura!A254,v,2,FALSE),\"\")","v":""},null,{"$f":"IF(A254<>0,VLOOKUP(fatoura!A254,v,4,FALSE),\"\")","v":""},"",""]
[null,{"$f":"IF(A255<>0,VLOOKUP(fatoura!A255,v,2,FALSE),\"\")","v":""},null,{"$f":"IF(A255<>0,VLOOKUP(fatoura!A255,v,4,FALSE),\"\")","v":""},"",""]
[null,{"$f":"IF(A256<>0,VLOOKUP(fatoura!A256,v,2,FALSE),\"\")","v":""},null,{"$f":"IF(A256<>0,VLOOKUP(fatoura!A256,v,4,FALSE),\"\")","v":""},"",""]
[null,{"$f":"IF(A257<>0,VLOOKUP(fatoura!A257,v,2,FALSE),\"\")","v":""},null,{"$f":"IF(A257<>0,VLOOKUP(fatoura!A257,v,4,FALSE),\"\")","v":""},"",""]
[null,{"$f":"IF(A258<>0,VLOOKUP(fatoura!A258,v,2,FALSE),\"\")","v":""},null,{"$f":"IF(A258<>0,VLOOKUP(fatoura!A258,v,4,FALSE),\"\")","v":""},"",""]
[null,{"$f":"IF(A259<>0,VLOOKUP(fatoura!A259,v,2,FALSE),\"\")","v":""},null,{"$f":"IF(A259<>0,VLOOKUP(fatoura!A259,v,4,FALSE),\"\")","v":""},"",""]
[null,{"$f":"IF(A260<>0,VLOOKUP(fatoura!A260,v,2,FALSE),\"\")","v":""},null,{"$f":"IF(A260<>0,VLOOKUP(fatoura!A260,v,4,FALSE),\"\")","v":""},"",""]
[null,{"$f":"IF(A261<>0,VLOOKUP(fatoura!A261,v,2,FALSE),\"\")","v":""},null,{"$f":"IF(A261<>0,VLOOKUP(fatoura!A261,v,4,FALSE),\"\")","v":""},"",""]
[null,{"$f":"IF(A262<>0,VLOOKUP(fatoura!A262,v,2,FALSE),\"\")","v":""},null,{"$f":"IF(A262<>0,VLOOKUP(fatoura!A262,v,4,FALSE),\"\")","v":""},"",""]
[null,{"$f":"IF(A263<>0,VLOOKUP(fatoura!A263,v,2,FALSE),\"\")","v":""},null,{"$f":"IF(A263<>0,VLOOKUP(fatoura!A263,v,4,FALSE),\"\")","v":""},"",""]
[null,{"$f":"IF(A264<>0,VLOOKUP(fatoura!A264,v,2,FALSE),\"\")","v":""},null,{"$f":"IF(A264<>0,VLOOKUP(fatoura!A264,v,4,FALSE),\"\")","v":""},"",""]
[null,{"$f":"IF(A265<>0,VLOOKUP(fatoura!A265,v,2,FALSE),\"\")","v":""},null,{"$f":"IF(A265<>0,VLOOKUP(fatoura!A265,v,4,FALSE),\"\")","v":""},"",{"$f":"IF(A265<>0,SUM(E265*C265),\"\")","v":""}]
[null,{"$f":"IF(A266<>0,VLOOKUP(fatoura!A266,v,2,FALSE),\"\")","v":""},null,{"$f":"IF(A266<>0,VLOOKUP(fatoura!A266,v,4,FALSE),\"\")","v":""},"",""]
[null,{"$f":"IF(A267<>0,VLOOKUP(fatoura!A267,v,2,FALSE),\"\")","v":""},null,{"$f":"IF(A267<>0,VLOOKUP(fatoura!A267,v,4,FALSE),\"\")","v":""},"",""]
[null,{"$f":"IF(A268<>0,VLOOKUP(fatoura!A268,v,2,FALSE),\"\")","v":""},null,{"$f":"IF(A268<>0,VLOOKUP(fatoura!A268,v,4,FALSE),\"\")","v":""},"",""]
[null,{"$f":"IF(A269<>0,VLOOKUP(fatoura!A269,v,2,FALSE),\"\")","v":""},null,{"$f":"IF(A269<>0,VLOOKUP(fatoura!A269,v,4,FALSE),\"\")","v":""},"",""]
[null,{"$f":"IF(A270<>0,VLOOKUP(fatoura!A270,v,2,FALSE),\"\")","v":""},null,{"$f":"IF(A270<>0,VLOOKUP(fatoura!A270,v,4,FALSE),\"\")","v":""},"",""]
[null,{"$f":"IF(A271<>0,VLOOKUP(fatoura!A271,v,2,FALSE),\"\")","v":""},null,{"$f":"IF(A271<>0,VLOOKUP(fatoura!A271,v,4,FALSE),\"\")","v":""},"",""]
[null,{"$f":"IF(A272<>0,VLOOKUP(fatoura!A272,v,2,FALSE),\"\")","v":""},null,{"$f":"IF(A272<>0,VLOOKUP(fatoura!A272,v,4,FALSE),\"\")","v":""},"",""]
[null,{"$f":"IF(A273<>0,VLOOKUP(fatoura!A273,v,2,FALSE),\"\")","v":""},null,{"$f":"IF(A273<>0,VLOOKUP(fatoura!A273,v,4,FALSE),\"\")","v":""},"",""]
[null,{"$f":"IF(A274<>0,VLOOKUP(fatoura!A274,v,2,FALSE),\"\")","v":""},null,{"$f":"IF(A274<>0,VLOOKUP(fatoura!A274,v,4,FALSE),\"\")","v":""},"",""]
[null,{"$f":"IF(A275<>0,VLOOKUP(fatoura!A275,v,2,FALSE),\"\")","v":""},null,{"$f":"IF(A275<>0,VLOOKUP(fatoura!A275,v,4,FALSE),\"\")","v":""},"",""]
[null,{"$f":"IF(A276<>0,VLOOKUP(fatoura!A276,v,2,FALSE),\"\")","v":""},null,{"$f":"IF(A276<>0,VLOOKUP(fatoura!A276,v,4,FALSE),\"\")","v":""},"",""]
[null,{"$f":"IF(A277<>0,VLOOKUP(fatoura!A277,v,2,FALSE),\"\")","v":""},null,{"$f":"IF(A277<>0,VLOOKUP(fatoura!A277,v,4,FALSE),\"\")","v":""},"",""]
[null,{"$f":"IF(A278<>0,VLOOKUP(fatoura!A278,v,2,FALSE),\"\")","v":""},null,{"$f":"IF(A278<>0,VLOOKUP(fatoura!A278,v,4,FALSE),\"\")","v":""},"",""]
[null,{"$f":"IF(A279<>0,VLOOKUP(fatoura!A279,v,2,FALSE),\"\")","v":""},null,{"$f":"IF(A279<>0,VLOOKUP(fatoura!A279,v,4,FALSE),\"\")","v":""},"",""]
[null,{"$f":"IF(A280<>0,VLOOKUP(fatoura!A280,v,2,FALSE),\"\")","v":""},null,{"$f":"IF(A280<>0,VLOOKUP(fatoura!A280,v,4,FALSE),\"\")","v":""},"",""]
[null,{"$f":"IF(A281<>0,VLOOKUP(fatoura!A281,v,2,FALSE),\"\")","v":""},null,{"$f":"IF(A281<>0,VLOOKUP(fatoura!A281,v,4,FALSE),\"\")","v":""},"",""]
[null,{"$f":"IF(A282<>0,VLOOKUP(fatoura!A282,v,2,FALSE),\"\")","v":""},null,{"$f":"IF(A282<>0,VLOOKUP(fatoura!A282,v,4,FALSE),\"\")","v":""},"",""]
[null,{"$f":"IF(A283<>0,VLOOKUP(fatoura!A283,v,2,FALSE),\"\")","v":""},null,{"$f":"IF(A283<>0,VLOOKUP(fatoura!A283,v,4,FALSE),\"\")","v":""},"",""]
[null,{"$f":"IF(A284<>0,VLOOKUP(fatoura!A284,v,2,FALSE),\"\")","v":""},null,{"$f":"IF(A284<>0,VLOOKUP(fatoura!A284,v,4,FALSE),\"\")","v":""},"",""]
[null,{"$f":"IF(A285<>0,VLOOKUP(fatoura!A285,v,2,FALSE),\"\")","v":""},null,{"$f":"IF(A285<>0,VLOOKUP(fatoura!A285,v,4,FALSE),\"\")","v":""},"",""]
[null,{"$f":"IF(A286<>0,VLOOKUP(fatoura!A286,v,2,FALSE),\"\")","v":""},null,{"$f":"IF(A286<>0,VLOOKUP(fatoura!A286,v,4,FALSE),\"\")","v":""},"",""]
[null,{"$f":"IF(A287<>0,VLOOKUP(fatoura!A287,v,2,FALSE),\"\")","v":""},null,{"$f":"IF(A287<>0,VLOOKUP(fatoura!A287,v,4,FALSE),\"\")","v":""},"",""]
[null,{"$f":"IF(A288<>0,VLOOKUP(fatoura!A288,v,2,FALSE),\"\")","v":""},null,{"$f":"IF(A288<>0,VLOOKUP(fatoura!A288,v,4,FALSE),\"\")","v":""},"",""]
[null,{"$f":"IF(A289<>0,VLOOKUP(fatoura!A289,v,2,FALSE),\"\")","v":""},null,{"$f":"IF(A289<>0,VLOOKUP(fatoura!A289,v,4,FALSE),\"\")","v":""},"",""]
[null,{"$f":"IF(A290<>0,VLOOKUP(fatoura!A290,v,2,FALSE),\"\")","v":""},null,{"$f":"IF(A290<>0,VLOOKUP(fatoura!A290,v,4,FALSE),\"\")","v":""},"",""]
[null,{"$f":"IF(A291<>0,VLOOKUP(fatoura!A291,v,2,FALSE),\"\")","v":""},null,{"$f":"IF(A291<>0,VLOOKUP(fatoura!A291,v,4,FALSE),\"\")","v":""},"",""]
[null,{"$f":"IF(A292<>0,VLOOKUP(fatoura!A292,v,2,FALSE),\"\")","v":""},null,{"$f":"IF(A292<>0,VLOOKUP(fatoura!A292,v,4,FALSE),\"\")","v":""},"",""]
[null,{"$f":"IF(A293<>0,VLOOKUP(fatoura!A293,v,2,FALSE),\"\")","v":""},null,{"$f":"IF(A293<>0,VLOOKUP(fatoura!A293,v,4,FALSE),\"\")","v":""},"",""]
[null,{"$f":"IF(A294<>0,VLOOKUP(fatoura!A294,v,2,FALSE),\"\")","v":""},null,{"$f":"IF(A294<>0,VLOOKUP(fatoura!A294,v,4,FALSE),\"\")","v":""},"",""]
[null,{"$f":"IF(A295<>0,VLOOKUP(fatoura!A295,v,2,FALSE),\"\")","v":""},null,{"$f":"IF(A295<>0,VLOOKUP(fatoura!A295,v,4,FALSE),\"\")","v":""},"",""]
[null,{"$f":"IF(A296<>0,VLOOKUP(fatoura!A296,v,2,FALSE),\"\")","v":""},null,{"$f":"IF(A296<>0,VLOOKUP(fatoura!A296,v,4,FALSE),\"\")","v":""},"",""]
[null,{"$f":"IF(A297<>0,VLOOKUP(fatoura!A297,v,2,FALSE),\"\")","v":""},null,{"$f":"IF(A297<>0,VLOOKUP(fatoura!A297,v,4,FALSE),\"\")","v":""},"",""]
[null,{"$f":"IF(A298<>0,VLOOKUP(fatoura!A298,v,2,FALSE),\"\")","v":""},null,{"$f":"IF(A298<>0,VLOOKUP(fatoura!A298,v,4,FALSE),\"\")","v":""},"",""]
[null,{"$f":"IF(A299<>0,VLOOKUP(fatoura!A299,v,2,FALSE),\"\")","v":""},null,{"$f":"IF(A299<>0,VLOOKUP(fatoura!A299,v,4,FALSE),\"\")","v":""},"",""]
[null,{"$f":"IF(A300<>0,VLOOKUP(fatoura!A300,v,2,FALSE),\"\")","v":""},null,{"$f":"IF(A300<>0,VLOOKUP(fatoura!A300,v,4,FALSE),\"\")","v":""},"",""]
[null,{"$f":"IF(A301<>0,VLOOKUP(fatoura!A301,v,2,FALSE),\"\")","v":""},null,{"$f":"IF(A301<>0,VLOOKUP(fatoura!A301,v,4,FALSE),\"\")","v":""},"",""]
[null,{"$f":"IF(A302<>0,VLOOKUP(fatoura!A302,v,2,FALSE),\"\")","v":""},null,{"$f":"IF(A302<>0,VLOOKUP(fatoura!A302,v,4,FALSE),\"\")","v":""},"",""]
[null,{"$f":"IF(A303<>0,VLOOKUP(fatoura!A303,v,2,FALSE),\"\")","v":""},null,{"$f":"IF(A303<>0,VLOOKUP(fatoura!A303,v,4,FALSE),\"\")","v":""},"",""]
[null,{"$f":"IF(A304<>0,VLOOKUP(fatoura!A304,v,2,FALSE),\"\")","v":""},null,{"$f":"IF(A304<>0,VLOOKUP(fatoura!A304,v,4,FALSE),\"\")","v":""},"",""]
[null,{"$f":"IF(A305<>0,VLOOKUP(fatoura!A305,v,2,FALSE),\"\")","v":""},null,{"$f":"IF(A305<>0,VLOOKUP(fatoura!A305,v,4,FALSE),\"\")","v":""},"",""]
[null,{"$f":"IF(A306<>0,VLOOKUP(fatoura!A306,v,2,FALSE),\"\")","v":""},null,{"$f":"IF(A306<>0,VLOOKUP(fatoura!A306,v,4,FALSE),\"\")","v":""},"",""]
[null,{"$f":"IF(A307<>0,VLOOKUP(fatoura!A307,v,2,FALSE),\"\")","v":""},null,{"$f":"IF(A307<>0,VLOOKUP(fatoura!A307,v,4,FALSE),\"\")","v":""},"",""]
[null,{"$f":"IF(A308<>0,VLOOKUP(fatoura!A308,v,2,FALSE),\"\")","v":""},null,{"$f":"IF(A308<>0,VLOOKUP(fatoura!A308,v,4,FALSE),\"\")","v":""},"",""]
[null,{"$f":"IF(A309<>0,VLOOKUP(fatoura!A309,v,2,FALSE),\"\")","v":""},null,{"$f":"IF(A309<>0,VLOOKUP(fatoura!A309,v,4,FALSE),\"\")","v":""},"",""]
[null,{"$f":"IF(A310<>0,VLOOKUP(fatoura!A310,v,2,FALSE),\"\")","v":""},null,{"$f":"IF(A310<>0,VLOOKUP(fatoura!A310,v,4,FALSE),\"\")","v":""},"",""]
[null,{"$f":"IF(A311<>0,VLOOKUP(fatoura!A311,v,2,FALSE),\"\")","v":""},null,{"$f":"IF(A311<>0,VLOOKUP(fatoura!A311,v,4,FALSE),\"\")","v":""},"",""]
[null,{"$f":"IF(A312<>0,VLOOKUP(fatoura!A312,v,2,FALSE),\"\")","v":""},null,{"$f":"IF(A312<>0,VLOOKUP(fatoura!A312,v,4,FALSE),\"\")","v":""},"",""]
[null,{"$f":"IF(A313<>0,VLOOKUP(fatoura!A313,v,2,FALSE),\"\")","v":""},null,{"$f":"IF(A313<>0,VLOOKUP(fatoura!A313,v,4,FALSE),\"\")","v":""},"",""]
[null,{"$f":"IF(A314<>0,VLOOKUP(fatoura!A314,v,2,FALSE),\"\")","v":""},null,{"$f":"IF(A314<>0,VLOOKUP(fatoura!A314,v,4,FALSE),\"\")","v":""},"",""]
[null,{"$f":"IF(A315<>0,VLOOKUP(fatoura!A315,v,2,FALSE),\"\")","v":""},null,{"$f":"IF(A315<>0,VLOOKUP(fatoura!A315,v,4,FALSE),\"\")","v":""},"",""]
[null,{"$f":"IF(A316<>0,VLOOKUP(fatoura!A316,v,2,FALSE),\"\")","v":""},null,{"$f":"IF(A316<>0,VLOOKUP(fatoura!A316,v,4,FALSE),\"\")","v":""},"",""]
[null,{"$f":"IF(A317<>0,VLOOKUP(fatoura!A317,v,2,FALSE),\"\")","v":""},null,{"$f":"IF(A317<>0,VLOOKUP(fatoura!A317,v,4,FALSE),\"\")","v":""},"",""]
[null,{"$f":"IF(A318<>0,VLOOKUP(fatoura!A318,v,2,FALSE),\"\")","v":""},null,{"$f":"IF(A318<>0,VLOOKUP(fatoura!A318,v,4,FALSE),\"\")","v":""},"",""]
[null,{"$f":"IF(A319<>0,VLOOKUP(fatoura!A319,v,2,FALSE),\"\")","v":""},null,{"$f":"IF(A319<>0,VLOOKUP(fatoura!A319,v,4,FALSE),\"\")","v":""},"",""]
[null,{"$f":"IF(A320<>0,VLOOKUP(fatoura!A320,v,2,FALSE),\"\")","v":""},null,{"$f":"IF(A320<>0,VLOOKUP(fatoura!A320,v,4,FALSE),\"\")","v":""},"",""]
[null,{"$f":"IF(A321<>0,VLOOKUP(fatoura!A321,v,2,FALSE),\"\")","v":""},null,{"$f":"IF(A321<>0,VLOOKUP(fatoura!A321,v,4,FALSE),\"\")","v":""},"",""]
[null,{"$f":"IF(A322<>0,VLOOKUP(fatoura!A322,v,2,FALSE),\"\")","v":""},null,{"$f":"IF(A322<>0,VLOOKUP(fatoura!A322,v,4,FALSE),\"\")","v":""},"",""]
[null,{"$f":"IF(A323<>0,VLOOKUP(fatoura!A323,v,2,FALSE),\"\")","v":""},null,{"$f":"IF(A323<>0,VLOOKUP(fatoura!A323,v,4,FALSE),\"\")","v":""},"",""]
[null,{"$f":"IF(A324<>0,VLOOKUP(fatoura!A324,v,2,FALSE),\"\")","v":""},null,{"$f":"IF(A324<>0,VLOOKUP(fatoura!A324,v,4,FALSE),\"\")","v":""},"",""]
[null,{"$f":"IF(A325<>0,VLOOKUP(fatoura!A325,v,2,FALSE),\"\")","v":""},null,{"$f":"IF(A325<>0,VLOOKUP(fatoura!A325,v,4,FALSE),\"\")","v":""},"",""]
[null,{"$f":"IF(A326<>0,VLOOKUP(fatoura!A326,v,2,FALSE),\"\")","v":""},null,{"$f":"IF(A326<>0,VLOOKUP(fatoura!A326,v,4,FALSE),\"\")","v":""},"",""]
[null,{"$f":"IF(A327<>0,VLOOKUP(fatoura!A327,v,2,FALSE),\"\")","v":""},null,{"$f":"IF(A327<>0,VLOOKUP(fatoura!A327,v,4,FALSE),\"\")","v":""},"",""]
[null,{"$f":"IF(A328<>0,VLOOKUP(fatoura!A328,v,2,FALSE),\"\")","v":""},null,{"$f":"IF(A328<>0,VLOOKUP(fatoura!A328,v,4,FALSE),\"\")","v":""},"",""]
[null,{"$f":"IF(A329<>0,VLOOKUP(fatoura!A329,v,2,FALSE),\"\")","v":""},null,{"$f":"IF(A329<>0,VLOOKUP(fatoura!A329,v,4,FALSE),\"\")","v":""},"",{"$f":"IF(A329<>0,SUM(E329*C329),\"\")","v":""}]
[null,{"$f":"IF(A330<>0,VLOOKUP(fatoura!A330,v,2,FALSE),\"\")","v":""},null,{"$f":"IF(A330<>0,VLOOKUP(fatoura!A330,v,4,FALSE),\"\")","v":""},"",""]
[null,{"$f":"IF(A331<>0,VLOOKUP(fatoura!A331,v,2,FALSE),\"\")","v":""},null,{"$f":"IF(A331<>0,VLOOKUP(fatoura!A331,v,4,FALSE),\"\")","v":""},"",""]
[null,{"$f":"IF(A332<>0,VLOOKUP(fatoura!A332,v,2,FALSE),\"\")","v":""},null,{"$f":"IF(A332<>0,VLOOKUP(fatoura!A332,v,4,FALSE),\"\")","v":""},"",""]
[null,{"$f":"IF(A333<>0,VLOOKUP(fatoura!A333,v,2,FALSE),\"\")","v":""},null,{"$f":"IF(A333<>0,VLOOKUP(fatoura!A333,v,4,FALSE),\"\")","v":""},"",""]
[null,{"$f":"IF(A334<>0,VLOOKUP(fatoura!A334,v,2,FALSE),\"\")","v":""},null,{"$f":"IF(A334<>0,VLOOKUP(fatoura!A334,v,4,FALSE),\"\")","v":""},"",""]
[null,{"$f":"IF(A335<>0,VLOOKUP(fatoura!A335,v,2,FALSE),\"\")","v":""},null,{"$f":"IF(A335<>0,VLOOKUP(fatoura!A335,v,4,FALSE),\"\")","v":""},"",""]
[null,{"$f":"IF(A336<>0,VLOOKUP(fatoura!A336,v,2,FALSE),\"\")","v":""},null,{"$f":"IF(A336<>0,VLOOKUP(fatoura!A336,v,4,FALSE),\"\")","v":""},"",""]
[null,{"$f":"IF(A337<>0,VLOOKUP(fatoura!A337,v,2,FALSE),\"\")","v":""},null,{"$f":"IF(A337<>0,VLOOKUP(fatoura!A337,v,4,FALSE),\"\")","v":""},"",""]
[null,{"$f":"IF(A338<>0,VLOOKUP(fatoura!A338,v,2,FALSE),\"\")","v":""},null,{"$f":"IF(A338<>0,VLOOKUP(fatoura!A338,v,4,FALSE),\"\")","v":""},"",""]
[null,{"$f":"IF(A339<>0,VLOOKUP(fatoura!A339,v,2,FALSE),\"\")","v":""},null,{"$f":"IF(A339<>0,VLOOKUP(fatoura!A339,v,4,FALSE),\"\")","v":""},"",""]
[null,{"$f":"IF(A340<>0,VLOOKUP(fatoura!A340,v,2,FALSE),\"\")","v":""},null,{"$f":"IF(A340<>0,VLOOKUP(fatoura!A340,v,4,FALSE),\"\")","v":""},"",""]
[null,{"$f":"IF(A341<>0,VLOOKUP(fatoura!A341,v,2,FALSE),\"\")","v":""},null,{"$f":"IF(A341<>0,VLOOKUP(fatoura!A341,v,4,FALSE),\"\")","v":""},"",""]
[null,{"$f":"IF(A342<>0,VLOOKUP(fatoura!A342,v,2,FALSE),\"\")","v":""},null,{"$f":"IF(A342<>0,VLOOKUP(fatoura!A342,v,4,FALSE),\"\")","v":""},"",""]
[null,{"$f":"IF(A343<>0,VLOOKUP(fatoura!A343,v,2,FALSE),\"\")","v":""},null,{"$f":"IF(A343<>0,VLOOKUP(fatoura!A343,v,4,FALSE),\"\")","v":""},"",""]
[null,{"$f":"IF(A344<>0,VLOOKUP(fatoura!A344,v,2,FALSE),\"\")","v":""},null,{"$f":"IF(A344<>0,VLOOKUP(fatoura!A344,v,4,FALSE),\"\")","v":""},"",""]
[null,{"$f":"IF(A345<>0,VLOOKUP(fatoura!A345,v,2,FALSE),\"\")","v":""},null,{"$f":"IF(A345<>0,VLOOKUP(fatoura!A345,v,4,FALSE),\"\")","v":""},"",""]
[null,{"$f":"IF(A346<>0,VLOOKUP(fatoura!A346,v,2,FALSE),\"\")","v":""},null,{"$f":"IF(A346<>0,VLOOKUP(fatoura!A346,v,4,FALSE),\"\")","v":""},"",""]
[null,{"$f":"IF(A347<>0,VLOOKUP(fatoura!A347,v,2,FALSE),\"\")","v":""},null,{"$f":"IF(A347<>0,VLOOKUP(fatoura!A347,v,4,FALSE),\"\")","v":""},"",""]
[null,{"$f":"IF(A348<>0,VLOOKUP(fatoura!A348,v,2,FALSE),\"\")","v":""},null,{"$f":"IF(A348<>0,VLOOKUP(fatoura!A348,v,4,FALSE),\"\")","v":""},"",""]
[null,{"$f":"IF(A349<>0,VLOOKUP(fatoura!A349,v,2,FALSE),\"\")","v":""},null,{"$f":"IF(A349<>0,VLOOKUP(fatoura!A349,v,4,FALSE),\"\")","v":""},"",""]
[null,{"$f":"IF(A350<>0,VLOOKUP(fatoura!A350,v,2,FALSE),\"\")","v":""},null,{"$f":"IF(A350<>0,VLOOKUP(fatoura!A350,v,4,FALSE),\"\")","v":""},"",""]
[null,{"$f":"IF(A351<>0,VLOOKUP(fatoura!A351,v,2,FALSE),\"\")","v":""},null,{"$f":"IF(A351<>0,VLOOKUP(fatoura!A351,v,4,FALSE),\"\")","v":""},"",""]
[null,{"$f":"IF(A352<>0,VLOOKUP(fatoura!A352,v,2,FALSE),\"\")","v":""},null,{"$f":"IF(A352<>0,VLOOKUP(fatoura!A352,v,4,FALSE),\"\")","v":""},"",""]
[null,{"$f":"IF(A353<>0,VLOOKUP(fatoura!A353,v,2,FALSE),\"\")","v":""},null,{"$f":"IF(A353<>0,VLOOKUP(fatoura!A353,v,4,FALSE),\"\")","v":""},"",""]
[null,{"$f":"IF(A354<>0,VLOOKUP(fatoura!A354,v,2,FALSE),\"\")","v":""},null,{"$f":"IF(A354<>0,VLOOKUP(fatoura!A354,v,4,FALSE),\"\")","v":""},"",""]
[null,{"$f":"IF(A355<>0,VLOOKUP(fatoura!A355,v,2,FALSE),\"\")","v":""},null,{"$f":"IF(A355<>0,VLOOKUP(fatoura!A355,v,4,FALSE),\"\")","v":""},"",""]
[null,{"$f":"IF(A356<>0,VLOOKUP(fatoura!A356,v,2,FALSE),\"\")","v":""},null,{"$f":"IF(A356<>0,VLOOKUP(fatoura!A356,v,4,FALSE),\"\")","v":""},"",""]
[null,{"$f":"IF(A357<>0,VLOOKUP(fatoura!A357,v,2,FALSE),\"\")","v":""},null,{"$f":"IF(A357<>0,VLOOKUP(fatoura!A357,v,4,FALSE),\"\")","v":""},"",""]
[null,{"$f":"IF(A358<>0,VLOOKUP(fatoura!A358,v,2,FALSE),\"\")","v":""},null,{"$f":"IF(A358<>0,VLOOKUP(fatoura!A358,v,4,FALSE),\"\")","v":""},"",""]
[null,{"$f":"IF(A359<>0,VLOOKUP(fatoura!A359,v,2,FALSE),\"\")","v":""},null,{"$f":"IF(A359<>0,VLOOKUP(fatoura!A359,v,4,FALSE),\"\")","v":""},"",""]
[null,{"$f":"IF(A360<>0,VLOOKUP(fatoura!A360,v,2,FALSE),\"\")","v":""},null,{"$f":"IF(A360<>0,VLOOKUP(fatoura!A360,v,4,FALSE),\"\")","v":""},"",""]
[null,{"$f":"IF(A361<>0,VLOOKUP(fatoura!A361,v,2,FALSE),\"\")","v":""},null,{"$f":"IF(A361<>0,VLOOKUP(fatoura!A361,v,4,FALSE),\"\")","v":""},"",""]
[null,{"$f":"IF(A362<>0,VLOOKUP(fatoura!A362,v,2,FALSE),\"\")","v":""},null,{"$f":"IF(A362<>0,VLOOKUP(fatoura!A362,v,4,FALSE),\"\")","v":""},"",""]
[null,{"$f":"IF(A363<>0,VLOOKUP(fatoura!A363,v,2,FALSE),\"\")","v":""},null,{"$f":"IF(A363<>0,VLOOKUP(fatoura!A363,v,4,FALSE),\"\")","v":""},"",""]
[null,{"$f":"IF(A364<>0,VLOOKUP(fatoura!A364,v,2,FALSE),\"\")","v":""},null,{"$f":"IF(A364<>0,VLOOKUP(fatoura!A364,v,4,FALSE),\"\")","v":""},"",""]
[null,{"$f":"IF(A365<>0,VLOOKUP(fatoura!A365,v,2,FALSE),\"\")","v":""},null,{"$f":"IF(A365<>0,VLOOKUP(fatoura!A365,v,4,FALSE),\"\")","v":""},"",""]
[null,{"$f":"IF(A366<>0,VLOOKUP(fatoura!A366,v,2,FALSE),\"\")","v":""},null,{"$f":"IF(A366<>0,VLOOKUP(fatoura!A366,v,4,FALSE),\"\")","v":""},"",""]
[null,{"$f":"IF(A367<>0,VLOOKUP(fatoura!A367,v,2,FALSE),\"\")","v":""},null,{"$f":"IF(A367<>0,VLOOKUP(fatoura!A367,v,4,FALSE),\"\")","v":""},"",""]
[null,{"$f":"IF(A368<>0,VLOOKUP(fatoura!A368,v,2,FALSE),\"\")","v":""},null,{"$f":"IF(A368<>0,VLOOKUP(fatoura!A368,v,4,FALSE),\"\")","v":""},"",""]
[null,{"$f":"IF(A369<>0,VLOOKUP(fatoura!A369,v,2,FALSE),\"\")","v":""},null,{"$f":"IF(A369<>0,VLOOKUP(fatoura!A369,v,4,FALSE),\"\")","v":""},"",""]
[null,{"$f":"IF(A370<>0,VLOOKUP(fatoura!A370,v,2,FALSE),\"\")","v":""},null,{"$f":"IF(A370<>0,VLOOKUP(fatoura!A370,v,4,FALSE),\"\")","v":""},"",""]
[null,{"$f":"IF(A371<>0,VLOOKUP(fatoura!A371,v,2,FALSE),\"\")","v":""},null,{"$f":"IF(A371<>0,VLOOKUP(fatoura!A371,v,4,FALSE),\"\")","v":""},"",""]
[null,{"$f":"IF(A372<>0,VLOOKUP(fatoura!A372,v,2,FALSE),\"\")","v":""},null,{"$f":"IF(A372<>0,VLOOKUP(fatoura!A372,v,4,FALSE),\"\")","v":""},"",""]
[null,{"$f":"IF(A373<>0,VLOOKUP(fatoura!A373,v,2,FALSE),\"\")","v":""},null,{"$f":"IF(A373<>0,VLOOKUP(fatoura!A373,v,4,FALSE),\"\")","v":""},"",""]
[null,{"$f":"IF(A374<>0,VLOOKUP(fatoura!A374,v,2,FALSE),\"\")","v":""},null,{"$f":"IF(A374<>0,VLOOKUP(fatoura!A374,v,4,FALSE),\"\")","v":""},"",""]
[null,{"$f":"IF(A375<>0,VLOOKUP(fatoura!A375,v,2,FALSE),\"\")","v":""},null,{"$f":"IF(A375<>0,VLOOKUP(fatoura!A375,v,4,FALSE),\"\")","v":""},"",""]
[null,{"$f":"IF(A376<>0,VLOOKUP(fatoura!A376,v,2,FALSE),\"\")","v":""},null,{"$f":"IF(A376<>0,VLOOKUP(fatoura!A376,v,4,FALSE),\"\")","v":""},"",""]
[null,{"$f":"IF(A377<>0,VLOOKUP(fatoura!A377,v,2,FALSE),\"\")","v":""},null,{"$f":"IF(A377<>0,VLOOKUP(fatoura!A377,v,4,FALSE),\"\")","v":""},"",""]
[null,{"$f":"IF(A378<>0,VLOOKUP(fatoura!A378,v,2,FALSE),\"\")","v":""},null,{"$f":"IF(A378<>0,VLOOKUP(fatoura!A378,v,4,FALSE),\"\")","v":""},"",""]
[null,{"$f":"IF(A379<>0,VLOOKUP(fatoura!A379,v,2,FALSE),\"\")","v":""},null,{"$f":"IF(A379<>0,VLOOKUP(fatoura!A379,v,4,FALSE),\"\")","v":""},"",""]
[null,{"$f":"IF(A380<>0,VLOOKUP(fatoura!A380,v,2,FALSE),\"\")","v":""},null,{"$f":"IF(A380<>0,VLOOKUP(fatoura!A380,v,4,FALSE),\"\")","v":""},"",""]
[null,{"$f":"IF(A381<>0,VLOOKUP(fatoura!A381,v,2,FALSE),\"\")","v":""},null,{"$f":"IF(A381<>0,VLOOKUP(fatoura!A381,v,4,FALSE),\"\")","v":""},"",""]
[null,{"$f":"IF(A382<>0,VLOOKUP(fatoura!A382,v,2,FALSE),\"\")","v":""},null,{"$f":"IF(A382<>0,VLOOKUP(fatoura!A382,v,4,FALSE),\"\")","v":""},"",""]
[null,{"$f":"IF(A383<>0,VLOOKUP(fatoura!A383,v,2,FALSE),\"\")","v":""},null,{"$f":"IF(A383<>0,VLOOKUP(fatoura!A383,v,4,FALSE),\"\")","v":""},"",""]
[null,{"$f":"IF(A384<>0,VLOOKUP(fatoura!A384,v,2,FALSE),\"\")","v":""},null,{"$f":"IF(A384<>0,VLOOKUP(fatoura!A384,v,4,FALSE),\"\")","v":""},"",""]
[null,{"$f":"IF(A385<>0,VLOOKUP(fatoura!A385,v,2,FALSE),\"\")","v":""},null,{"$f":"IF(A385<>0,VLOOKUP(fatoura!A385,v,4,FALSE),\"\")","v":""},"",""]
[null,{"$f":"IF(A386<>0,VLOOKUP(fatoura!A386,v,2,FALSE),\"\")","v":""},null,{"$f":"IF(A386<>0,VLOOKUP(fatoura!A386,v,4,FALSE),\"\")","v":""},"",""]
[null,{"$f":"IF(A387<>0,VLOOKUP(fatoura!A387,v,2,FALSE),\"\")","v":""},null,{"$f":"IF(A387<>0,VLOOKUP(fatoura!A387,v,4,FALSE),\"\")","v":""},"",""]
[null,{"$f":"IF(A388<>0,VLOOKUP(fatoura!A388,v,2,FALSE),\"\")","v":""},null,{"$f":"IF(A388<>0,VLOOKUP(fatoura!A388,v,4,FALSE),\"\")","v":""},"",""]
[null,{"$f":"IF(A389<>0,VLOOKUP(fatoura!A389,v,2,FALSE),\"\")","v":""},null,{"$f":"IF(A389<>0,VLOOKUP(fatoura!A389,v,4,FALSE),\"\")","v":""},"",""]
[null,{"$f":"IF(A390<>0,VLOOKUP(fatoura!A390,v,2,FALSE),\"\")","v":""},null,{"$f":"IF(A390<>0,VLOOKUP(fatoura!A390,v,4,FALSE),\"\")","v":""},"",""]
[null,{"$f":"IF(A391<>0,VLOOKUP(fatoura!A391,v,2,FALSE),\"\")","v":""},null,{"$f":"IF(A391<>0,VLOOKUP(fatoura!A391,v,4,FALSE),\"\")","v":""},"",""]
[null,{"$f":"IF(A392<>0,VLOOKUP(fatoura!A392,v,2,FALSE),\"\")","v":""},null,{"$f":"IF(A392<>0,VLOOKUP(fatoura!A392,v,4,FALSE),\"\")","v":""},"",""]
[null,{"$f":"IF(A393<>0,VLOOKUP(fatoura!A393,v,2,FALSE),\"\")","v":""},null,{"$f":"IF(A393<>0,VLOOKUP(fatoura!A393,v,4,FALSE),\"\")","v":""},"",{"$f":"IF(A393<>0,SUM(E393*C393),\"\")","v":""}]
[null,{"$f":"IF(A394<>0,VLOOKUP(fatoura!A394,v,2,FALSE),\"\")","v":""},null,{"$f":"IF(A394<>0,VLOOKUP(fatoura!A394,v,4,FALSE),\"\")","v":""},"",""]
[null,{"$f":"IF(A395<>0,VLOOKUP(fatoura!A395,v,2,FALSE),\"\")","v":""},null,{"$f":"IF(A395<>0,VLOOKUP(fatoura!A395,v,4,FALSE),\"\")","v":""},"",""]
[null,{"$f":"IF(A396<>0,VLOOKUP(fatoura!A396,v,2,FALSE),\"\")","v":""},null,{"$f":"IF(A396<>0,VLOOKUP(fatoura!A396,v,4,FALSE),\"\")","v":""},"",""]
[null,{"$f":"IF(A397<>0,VLOOKUP(fatoura!A397,v,2,FALSE),\"\")","v":""},null,{"$f":"IF(A397<>0,VLOOKUP(fatoura!A397,v,4,FALSE),\"\")","v":""},"",""]
[null,{"$f":"IF(A398<>0,VLOOKUP(fatoura!A398,v,2,FALSE),\"\")","v":""},null,{"$f":"IF(A398<>0,VLOOKUP(fatoura!A398,v,4,FALSE),\"\")","v":""},"",""]
[null,{"$f":"IF(A399<>0,VLOOKUP(fatoura!A399,v,2,FALSE),\"\")","v":""},null,{"$f":"IF(A399<>0,VLOOKUP(fatoura!A399,v,4,FALSE),\"\")","v":""},"",""]
[null,{"$f":"IF(A400<>0,VLOOKUP(fatoura!A400,v,2,FALSE),\"\")","v":""},null,{"$f":"IF(A400<>0,VLOOKUP(fatoura!A400,v,4,FALSE),\"\")","v":""},"",""]
[null,{"$f":"IF(A401<>0,VLOOKUP(fatoura!A401,v,2,FALSE),\"\")","v":""},null,{"$f":"IF(A401<>0,VLOOKUP(fatoura!A401,v,4,FALSE),\"\")","v":""},"",""]
[null,{"$f":"IF(A402<>0,VLOOKUP(fatoura!A402,v,2,FALSE),\"\")","v":""},null,{"$f":"IF(A402<>0,VLOOKUP(fatoura!A402,v,4,FALSE),\"\")","v":""},"",""]
[null,{"$f":"IF(A403<>0,VLOOKUP(fatoura!A403,v,2,FALSE),\"\")","v":""},null,{"$f":"IF(A403<>0,VLOOKUP(fatoura!A403,v,4,FALSE),\"\")","v":""},"",""]
[null,{"$f":"IF(A404<>0,VLOOKUP(fatoura!A404,v,2,FALSE),\"\")","v":""},null,{"$f":"IF(A404<>0,VLOOKUP(fatoura!A404,v,4,FALSE),\"\")","v":""},"",""]
[null,{"$f":"IF(A405<>0,VLOOKUP(fatoura!A405,v,2,FALSE),\"\")","v":""},null,{"$f":"IF(A405<>0,VLOOKUP(fatoura!A405,v,4,FALSE),\"\")","v":""},"",""]
[null,{"$f":"IF(A406<>0,VLOOKUP(fatoura!A406,v,2,FALSE),\"\")","v":""},null,{"$f":"IF(A406<>0,VLOOKUP(fatoura!A406,v,4,FALSE),\"\")","v":""},"",""]
[null,{"$f":"IF(A407<>0,VLOOKUP(fatoura!A407,v,2,FALSE),\"\")","v":""},null,{"$f":"IF(A407<>0,VLOOKUP(fatoura!A407,v,4,FALSE),\"\")","v":""},"",""]
[null,{"$f":"IF(A408<>0,VLOOKUP(fatoura!A408,v,2,FALSE),\"\")","v":""},null,{"$f":"IF(A408<>0,VLOOKUP(fatoura!A408,v,4,FALSE),\"\")","v":""},"",""]
[null,{"$f":"IF(A409<>0,VLOOKUP(fatoura!A409,v,2,FALSE),\"\")","v":""},null,{"$f":"IF(A409<>0,VLOOKUP(fatoura!A409,v,4,FALSE),\"\")","v":""},"",""]
[null,{"$f":"IF(A410<>0,VLOOKUP(fatoura!A410,v,2,FALSE),\"\")","v":""},null,{"$f":"IF(A410<>0,VLOOKUP(fatoura!A410,v,4,FALSE),\"\")","v":""},"",""]
[null,{"$f":"IF(A411<>0,VLOOKUP(fatoura!A411,v,2,FALSE),\"\")","v":""},null,{"$f":"IF(A411<>0,VLOOKUP(fatoura!A411,v,4,FALSE),\"\")","v":""},"",""]
[null,{"$f":"IF(A412<>0,VLOOKUP(fatoura!A412,v,2,FALSE),\"\")","v":""},null,{"$f":"IF(A412<>0,VLOOKUP(fatoura!A412,v,4,FALSE),\"\")","v":""},"",""]
[null,{"$f":"IF(A413<>0,VLOOKUP(fatoura!A413,v,2,FALSE),\"\")","v":""},null,{"$f":"IF(A413<>0,VLOOKUP(fatoura!A413,v,4,FALSE),\"\")","v":""},"",""]
[null,{"$f":"IF(A414<>0,VLOOKUP(fatoura!A414,v,2,FALSE),\"\")","v":""},null,{"$f":"IF(A414<>0,VLOOKUP(fatoura!A414,v,4,FALSE),\"\")","v":""},"",""]
[null,{"$f":"IF(A415<>0,VLOOKUP(fatoura!A415,v,2,FALSE),\"\")","v":""},null,{"$f":"IF(A415<>0,VLOOKUP(fatoura!A415,v,4,FALSE),\"\")","v":""},"",""]
[null,{"$f":"IF(A416<>0,VLOOKUP(fatoura!A416,v,2,FALSE),\"\")","v":""},null,{"$f":"IF(A416<>0,VLOOKUP(fatoura!A416,v,4,FALSE),\"\")","v":""},"",""]
[null,{"$f":"IF(A417<>0,VLOOKUP(fatoura!A417,v,2,FALSE),\"\")","v":""},null,{"$f":"IF(A417<>0,VLOOKUP(fatoura!A417,v,4,FALSE),\"\")","v":""},"",""]
[null,{"$f":"IF(A418<>0,VLOOKUP(fatoura!A418,v,2,FALSE),\"\")","v":""},null,{"$f":"IF(A418<>0,VLOOKUP(fatoura!A418,v,4,FALSE),\"\")","v":""},"",""]
[null,{"$f":"IF(A419<>0,VLOOKUP(fatoura!A419,v,2,FALSE),\"\")","v":""},null,{"$f":"IF(A419<>0,VLOOKUP(fatoura!A419,v,4,FALSE),\"\")","v":""},"",""]
[null,{"$f":"IF(A420<>0,VLOOKUP(fatoura!A420,v,2,FALSE),\"\")","v":""},null,{"$f":"IF(A420<>0,VLOOKUP(fatoura!A420,v,4,FALSE),\"\")","v":""},"",""]
[null,{"$f":"IF(A421<>0,VLOOKUP(fatoura!A421,v,2,FALSE),\"\")","v":""},null,{"$f":"IF(A421<>0,VLOOKUP(fatoura!A421,v,4,FALSE),\"\")","v":""},"",""]
[null,{"$f":"IF(A422<>0,VLOOKUP(fatoura!A422,v,2,FALSE),\"\")","v":""},null,{"$f":"IF(A422<>0,VLOOKUP(fatoura!A422,v,4,FALSE),\"\")","v":""},"",""]
[null,{"$f":"IF(A423<>0,VLOOKUP(fatoura!A423,v,2,FALSE),\"\")","v":""},null,{"$f":"IF(A423<>0,VLOOKUP(fatoura!A423,v,4,FALSE),\"\")","v":""},"",""]
[null,{"$f":"IF(A424<>0,VLOOKUP(fatoura!A424,v,2,FALSE),\"\")","v":""},null,{"$f":"IF(A424<>0,VLOOKUP(fatoura!A424,v,4,FALSE),\"\")","v":""},"",""]
[null,{"$f":"IF(A425<>0,VLOOKUP(fatoura!A425,v,2,FALSE),\"\")","v":""},null,{"$f":"IF(A425<>0,VLOOKUP(fatoura!A425,v,4,FALSE),\"\")","v":""},"",""]
[null,{"$f":"IF(A426<>0,VLOOKUP(fatoura!A426,v,2,FALSE),\"\")","v":""},null,{"$f":"IF(A426<>0,VLOOKUP(fatoura!A426,v,4,FALSE),\"\")","v":""},"",""]
[null,{"$f":"IF(A427<>0,VLOOKUP(fatoura!A427,v,2,FALSE),\"\")","v":""},null,{"$f":"IF(A427<>0,VLOOKUP(fatoura!A427,v,4,FALSE),\"\")","v":""},"",""]
[null,{"$f":"IF(A428<>0,VLOOKUP(fatoura!A428,v,2,FALSE),\"\")","v":""},null,{"$f":"IF(A428<>0,VLOOKUP(fatoura!A428,v,4,FALSE),\"\")","v":""},"",""]
[null,{"$f":"IF(A429<>0,VLOOKUP(fatoura!A429,v,2,FALSE),\"\")","v":""},null,{"$f":"IF(A429<>0,VLOOKUP(fatoura!A429,v,4,FALSE),\"\")","v":""},"",""]
[null,{"$f":"IF(A430<>0,VLOOKUP(fatoura!A430,v,2,FALSE),\"\")","v":""},null,{"$f":"IF(A430<>0,VLOOKUP(fatoura!A430,v,4,FALSE),\"\")","v":""},"",""]
[null,{"$f":"IF(A431<>0,VLOOKUP(fatoura!A431,v,2,FALSE),\"\")","v":""},null,{"$f":"IF(A431<>0,VLOOKUP(fatoura!A431,v,4,FALSE),\"\")","v":""},"",""]
[null,{"$f":"IF(A432<>0,VLOOKUP(fatoura!A432,v,2,FALSE),\"\")","v":""},null,{"$f":"IF(A432<>0,VLOOKUP(fatoura!A432,v,4,FALSE),\"\")","v":""},"",""]
[null,{"$f":"IF(A433<>0,VLOOKUP(fatoura!A433,v,2,FALSE),\"\")","v":""},null,{"$f":"IF(A433<>0,VLOOKUP(fatoura!A433,v,4,FALSE),\"\")","v":""},"",""]
[null,{"$f":"IF(A434<>0,VLOOKUP(fatoura!A434,v,2,FALSE),\"\")","v":""},null,{"$f":"IF(A434<>0,VLOOKUP(fatoura!A434,v,4,FALSE),\"\")","v":""},"",""]
[null,{"$f":"IF(A435<>0,VLOOKUP(fatoura!A435,v,2,FALSE),\"\")","v":""},null,{"$f":"IF(A435<>0,VLOOKUP(fatoura!A435,v,4,FALSE),\"\")","v":""},"",""]
[null,{"$f":"IF(A436<>0,VLOOKUP(fatoura!A436,v,2,FALSE),\"\")","v":""},null,{"$f":"IF(A436<>0,VLOOKUP(fatoura!A436,v,4,FALSE),\"\")","v":""},"",""]
[null,{"$f":"IF(A437<>0,VLOOKUP(fatoura!A437,v,2,FALSE),\"\")","v":""},null,{"$f":"IF(A437<>0,VLOOKUP(fatoura!A437,v,4,FALSE),\"\")","v":""},"",""]
[null,{"$f":"IF(A438<>0,VLOOKUP(fatoura!A438,v,2,FALSE),\"\")","v":""},null,{"$f":"IF(A438<>0,VLOOKUP(fatoura!A438,v,4,FALSE),\"\")","v":""},"",""]
[null,{"$f":"IF(A439<>0,VLOOKUP(fatoura!A439,v,2,FALSE),\"\")","v":""},null,{"$f":"IF(A439<>0,VLOOKUP(fatoura!A439,v,4,FALSE),\"\")","v":""},"",""]
[null,{"$f":"IF(A440<>0,VLOOKUP(fatoura!A440,v,2,FALSE),\"\")","v":""},null,{"$f":"IF(A440<>0,VLOOKUP(fatoura!A440,v,4,FALSE),\"\")","v":""},"",""]
[null,{"$f":"IF(A441<>0,VLOOKUP(fatoura!A441,v,2,FALSE),\"\")","v":""},null,{"$f":"IF(A441<>0,VLOOKUP(fatoura!A441,v,4,FALSE),\"\")","v":""},"",""]
[null,{"$f":"IF(A442<>0,VLOOKUP(fatoura!A442,v,2,FALSE),\"\")","v":""},null,{"$f":"IF(A442<>0,VLOOKUP(fatoura!A442,v,4,FALSE),\"\")","v":""},"",""]
[null,{"$f":"IF(A443<>0,VLOOKUP(fatoura!A443,v,2,FALSE),\"\")","v":""},null,{"$f":"IF(A443<>0,VLOOKUP(fatoura!A443,v,4,FALSE),\"\")","v":""},"",""]
[null,{"$f":"IF(A444<>0,VLOOKUP(fatoura!A444,v,2,FALSE),\"\")","v":""},null,{"$f":"IF(A444<>0,VLOOKUP(fatoura!A444,v,4,FALSE),\"\")","v":""},"",""]
[null,{"$f":"IF(A445<>0,VLOOKUP(fatoura!A445,v,2,FALSE),\"\")","v":""},null,{"$f":"IF(A445<>0,VLOOKUP(fatoura!A445,v,4,FALSE),\"\")","v":""},"",""]
[null,{"$f":"IF(A446<>0,VLOOKUP(fatoura!A446,v,2,FALSE),\"\")","v":""},null,{"$f":"IF(A446<>0,VLOOKUP(fatoura!A446,v,4,FALSE),\"\")","v":""},"",""]
[null,{"$f":"IF(A447<>0,VLOOKUP(fatoura!A447,v,2,FALSE),\"\")","v":""},null,{"$f":"IF(A447<>0,VLOOKUP(fatoura!A447,v,4,FALSE),\"\")","v":""},"",""]
[null,{"$f":"IF(A448<>0,VLOOKUP(fatoura!A448,v,2,FALSE),\"\")","v":""},null,{"$f":"IF(A448<>0,VLOOKUP(fatoura!A448,v,4,FALSE),\"\")","v":""},"",""]
[null,{"$f":"IF(A449<>0,VLOOKUP(fatoura!A449,v,2,FALSE),\"\")","v":""},null,{"$f":"IF(A449<>0,VLOOKUP(fatoura!A449,v,4,FALSE),\"\")","v":""},"",""]
[null,{"$f":"IF(A450<>0,VLOOKUP(fatoura!A450,v,2,FALSE),\"\")","v":""},null,{"$f":"IF(A450<>0,VLOOKUP(fatoura!A450,v,4,FALSE),\"\")","v":""},"",""]
[null,{"$f":"IF(A451<>0,VLOOKUP(fatoura!A451,v,2,FALSE),\"\")","v":""},null,{"$f":"IF(A451<>0,VLOOKUP(fatoura!A451,v,4,FALSE),\"\")","v":""},"",""]
[null,{"$f":"IF(A452<>0,VLOOKUP(fatoura!A452,v,2,FALSE),\"\")","v":""},null,{"$f":"IF(A452<>0,VLOOKUP(fatoura!A452,v,4,FALSE),\"\")","v":""},"",""]
[null,{"$f":"IF(A453<>0,VLOOKUP(fatoura!A453,v,2,FALSE),\"\")","v":""},null,{"$f":"IF(A453<>0,VLOOKUP(fatoura!A453,v,4,FALSE),\"\")","v":""},"",""]
[null,{"$f":"IF(A454<>0,VLOOKUP(fatoura!A454,v,2,FALSE),\"\")","v":""},null,{"$f":"IF(A454<>0,VLOOKUP(fatoura!A454,v,4,FALSE),\"\")","v":""},"",""]
[null,{"$f":"IF(A455<>0,VLOOKUP(fatoura!A455,v,2,FALSE),\"\")","v":""},null,{"$f":"IF(A455<>0,VLOOKUP(fatoura!A455,v,4,FALSE),\"\")","v":""},"",""]
[null,{"$f":"IF(A456<>0,VLOOKUP(fatoura!A456,v,2,FALSE),\"\")","v":""},null,{"$f":"IF(A456<>0,VLOOKUP(fatoura!A456,v,4,FALSE),\"\")","v":""},"",""]
[null,{"$f":"IF(A457<>0,VLOOKUP(fatoura!A457,v,2,FALSE),\"\")","v":""},null,{"$f":"IF(A457<>0,VLOOKUP(fatoura!A457,v,4,FALSE),\"\")","v":""},"",{"$f":"IF(A457<>0,SUM(E457*C457),\"\")","v":""}]
[null,{"$f":"IF(A458<>0,VLOOKUP(fatoura!A458,v,2,FALSE),\"\")","v":""},null,{"$f":"IF(A458<>0,VLOOKUP(fatoura!A458,v,4,FALSE),\"\")","v":""},"",""]
[null,{"$f":"IF(A459<>0,VLOOKUP(fatoura!A459,v,2,FALSE),\"\")","v":""},null,{"$f":"IF(A459<>0,VLOOKUP(fatoura!A459,v,4,FALSE),\"\")","v":""},"",""]
[null,{"$f":"IF(A460<>0,VLOOKUP(fatoura!A460,v,2,FALSE),\"\")","v":""},null,{"$f":"IF(A460<>0,VLOOKUP(fatoura!A460,v,4,FALSE),\"\")","v":""},"",""]
[null,{"$f":"IF(A461<>0,VLOOKUP(fatoura!A461,v,2,FALSE),\"\")","v":""},null,{"$f":"IF(A461<>0,VLOOKUP(fatoura!A461,v,4,FALSE),\"\")","v":""},"",""]
[null,{"$f":"IF(A462<>0,VLOOKUP(fatoura!A462,v,2,FALSE),\"\")","v":""},null,{"$f":"IF(A462<>0,VLOOKUP(fatoura!A462,v,4,FALSE),\"\")","v":""},"",""]
[null,{"$f":"IF(A463<>0,VLOOKUP(fatoura!A463,v,2,FALSE),\"\")","v":""},null,{"$f":"IF(A463<>0,VLOOKUP(fatoura!A463,v,4,FALSE),\"\")","v":""},"",""]
[null,{"$f":"IF(A464<>0,VLOOKUP(fatoura!A464,v,2,FALSE),\"\")","v":""},null,{"$f":"IF(A464<>0,VLOOKUP(fatoura!A464,v,4,FALSE),\"\")","v":""},"",""]
[null,{"$f":"IF(A465<>0,VLOOKUP(fatoura!A465,v,2,FALSE),\"\")","v":""},null,{"$f":"IF(A465<>0,VLOOKUP(fatoura!A465,v,4,FALSE),\"\")","v":""},"",""]
[null,{"$f":"IF(A466<>0,VLOOKUP(fatoura!A466,v,2,FALSE),\"\")","v":""},null,{"$f":"IF(A466<>0,VLOOKUP(fatoura!A466,v,4,FALSE),\"\")","v":""},"",""]
[null,{"$f":"IF(A467<>0,VLOOKUP(fatoura!A467,v,2,FALSE),\"\")","v":""},null,{"$f":"IF(A467<>0,VLOOKUP(fatoura!A467,v,4,FALSE),\"\")","v":""},"",""]
[null,{"$f":"IF(A468<>0,VLOOKUP(fatoura!A468,v,2,FALSE),\"\")","v":""},null,{"$f":"IF(A468<>0,VLOOKUP(fatoura!A468,v,4,FALSE),\"\")","v":""},"",""]
[null,{"$f":"IF(A469<>0,VLOOKUP(fatoura!A469,v,2,FALSE),\"\")","v":""},null,{"$f":"IF(A469<>0,VLOOKUP(fatoura!A469,v,4,FALSE),\"\")","v":""},"",""]
[null,{"$f":"IF(A470<>0,VLOOKUP(fatoura!A470,v,2,FALSE),\"\")","v":""},null,{"$f":"IF(A470<>0,VLOOKUP(fatoura!A470,v,4,FALSE),\"\")","v":""},"",""]
[null,{"$f":"IF(A471<>0,VLOOKUP(fatoura!A471,v,2,FALSE),\"\")","v":""},null,{"$f":"IF(A471<>0,VLOOKUP(fatoura!A471,v,4,FALSE),\"\")","v":""},"",""]
[null,{"$f":"IF(A472<>0,VLOOKUP(fatoura!A472,v,2,FALSE),\"\")","v":""},null,{"$f":"IF(A472<>0,VLOOKUP(fatoura!A472,v,4,FALSE),\"\")","v":""},"",""]
[null,{"$f":"IF(A473<>0,VLOOKUP(fatoura!A473,v,2,FALSE),\"\")","v":""},null,{"$f":"IF(A473<>0,VLOOKUP(fatoura!A473,v,4,FALSE),\"\")","v":""},"",""]
[null,{"$f":"IF(A474<>0,VLOOKUP(fatoura!A474,v,2,FALSE),\"\")","v":""},null,{"$f":"IF(A474<>0,VLOOKUP(fatoura!A474,v,4,FALSE),\"\")","v":""},"",""]
[null,{"$f":"IF(A475<>0,VLOOKUP(fatoura!A475,v,2,FALSE),\"\")","v":""},null,{"$f":"IF(A475<>0,VLOOKUP(fatoura!A475,v,4,FALSE),\"\")","v":""},"",""]
[null,{"$f":"IF(A476<>0,VLOOKUP(fatoura!A476,v,2,FALSE),\"\")","v":""},null,{"$f":"IF(A476<>0,VLOOKUP(fatoura!A476,v,4,FALSE),\"\")","v":""},"",""]
[null,{"$f":"IF(A477<>0,VLOOKUP(fatoura!A477,v,2,FALSE),\"\")","v":""},null,{"$f":"IF(A477<>0,VLOOKUP(fatoura!A477,v,4,FALSE),\"\")","v":""},"",""]
[null,{"$f":"IF(A478<>0,VLOOKUP(fatoura!A478,v,2,FALSE),\"\")","v":""},null,{"$f":"IF(A478<>0,VLOOKUP(fatoura!A478,v,4,FALSE),\"\")","v":""},"",""]
[null,{"$f":"IF(A479<>0,VLOOKUP(fatoura!A479,v,2,FALSE),\"\")","v":""},null,{"$f":"IF(A479<>0,VLOOKUP(fatoura!A479,v,4,FALSE),\"\")","v":""},"",""]
[null,{"$f":"IF(A480<>0,VLOOKUP(fatoura!A480,v,2,FALSE),\"\")","v":""},null,{"$f":"IF(A480<>0,VLOOKUP(fatoura!A480,v,4,FALSE),\"\")","v":""},"",""]
[null,{"$f":"IF(A481<>0,VLOOKUP(fatoura!A481,v,2,FALSE),\"\")","v":""},null,{"$f":"IF(A481<>0,VLOOKUP(fatoura!A481,v,4,FALSE),\"\")","v":""},"",""]
[null,{"$f":"IF(A482<>0,VLOOKUP(fatoura!A482,v,2,FALSE),\"\")","v":""},null,{"$f":"IF(A482<>0,VLOOKUP(fatoura!A482,v,4,FALSE),\"\")","v":""},"",""]
[null,{"$f":"IF(A483<>0,VLOOKUP(fatoura!A483,v,2,FALSE),\"\")","v":""},null,{"$f":"IF(A483<>0,VLOOKUP(fatoura!A483,v,4,FALSE),\"\")","v":""},"",""]
[null,{"$f":"IF(A484<>0,VLOOKUP(fatoura!A484,v,2,FALSE),\"\")","v":""},null,{"$f":"IF(A484<>0,VLOOKUP(fatoura!A484,v,4,FALSE),\"\")","v":""},"",""]
[null,{"$f":"IF(A485<>0,VLOOKUP(fatoura!A485,v,2,FALSE),\"\")","v":""},null,{"$f":"IF(A485<>0,VLOOKUP(fatoura!A485,v,4,FALSE),\"\")","v":""},"",""]
[null,{"$f":"IF(A486<>0,VLOOKUP(fatoura!A486,v,2,FALSE),\"\")","v":""},null,{"$f":"IF(A486<>0,VLOOKUP(fatoura!A486,v,4,FALSE),\"\")","v":""},"",""]
[null,{"$f":"IF(A487<>0,VLOOKUP(fatoura!A487,v,2,FALSE),\"\")","v":""},null,{"$f":"IF(A487<>0,VLOOKUP(fatoura!A487,v,4,FALSE),\"\")","v":""},"",""]
[null,{"$f":"IF(A488<>0,VLOOKUP(fatoura!A488,v,2,FALSE),\"\")","v":""},null,{"$f":"IF(A488<>0,VLOOKUP(fatoura!A488,v,4,FALSE),\"\")","v":""},"",""]
[null,{"$f":"IF(A489<>0,VLOOKUP(fatoura!A489,v,2,FALSE),\"\")","v":""},null,{"$f":"IF(A489<>0,VLOOKUP(fatoura!A489,v,4,FALSE),\"\")","v":""},"",""]
[null,{"$f":"IF(A490<>0,VLOOKUP(fatoura!A490,v,2,FALSE),\"\")","v":""},null,{"$f":"IF(A490<>0,VLOOKUP(fatoura!A490,v,4,FALSE),\"\")","v":""},"",""]
[null,{"$f":"IF(A491<>0,VLOOKUP(fatoura!A491,v,2,FALSE),\"\")","v":""},null,{"$f":"IF(A491<>0,VLOOKUP(fatoura!A491,v,4,FALSE),\"\")","v":""},"",""]
[null,{"$f":"IF(A492<>0,VLOOKUP(fatoura!A492,v,2,FALSE),\"\")","v":""},null,{"$f":"IF(A492<>0,VLOOKUP(fatoura!A492,v,4,FALSE),\"\")","v":""},"",""]
[null,{"$f":"IF(A493<>0,VLOOKUP(fatoura!A493,v,2,FALSE),\"\")","v":""},null,{"$f":"IF(A493<>0,VLOOKUP(fatoura!A493,v,4,FALSE),\"\")","v":""},"",""]
[null,{"$f":"IF(A494<>0,VLOOKUP(fatoura!A494,v,2,FALSE),\"\")","v":""},null,{"$f":"IF(A494<>0,VLOOKUP(fatoura!A494,v,4,FALSE),\"\")","v":""},"",""]
[null,{"$f":"IF(A495<>0,VLOOKUP(fatoura!A495,v,2,FALSE),\"\")","v":""},null,{"$f":"IF(A495<>0,VLOOKUP(fatoura!A495,v,4,FALSE),\"\")","v":""},"",""]
[null,{"$f":"IF(A496<>0,VLOOKUP(fatoura!A496,v,2,FALSE),\"\")","v":""},null,{"$f":"IF(A496<>0,VLOOKUP(fatoura!A496,v,4,FALSE),\"\")","v":""},"",""]
[null,{"$f":"IF(A497<>0,VLOOKUP(fatoura!A497,v,2,FALSE),\"\")","v":""},null,{"$f":"IF(A497<>0,VLOOKUP(fatoura!A497,v,4,FALSE),\"\")","v":""},"",""]
[null,{"$f":"IF(A498<>0,VLOOKUP(fatoura!A498,v,2,FALSE),\"\")","v":""},null,{"$f":"IF(A498<>0,VLOOKUP(fatoura!A498,v,4,FALSE),\"\")","v":""},"",""]
[null,{"$f":"IF(A499<>0,VLOOKUP(fatoura!A499,v,2,FALSE),\"\")","v":""},null,{"$f":"IF(A499<>0,VLOOKUP(fatoura!A499,v,4,FALSE),\"\")","v":""},"",""]
[null,{"$f":"IF(A500<>0,VLOOKUP(fatoura!A500,v,2,FALSE),\"\")","v":""},null,{"$f":"IF(A500<>0,VLOOKUP(fatoura!A500,v,4,FALSE),\"\")","v":""},"",""]
[null,{"$f":"IF(A501<>0,VLOOKUP(fatoura!A501,v,2,FALSE),\"\")","v":""},"","",""]
[null,{"$f":"IF(A502<>0,VLOOKUP(fatoura!A502,v,2,FALSE),\"\")","v":""},"","",""]
[null,{"$f":"IF(A503<>0,VLOOKUP(fatoura!A503,v,2,FALSE),\"\")","v":""},"","",""]
[null,{"$f":"IF(A504<>0,VLOOKUP(fatoura!A504,v,2,FALSE),\"\")","v":""},"","",""]
[null,{"$f":"IF(A505<>0,VLOOKUP(fatoura!A505,v,2,FALSE),\"\")","v":""},"","",""]
[null,{"$f":"IF(A506<>0,VLOOKUP(fatoura!A506,v,2,FALSE),\"\")","v":""},"","",""]
[null,{"$f":"IF(A507<>0,VLOOKUP(fatoura!A507,v,2,FALSE),\"\")","v":""},"","",""]
[null,{"$f":"IF(A508<>0,VLOOKUP(fatoura!A508,v,2,FALSE),\"\")","v":""},"","",""]
[null,{"$f":"IF(A509<>0,VLOOKUP(fatoura!A509,v,2,FALSE),\"\")","v":""},"","",""]
[null,{"$f":"IF(A510<>0,VLOOKUP(fatoura!A510,v,2,FALSE),\"\")","v":""},"","",""]
[null,{"$f":"IF(A511<>0,VLOOKUP(fatoura!A511,v,2,FALSE),\"\")","v":""},"","",""]
[null,{"$f":"IF(A512<>0,VLOOKUP(fatoura!A512,v,2,FALSE),\"\")","v":""},"","",""]
[null,{"$f":"IF(A513<>0,VLOOKUP(fatoura!A513,v,2,FALSE),\"\")","v":""},"","",""]
[null,{"$f":"IF(A514<>0,VLOOKUP(fatoura!A514,v,2,FALSE),\"\")","v":""},"","",""]
[null,{"$f":"IF(A515<>0,VLOOKUP(fatoura!A515,v,2,FALSE),\"\")","v":""},"","",""]
[null,{"$f":"IF(A516<>0,VLOOKUP(fatoura!A516,v,2,FALSE),\"\")","v":""},"","",""]
[null,{"$f":"IF(A517<>0,VLOOKUP(fatoura!A517,v,2,FALSE),\"\")","v":""},"","",""]
[null,{"$f":"IF(A518<>0,VLOOKUP(fatoura!A518,v,2,FALSE),\"\")","v":""},"","",""]
[null,{"$f":"IF(A519<>0,VLOOKUP(fatoura!A519,v,2,FALSE),\"\")","v":""},"","",""]
[null,{"$f":"IF(A520<>0,VLOOKUP(fatoura!A520,v,2,FALSE),\"\")","v":""},"","",""]
[null,{"$f":"IF(A521<>0,VLOOKUP(fatoura!A521,v,2,FALSE),\"\")","v":""},"","",""]
[null,{"$f":"IF(A522<>0,VLOOKUP(fatoura!A522,v,2,FALSE),\"\")","v":""},"","",""]
[null,{"$f":"IF(A523<>0,VLOOKUP(fatoura!A523,v,2,FALSE),\"\")","v":""},"","",""]
[null,{"$f":"IF(A524<>0,VLOOKUP(fatoura!A524,v,2,FALSE),\"\")","v":""},"","",""]
[null,{"$f":"IF(A525<>0,VLOOKUP(fatoura!A525,v,2,FALSE),\"\")","v":""},"","",""]
[null,{"$f":"IF(A526<>0,VLOOKUP(fatoura!A526,v,2,FALSE),\"\")","v":""},"","",""]
[null,{"$f":"IF(A527<>0,VLOOKUP(fatoura!A527,v,2,FALSE),\"\")","v":""},"","",""]
[null,{"$f":"IF(A528<>0,VLOOKUP(fatoura!A528,v,2,FALSE),\"\")","v":""},"","",""]
[null,{"$f":"IF(A529<>0,VLOOKUP(fatoura!A529,v,2,FALSE),\"\")","v":""},"","",""]
[null,{"$f":"IF(A530<>0,VLOOKUP(fatoura!A530,v,2,FALSE),\"\")","v":""},"","",""]
[null,{"$f":"IF(A531<>0,VLOOKUP(fatoura!A531,v,2,FALSE),\"\")","v":""},"","",""]
[null,{"$f":"IF(A532<>0,VLOOKUP(fatoura!A532,v,2,FALSE),\"\")","v":""},"","",""]
[null,{"$f":"IF(A533<>0,VLOOKUP(fatoura!A533,v,2,FALSE),\"\")","v":""},"","",""]
[null,{"$f":"IF(A534<>0,VLOOKUP(fatoura!A534,v,2,FALSE),\"\")","v":""},"","",""]
[null,{"$f":"IF(A535<>0,VLOOKUP(fatoura!A535,v,2,FALSE),\"\")","v":""},"","",""]
[null,{"$f":"IF(A536<>0,VLOOKUP(fatoura!A536,v,2,FALSE),\"\")","v":""},"","",""]
[null,{"$f":"IF(A537<>0,VLOOKUP(fatoura!A537,v,2,FALSE),\"\")","v":""},"","",""]
[null,{"$f":"IF(A538<>0,VLOOKUP(fatoura!A538,v,2,FALSE),\"\")","v":""},"","",""]
[null,{"$f":"IF(A539<>0,VLOOKUP(fatoura!A539,v,2,FALSE),\"\")","v":""},"","",""]
[null,{"$f":"IF(A540<>0,VLOOKUP(fatoura!A540,v,2,FALSE),\"\")","v":""},"","",""]
[null,{"$f":"IF(A541<>0,VLOOKUP(fatoura!A541,v,2,FALSE),\"\")","v":""},"","",""]
[null,{"$f":"IF(A542<>0,VLOOKUP(fatoura!A542,v,2,FALSE),\"\")","v":""},"","",""]
[null,{"$f":"IF(A543<>0,VLOOKUP(fatoura!A543,v,2,FALSE),\"\")","v":""},"","",""]

{"sheet":"كشف حساب","index":1,"n_rows":2,"n_cols":20,"rows_kept":2,"cut":false,"hidden":false,"merged":[]}
["الاسم","فاتورة","قيمة الفاتورة","دفعة","رقم الوصل","رقم الشيك","التاريخ",null,null,null,null,null,null,null,null,null,"رامي",{"$f":"SUMIFS($C$2:$C$999999,$A$2:$A$999999,Q1)","v":12},{"$f":"SUMIFS($D$2:$D$999999,$A$2:$A$999999,Q1)","v":0},{"$f":"R1-S1","v":12}]
["رامي",null,12,null,57,null,"2018-05-10"]

{"sheet":"الاصناف","index":2,"n_rows":12,"n_cols":6,"rows_kept":12,"cut":false,"hidden":false,"merged":[]}
["كود الصنف","الوصف","عدد","الوحدة","سعر المبيع","الكلفة"]
[2,"فاتورة"]
[3,"دفعة"]
["b15","برغي دبوس اسود 1.5 سم",1535,1000,3.2,2.375]
["b18","برغي دبوس اسود 1.8 سم",1728,1000,3.36,2.488]
["b20","برغي دبوس اسود 2 سم",576,1000,3.51,2.6]
["b25","برغي دبوس اسود 2.5 سم",1152,1000,3.93,2.9119999999999999]
["b30","برغي دبوس اسود 30 سم",3072,1000,4.45,3.2869999999999999]
["b40","برغي دبوس اسود 40 سم",768,1000,5.75,4.2619999999999996]
["b50","برغي دبوس اسود 50 سم",2880,1000,7.02,5.2]
["b70","برغي دبوس اسود 7 سم",288,1000,11.56,8.5619999999999994]
["b100","برغي دبوس اسود 10 سم",89.6,1000,16.5,12.1]

{"sheet":"المبيعات","index":3,"n_rows":536,"n_cols":6,"rows_kept":536,"cut":false,"hidden":false,"merged":[]}
["رقم","الوصف","عدد","الوحدة","السعر","مجموع سعر الوحدة"]
["b20","برغي دبوس اسود 2 سم",2,1000,500,{"$f":"E2*C2","v":1000}]
["b20","برغي دبوس اسود 2 سم",2,1000,3,{"$f":"E3*C3","v":6}]
["b",{"$error":"#N/A"},null,{"$error":"#N/A"},null,0]
["b30","برغي دبوس اسود 30 سم",null,1000,null,0]
["b70","برغي دبوس اسود 7 سم",null,1000,null,0]
["g",{"$error":"#N/A"},null,{"$error":"#N/A"},null,0]
["b40","برغي دبوس اسود 40 سم",null,1000,null,0]
["b30","برغي دبوس اسود 30 سم",null,1000,null,0]
["b70","برغي دبوس اسود 7 سم",null,1000,null,""]
["b40","برغي دبوس اسود 40 سم",null,1000,null,""]
["yuyu","y",3,{"$error":"#N/A"},4,""]
[5,"y",4,{"$error":"#N/A"},8,""]
["b15","برغي دبوس اسود 1.5 سم",30,1000,4]
["b20","برغي دبوس اسود 2 سم",4,1000,6,""]
["b30","برغي دبوس اسود 30 سم",5,1000,7,""]
["b15","برغي دبوس اسود 1.5 سم",2,1000,3,""]
["b20","برغي دبوس اسود 2 سم",5,1000,8,""]
["b50","برغي دبوس اسود 50 سم",2,1000,7,""]
["b30","برغي دبوس اسود 30 سم",3,1000,8,""]
["b15","برغي دبوس اسود 1.5 سم",20,1000,2,""]
["b20","برغي دبوس اسود 2 سم",30,1000,3,""]
["b30","برغي دبوس اسود 30 سم",40,1000,4,""]
["b40","برغي دبوس اسود 40 سم",50,1000,5,""]
["b50","برغي دبوس اسود 50 سم",2,1000,3,""]
["b40","برغي دبوس اسود 40 سم",3,1000,5,""]
["b15","برغي دبوس اسود 1.5 سم",2,1000,3,""]
["b20","برغي دبوس اسود 2 سم",3,1000,4,""]
["b15","برغي دبوس اسود 1.5 سم",3,1000,4,""]
[null,null,null,null,null,""]
[null,null,null,null,null,""]
[null,null,null,null,null,""]
[null,null,null,null,null,""]
[null,null,null,null,null,""]
[null,null,null,null,null,""]
[null,null,null,null,null,""]
[null,null,null,null,null,""]
[null,null,null,null,null,""]
[null,null,null,null,null,""]
[null,null,null,null,null,""]
[null,null,null,null,null,""]
[null,null,null,null,null,""]
[null,null,null,null,null,""]
[null,null,null,null,null,""]
[null,null,null,null,null,""]
[null,null,null,null,null,""]
[null,null,null,null,null,""]
[null,null,null,null,null,""]
[null,null,null,null,null,""]
[null,null,null,null,null,""]
[null,"","","","",""]
[null,"","","","",""]
[null,"","","","",""]
[null,"","","","",""]
[null,"","","","",""]
[null,"","","","",""]
[null,"","","","",""]
[null,"","","","",""]
[null,"","","","",""]
[null,"","","","",""]
[null,"","","","",""]
[null,"","","","",""]
[null,"","","","",""]
[null,"","","","",""]
[null,"","","","",""]
[null,"","","","",""]
[null,"","","","",""]
[null,"","","","",""]
[null,"","","","",""]
[null,"","","","",""]
[null,"","","","",""]
[null,"","","","",""]
[null,"","","","",""]
[null,"","","","",""]
[null,"","","","",""]
[null,"","","","",""]
[null,"","","","",""]
[null,"","","","",""]
[null,"","","","",""]
[null,"","","","",""]
[null,"","","","",""]
[null,"","","","",""]
[null,"","","","",""]
[null,"","","","",""]
[null,"","","","",""]
[null,"","","","",""]
[null,"","","","",""]
[null,"","","","",""]
[null,"","","","",""]
[null,"","","","",""]
[null,"","","","",""]
[null,"","","","",""]
[null,"","","","",""]
[null,"","","","",""]
[null,"","","","",""]
[null,"","","","",""]
[null,"","","","",""]
[null,"","","","",""]
[null,"","","","",""]
[null,"","","","",""]
[null,"","","","",""]
[null,"","","","",""]
[null,"","","","",""]
[null,"","","","",""]
[null,"","","","",""]
[null,"","","","",""]
[null,"","","","",""]
[null,"","","","",""]
[null,"","","","",""]
[null,"","","","",""]
[null,"","","","",""]
[null,"","","","",""]
[null,"","","","",""]
[null,"","","","",""]
[null,"","","","",""]
[null,"","","","",""]
[null,"","","","",""]
[null,"","","","",""]
[null,"","","","",""]
[null,"","","","",""]
[null,"","","","",""]
[null,"","","","",""]
[null,"","","","",""]
[null,"","","","",""]
[null,"","","","",""]
[null,"","","","",""]
[null,"","","","",""]
[null,"","","","",""]
[null,"","","","",""]
[null,"","","","",""]
[null,"","","","",""]
[null,"","","","",""]
[null,"","","","",""]
[null,"","","","",""]
[null,"","","","",""]
[null,"","","","",""]
[null,"","","","",""]
[null,"","","","",""]
[null,"","","","",""]
[null,"","","","",""]
[null,"","","","",""]
[null,"","","","",""]
[null,"","","","",""]
[null,"","","","",""]
[null,"","","","",""]
[null,"","","","",""]
[null,"","","","",""]
[null,"","","","",""]
[null,"","","","",""]
[null,"","","","",""]
[null,"","","","",""]
[null,"","","","",""]
[null,"","","","",""]
[null,"","","","",""]
[null,"","","","",""]
[null,"","","","",""]
[null,"","","","",""]
[null,"","","","",""]
[null,"","","","",""]
[null,"","","","",""]
[null,"","","","",""]
[null,"","","","",""]
[null,"","","","",""]
[null,"","","","",""]
[null,"","","","",""]
[null,"","","","",""]
[null,"","","","",""]
[null,"","","","",""]
[null,"","","","",""]
[null,"","","","",""]
[null,"","","","",""]
[null,"","","","",""]
[null,"","","","",""]
[null,"","","","",""]
[null,"","","","",""]
[null,"","","","",""]
[null,"","","","",""]
[null,"","","","",""]
[null,"","","","",""]
[null,"","","","",""]
[null,"","","","",""]
[null,"","","","",""]
[null,"","","","",""]
[null,"","","","",""]
[null,"","","","",""]
[null,"","","","",""]
[null,"","","","",""]
[null,"","","","",""]
[null,"","","","",""]
[null,"","","","",""]
[null,"","","","",""]
[null,"","","","",""]
[null,"","","","",""]
[null,"","","","",""]
[null,"","","","",""]
[null,"","","","",""]
[null,"","","","",""]
[null,"","","","",""]
[null,"","","","",""]
[null,"","","","",""]
[null,"","","","",""]
[null,"","","","",""]
[null,"","","","",""]
[null,"","","","",""]
[null,"","","","",""]
[null,"","","","",""]
[null,"","","","",""]
[null,"","","","",""]
[null,"","","","",""]
[null,"","","","",""]
[null,"","","","",""]
[null,"","","","",""]
[null,"","","","",""]
[null,"","","","",""]
[null,"","","","",""]
[null,"","","","",""]
[null,"","","","",""]
[null,"","","","",""]
[null,"","","","",""]
[null,"","","","",""]
[null,"","","","",""]
[null,"","","","",""]
[null,"","","","",""]
[null,"","","","",""]
[null,"","","","",""]
[null,"","","","",""]
[null,"","","","",""]
[null,"","","","",""]
[null,"","","","",""]
[null,"","","","",""]
[null,"","","","",""]
[null,"","","","",""]
[null,"","","","",""]
[null,"","","","",""]
[null,"","","","",""]
[null,"","","","",""]
[null,"","","","",""]
[null,"","","","",""]
[null,"","","","",""]
[null,"","","","",""]
[null,"","","","",""]
[null,"","","","",""]
[null,"","","","",""]
[null,"","","","",""]
[null,"","","","",""]
[null,"","","","",""]
[null,"","","","",""]
[null,"","","","",""]
[null,"","","","",""]
[null,"","","","",""]
[null,"","","","",""]
[null,"","","","",""]
[null,"","","","",""]
[null,"","","","",""]
[null,"","","","",""]
[null,"","","","",""]
[null,"","","","",""]
[null,"","","","",""]
[null,"","","","",""]
[null,"","","","",""]
[null,"","","","",""]
[null,"","","","",""]
[null,"","","","",""]
[null,"","","","",""]
[null,"","","","",""]
[null,"","","","",""]
[null,"","","","",""]
[null,"","","","",""]
[null,"","","","",""]
[null,"","","","",""]
[null,"","","","",""]
[null,"","","","",""]
[null,"","","","",""]
[null,"","","","",""]
[null,"","","","",""]
[null,"","","","",""]
[null,"","","","",""]
[null,"","","","",""]
[null,"","","","",""]
[null,"","","","",""]
[null,"","","","",""]
[null,"","","","",""]
[null,"","","","",""]
[null,"","","","",""]
[null,"","","","",""]
[null,"","","","",""]
[null,"","","","",""]
[null,"","","","",""]
[null,"","","","",""]
[null,"","","","",""]
[null,"","","","",""]
[null,"","","","",""]
[null,"","","","",""]
[null,"","","","",""]
[null,"","","","",""]
[null,"","","","",""]
[null,"","","","",""]
[null,"","","","",""]
[null,"","","","",""]
[null,"","","","",""]
[null,"","","","",""]
[null,"","","","",""]
[null,"","","","",""]
[null,"","","","",""]
[null,"","","","",""]
[null,"","","","",""]
[null,"","","","",""]
[null,"","","","",""]
[null,"","","","",""]
[null,"","","","",""]
[null,"","","","",""]
[null,"","","","",""]
[null,"","","","",""]
[null,"","","","",""]
[null,"","","","",""]
[null,"","","","",""]
[null,"","","","",""]
[null,"","","","",""]
[null,"","","","",""]
[null,"","","","",""]
[null,"","","","",""]
[null,"","","","",""]
[null,"","","","",""]
[null,"","","","",""]
[null,"","","","",""]
[null,"","","","",""]
[null,"","","","",""]
[null,"","","","",""]
[null,"","","","",""]
[null,"","","","",""]
[null,"","","","",""]
[null,"","","","",""]
[null,"","","","",""]
[null,"","","","",""]
[null,"","","","",""]
[null,"","","","",""]
[null,"","","","",""]
[null,"","","","",""]
[null,"","","","",""]
[null,"","","","",""]
[null,"","","","",""]
[null,"","","","",""]
[null,"","","","",""]
[null,"","","","",""]
[null,"","","","",""]
[null,"","","","",""]
[null,"","","","",""]
[null,"","","","",""]
[null,"","","","",""]
[null,"","","","",""]
[null,"","","","",""]
[null,"","","","",""]
[null,"","","","",""]
[null,"","","","",""]
[null,"","","","",""]
[null,"","","","",""]
[null,"","","","",""]
[null,"","","","",""]
[null,"","","","",""]
[null,"","","","",""]
[null,"","","","",""]
[null,"","","","",""]
[null,"","","","",""]
[null,"","","","",""]
[null,"","","","",""]
[null,"","","","",""]
[null,"","","","",""]
[null,"","","","",""]
[null,"","","","",""]
[null,"","","","",""]
[null,"","","","",""]
[null,"","","","",""]
[null,"","","","",""]
[null,"","","","",""]
[null,"","","","",""]
[null,"","","","",""]
[null,"","","","",""]
[null,"","","","",""]
[null,"","","","",""]
[null,"","","","",""]
[null,"","","","",""]
[null,"","","","",""]
[null,"","","","",""]
[null,"","","","",""]
[null,"","","","",""]
[null,"","","","",""]
[null,"","","","",""]
[null,"","","","",""]
[null,"","","","",""]
[null,"","","","",""]
[null,"","","","",""]
[null,"","","","",""]
[null,"","","","",""]
[null,"","","","",""]
[null,"","","","",""]
[null,"","","","",""]
[null,"","","","",""]
[null,"","","","",""]
[null,"","","","",""]
[null,"","","","",""]
[null,"","","","",""]
[null,"","","","",""]
[null,"","","","",""]
[null,"","","","",""]
[null,"","","","",""]
[null,"","","","",""]
[null,"","","","",""]
[null,"","","","",""]
[null,"","","","",""]
[null,"","","","",""]
[null,"","","","",""]
[null,"","","","",""]
[null,"","","","",""]
[null,"","","","",""]
[null,"","","","",""]
[null,"","","","",""]
[null,"","","","",""]
[null,"","","","",""]
[null,"","","","",""]
[null,"","","","",""]
[null,"","","","",""]
[null,"","","","",""]
[null,"","","","",""]
[null,"","","","",""]
[null,"","","","",""]
[null,"","","","",""]
[null,"","","","",""]
[null,"","","","",""]
[null,"","","","",""]
[null,"","","","",""]
[null,"","","","",""]
[null,"","","","",""]
[null,"","","","",""]
[null,"","","","",""]
[null,"","","","",""]
[null,"","","","",""]
[null,"","","","",""]
[null,"","","","",""]
[null,"","","","",""]
[null,"","","","",""]
[null,"","","","",""]
[null,"","","","",""]
[null,"","","","",""]
[null,"","","","",""]
[null,"","","","",""]
[null,"","","","",""]
[null,"","","","",""]
[null,"","","","",""]
[null,"","","","",""]
[null,"","","","",""]
[null,"","","","",""]
[null,"","","","",""]
[null,"","","","",""]
[null,"","","","",""]
[null,"","","","",""]
[null,"","","","",""]
[null,"","","","",""]
[null,"","","","",""]
[null,"","","","",""]
[null,"","","","",""]
[null,"","","","",""]
[null,"","","","",""]
[null,"","","","",""]
[null,"","","","",""]
[null,"","","","",""]
[null,"","","","",""]
[null,"","","","",""]
[null,"","","","",""]
[null,"","","","",""]
[null,"","","","",""]
[null,"","","","",""]
[null,"","","","",""]
[null,"","","","",""]
[null,"","","","",""]
[null,"","","","",""]
[null,"","","","",""]
[null,"","","","",""]
[null,"","","","",""]
[null,"","","","",""]
[null,"","","","",""]
[null,"","","","",""]
[null,"","","","",""]
[null,"","","","",""]
[null,"","","","",""]
[null,"","","","",""]
[null,"","","","",""]
[null,"","","","",""]
[null,"","","","",""]
[null,"","","","",""]
[null,"","","","",""]
[null,"","","","",""]
[null,"","","","",""]
[null,"","","","",""]
[null,"","","","",""]
[null,"","","","",""]
[null,"","","","",""]
[null,"","","","",""]
[null,"","","","",""]
[null,"","","",""]
[null,"","","",""]
[null,"","","",""]
[null,"","","",""]
[null,"","","",""]
[null,"","","",""]
[null,"","","",""]
[null,"","","",""]
[null,"","","",""]
[null,"","","",""]
[null,"","","",""]
[null,"","","",""]
[null,"","","",""]
[null,"","","",""]
[null,"","","",""]
[null,"","","",""]
[null,"","","",""]
[null,"","","",""]
[null,"","","",""]
[null,"","","",""]
[null,"","","",""]
[null,"","","",""]
[null,"","","",""]
[null,"","","",""]
[null,"","","",""]
[null,"","","",""]
[null,"","","",""]
[null,"","","",""]
[null,"","","",""]
[null,"","","",""]
[null,"","","",""]
[null,"","","",""]
[null,"","","",""]
[null,"","","",""]
[null,"","","",""]
[null,"","","",""]
[null,"","","",""]
[null,"","","",""]

{"sheet":"استعلام","index":4,"n_rows":2000,"n_cols":8,"rows_kept":2000,"cut":false,"hidden":false,"merged":[]}
["الاسم","فاتورة","قيمة الفاتورة","دفعة","رقم الوصل","رقم الشيك","التاريخ","التاريخ"]
["رامي",null,null,null,null,null,"2018-03-05"]
[]
[]
[]
[]
[]
["الاسم","فاتورة","قيمة الفاتورة","دفعة","رقم الوصل","رقم الشيك","التاريخ","الرصيد"]
["رامي",null,12,null,57,null,"2018-05-10",{"$f":"C9-D9","v":12}]
[null,null,null,null,null,null,null,{"$f":"IF(A9<>0,SUM(H9+C10-D10),\"\")","v":12}]
[null,null,null,null,null,null,null,{"$f":"IF(A10<>0,SUM(H10+C11-D11),\"\")","v":""}]
[null,null,null,null,null,null,null,""]
[null,null,null,null,null,null,null,""]
[null,null,null,null,null,null,null,""]
[null,null,null,null,null,null,null,""]
[null,null,null,null,null,null,null,""]
[null,null,null,null,null,null,null,""]
[null,null,null,null,null,null,null,""]
[null,null,null,null,null,null,null,""]
[null,null,null,null,null,null,null,""]
[null,null,null,null,null,null,null,""]
[null,null,null,null,null,null,null,""]
[null,null,null,null,null,null,null,""]
[null,null,null,null,null,null,null,""]
[null,null,null,null,null,null,null,""]
[null,null,null,null,null,null,null,""]
[null,null,null,null,null,null,null,""]
[null,null,null,null,null,null,null,""]
[null,null,null,null,null,null,null,""]
[null,null,null,null,null,null,null,""]
[null,null,null,null,null,null,null,""]
[null,null,null,null,null,null,null,""]
[null,null,null,null,null,null,null,""]
[null,null,null,null,null,null,null,""]
[null,null,null,null,null,null,null,""]
[null,null,null,null,null,null,null,""]
[null,null,null,null,null,null,null,""]
[null,null,null,null,null,null,null,""]
[null,null,null,null,null,null,null,""]
[null,null,null,null,null,null,null,""]
[null,null,null,null,null,null,null,""]
[null,null,null,null,null,null,null,""]
[null,null,null,null,null,null,null,""]
[null,null,null,null,null,null,null,""]
[null,null,null,null,null,null,null,""]
[null,null,null,null,null,null,null,""]
[null,null,null,null,null,null,null,""]
[null,null,null,null,null,null,null,""]
[null,null,null,null,null,null,null,""]
[null,null,null,null,null,null,null,""]
[null,null,null,null,null,null,null,""]
[null,null,null,null,null,null,null,""]
[null,null,null,null,null,null,null,""]
[null,null,null,null,null,null,null,""]
[null,null,null,null,null,null,null,""]
[null,null,null,null,null,null,null,""]
[null,null,null,null,null,null,null,""]
[null,null,null,null,null,null,null,""]
[null,null,null,null,null,null,null,""]
[null,null,null,null,null,null,null,""]
[null,null,null,null,null,null,null,""]
[null,null,null,null,null,null,null,""]
[null,null,null,null,null,null,null,""]
[null,null,null,null,null,null,null,""]
[null,null,null,null,null,null,null,""]
[null,null,null,null,null,null,null,""]
[null,null,null,null,null,null,null,""]
[null,null,null,null,null,null,null,""]
[null,null,null,null,null,null,null,""]
[null,null,null,null,null,null,null,""]
[null,null,null,null,null,null,null,""]
[null,null,null,null,null,null,null,""]
[null,null,null,null,null,null,null,""]
[null,null,null,null,null,null,null,""]
[null,null,null,null,null,null,null,{"$f":"IF(A74<>0,SUM(H74+C75-D75),\"\")","v":""}]
[null,null,null,null,null,null,null,""]
[null,null,null,null,null,null,null,""]
[null,null,null,null,null,null,null,""]
[null,null,null,null,null,null,null,""]
[null,null,null,null,null,null,null,""]
[null,null,null,null,null,null,null,""]
[null,null,null,null,null,null,null,""]
[null,null,null,null,null,null,null,""]
[null,null,null,null,null,null,null,""]
[null,null,null,null,null,null,null,""]
[null,null,null,null,null,null,null,""]
[null,null,null,null,null,null,null,""]
[null,null,null,null,null,null,null,""]
[null,null,null,null,null,null,null,""]
[null,null,null,null,null,null,null,""]
[null,null,null,null,null,null,null,""]
[null,null,null,null,null,null,null,""]
[null,null,null,null,null,null,null,""]
[null,null,null,null,null,null,null,""]
[null,null,null,null,null,null,null,""]
[null,null,null,null,null,null,null,""]
[null,null,null,null,null,null,null,""]
[null,null,null,null,null,null,null,""]
[null,null,null,null,null,null,null,""]
[null,null,null,null,null,null,null,""]
[null,null,null,null,null,null,null,""]
[null,null,null,null,null,null,null,""]
[null,null,null,null,null,null,null,""]
[null,null,null,null,null,null,null,""]
[null,null,null,null,null,null,null,""]
[null,null,null,null,null,null,null,""]
[null,null,null,null,null,null,null,""]
[null,null,null,null,null,null,null,""]
[null,null,null,null,null,null,null,""]
[null,null,null,null,null,null,null,""]
[null,null,null,null,null,null,null,""]
[null,null,null,null,null,null,null,""]
[null,null,null,null,null,null,null,""]
[null,null,null,null,null,null,null,""]
[null,null,null,null,null,null,null,""]
[null,null,null,null,null,null,null,""]
[null,null,null,null,null,null,null,""]
[null,null,null,null,null,null,null,""]
[null,null,null,null,null,null,null,""]
[null,null,null,null,null,null,null,""]
[null,null,null,null,null,null,null,""]
[null,null,null,null,null,null,null,""]
[null,null,null,null,null,null,null,""]
[null,null,null,null,null,null,null,""]
[null,null,null,null,null,null,null,""]
[null,null,null,null,null,null,null,""]
[null,null,null,null,null,null,null,""]
[null,null,null,null,null,null,null,""]
[null,null,null,null,null,null,null,""]
[null,null,null,null,null,null,null,""]
[null,null,null,null,null,null,null,""]
[null,null,null,null,null,null,null,""]
[null,null,null,null,null,null,null,""]
[null,null,null,null,null,null,null,""]
[null,null,null,null,null,null,null,""]
[null,null,null,null,null,null,null,""]
[null,null,null,null,null,null,null,""]
[null,null,null,null,null,null,null,""]
[null,null,null,null,null,null,null,{"$f":"IF(A138<>0,SUM(H138+C139-D139),\"\")","v":""}]
[null,null,null,null,null,null,null,""]
[null,null,null,null,null,null,null,""]
[null,null,null,null,null,null,null,""]
[null,null,null,null,null,null,null,""]
[null,null,null,null,null,null,null,""]
[null,null,null,null,null,null,null,""]
[null,null,null,null,null,null,null,""]
[null,null,null,null,null,null,null,""]
[null,null,null,null,null,null,null,""]
[null,null,null,null,null,null,null,""]
[null,null,null,null,null,null,null,""]
[null,null,null,null,null,null,null,""]
[null,null,null,null,null,null,null,""]
[null,null,null,null,null,null,null,""]
[null,null,null,null,null,null,null,""]
[null,null,null,null,null,null,null,""]
[null,null,null,null,null,null,null,""]
[null,null,null,null,null,null,null,""]
[null,null,null,null,null,null,null,""]
[null,null,null,null,null,null,null,""]
[null,null,null,null,null,null,null,""]
[null,null,null,null,null,null,null,""]
[null,null,null,null,null,null,null,""]
[null,null,null,null,null,null,null,""]
[null,null,null,null,null,null,null,""]
[null,null,null,null,null,null,null,""]
[null,null,null,null,null,null,null,""]
[null,null,null,null,null,null,null,""]
[null,null,null,null,null,null,null,""]
[null,null,null,null,null,null,null,""]
[null,null,null,null,null,null,null,""]
[null,null,null,null,null,null,null,""]
[null,null,null,null,null,null,null,""]
[null,null,null,null,null,null,null,""]
[null,null,null,null,null,null,null,""]
[null,null,null,null,null,null,null,""]
[null,null,null,null,null,null,null,""]
[null,null,null,null,null,null,null,""]
[null,null,null,null,null,null,null,""]
[null,null,null,null,null,null,null,""]
[null,null,null,null,null,null,null,""]
[null,null,null,null,null,null,null,""]
[null,null,null,null,null,null,null,""]
[null,null,null,null,null,null,null,""]
[null,null,null,null,null,null,null,""]
[null,null,null,null,null,null,null,""]
[null,null,null,null,null,null,null,""]
[null,null,null,null,null,null,null,""]
[null,null,null,null,null,null,null,""]
[null,null,null,null,null,null,null,""]
[null,null,null,null,null,null,null,""]
[null,null,null,null,null,null,null,""]
[null,null,null,null,null,null,null,""]
[null,null,null,null,null,null,null,""]
[null,null,null,null,null,null,null,""]
[null,null,null,null,null,null,null,""]
[null,null,null,null,null,null,null,""]
[null,null,null,null,null,null,null,""]
[null,null,null,null,null,null,null,""]
[null,null,null,null,null,null,null,""]
[null,null,null,null,null,null,null,""]
[null,null,null,null,null,null,null,""]
[null,null,null,null,null,null,null,""]
[null,null,null,null,null,null,null,{"$f":"IF(A202<>0,SUM(H202+C203-D203),\"\")","v":""}]
[null,null,null,null,null,null,null,""]
[null,null,null,null,null,null,null,""]
[null,null,null,null,null,null,null,""]
[null,null,null,null,null,null,null,""]
[null,null,null,null,null,null,null,""]
[null,null,null,null,null,null,null,""]
[null,null,null,null,null,null,null,""]
[null,null,null,null,null,null,null,""]
[null,null,null,null,null,null,null,""]
[null,null,null,null,null,null,null,""]
[null,null,null,null,null,null,null,""]
[null,null,null,null,null,null,null,""]
[null,null,null,null,null,null,null,""]
[null,null,null,null,null,null,null,""]
[null,null,null,null,null,null,null,""]
[null,null,null,null,null,null,null,""]
[null,null,null,null,null,null,null,""]
[null,null,null,null,null,null,null,""]
[null,null,null,null,null,null,null,""]
[null,null,null,null,null,null,null,""]
[null,null,null,null,null,null,null,""]
[null,null,null,null,null,null,null,""]
[null,null,null,null,null,null,null,""]
[null,null,null,null,null,null,null,""]
[null,null,null,null,null,null,null,""]
[null,null,null,null,null,null,null,""]
[null,null,null,null,null,null,null,""]
[null,null,null,null,null,null,null,""]
[null,null,null,null,null,null,null,""]
[null,null,null,null,null,null,null,""]
[null,null,null,null,null,null,null,""]
[null,null,null,null,null,null,null,""]
[null,null,null,null,null,null,null,""]
[null,null,null,null,null,null,null,""]
[null,null,null,null,null,null,null,""]
[null,null,null,null,null,null,null,""]
[null,null,null,null,null,null,null,""]
[null,null,null,null,null,null,null,""]
[null,null,null,null,null,null,null,""]
[null,null,null,null,null,null,null,""]
[null,null,null,null,null,null,null,""]
[null,null,null,null,null,null,null,""]
[null,null,null,null,null,null,null,""]
[null,null,null,null,null,null,null,""]
[null,null,null,null,null,null,null,""]
[null,null,null,null,null,null,null,""]
[null,null,null,null,null,null,null,""]
[null,null,null,null,null,null,null,""]
[null,null,null,null,null,null,null,""]
[null,null,null,null,null,null,null,""]
[null,null,null,null,null,null,null,""]
[null,null,null,null,null,null,null,""]
[null,null,null,null,null,null,null,""]
[null,null,null,null,null,null,null,""]
[null,null,null,null,null,null,null,""]
[null,null,null,null,null,null,null,""]
[null,null,null,null,null,null,null,""]
[null,null,null,null,null,null,null,""]
[null,null,null,null,null,null,null,""]
[null,null,null,null,null,null,null,""]
[null,null,null,null,null,null,null,""]
[null,null,null,null,null,null,null,""]
[null,null,null,null,null,null,null,""]
[null,null,null,null,null,null,null,{"$f":"IF(A266<>0,SUM(H266+C267-D267),\"\")","v":""}]
[null,null,null,null,null,null,null,""]
[null,null,null,null,null,null,null,""]
[null,null,null,null,null,null,null,""]
[null,null,null,null,null,null,null,""]
[null,null,null,null,null,null,null,""]
[null,null,null,null,null,null,null,""]
[null,null,null,null,null,null,null,""]
[null,null,null,null,null,null,null,""]
[null,null,null,null,null,null,null,""]
[null,null,null,null,null,null,null,""]
[null,null,null,null,null,null,null,""]
[null,null,null,null,null,null,null,""]
[null,null,null,null,null,null,null,""]
[null,null,null,null,null,null,null,""]
[null,null,null,null,null,null,null,""]
[null,null,null,null,null,null,null,""]
[null,null,null,null,null,null,null,""]
[null,null,null,null,null,null,null,""]
[null,null,null,null,null,null,null,""]
[null,null,null,null,null,null,null,""]
[null,null,null,null,null,null,null,""]
[null,null,null,null,null,null,null,""]
[null,null,null,null,null,null,null,""]
[null,null,null,null,null,null,null,""]
[null,null,null,null,null,null,null,""]
[null,null,null,null,null,null,null,""]
[null,null,null,null,null,null,null,""]
[null,null,null,null,null,null,null,""]
[null,null,null,null,null,null,null,""]
[null,null,null,null,null,null,null,""]
[null,null,null,null,null,null,null,""]
[null,null,null,null,null,null,null,""]
[null,null,null,null,null,null,null,""]
[null,null,null,null,null,null,null,""]
[null,null,null,null,null,null,null,""]
[null,null,null,null,null,null,null,""]
[null,null,null,null,null,null,null,""]
[null,null,null,null,null,null,null,""]
[null,null,null,null,null,null,null,""]
[null,null,null,null,null,null,null,""]
[null,null,null,null,null,null,null,""]
[null,null,null,null,null,null,null,""]
[null,null,null,null,null,null,null,""]
[null,null,null,null,null,null,null,""]
[null,null,null,null,null,null,null,""]
[null,null,null,null,null,null,null,""]
[null,null,null,null,null,null,null,""]
[null,null,null,null,null,null,null,""]
[null,null,null,null,null,null,null,""]
[null,null,null,null,null,null,null,""]
[null,null,null,null,null,null,null,""]
[null,null,null,null,null,null,null,""]
[null,null,null,null,null,null,null,""]
[null,null,null,null,null,null,null,""]
[null,null,null,null,null,null,null,""]
[null,null,null,null,null,null,null,""]
[null,null,null,null,null,null,null,""]
[null,null,null,null,null,null,null,""]
[null,null,null,null,null,null,null,""]
[null,null,null,null,null,null,null,""]
[null,null,null,null,null,null,null,""]
[null,null,null,null,null,null,null,""]
[null,null,null,null,null,null,null,""]
[null,null,null,null,null,null,null,{"$f":"IF(A330<>0,SUM(H330+C331-D331),\"\")","v":""}]
[null,null,null,null,null,null,null,""]
[null,null,null,null,null,null,null,""]
[null,null,null,null,null,null,null,""]
[null,null,null,null,null,null,null,""]
[null,null,null,null,null,null,null,""]
[null,null,null,null,null,null,null,""]
[null,null,null,null,null,null,null,""]
[null,null,null,null,null,null,null,""]
[null,null,null,null,null,null,null,""]
[null,null,null,null,null,null,null,""]
[null,null,null,null,null,null,null,""]
[null,null,null,null,null,null,null,""]
[null,null,null,null,null,null,null,""]
[null,null,null,null,null,null,null,""]
[null,null,null,null,null,null,null,""]
[null,null,null,null,null,null,null,""]
[null,null,null,null,null,null,null,""]
[null,null,null,null,null,null,null,""]
[null,null,null,null,null,null,null,""]
[null,null,null,null,null,null,null,""]
[null,null,null,null,null,null,null,""]
[null,null,null,null,null,null,null,""]
[null,null,null,null,null,null,null,""]
[null,null,null,null,null,null,null,""]
[null,null,null,null,null,null,null,""]
[null,null,null,null,null,null,null,""]
[null,null,null,null,null,null,null,""]
[null,null,null,null,null,null,null,""]
[null,null,null,null,null,null,null,""]
[null,null,null,null,null,null,null,""]
[null,null,null,null,null,null,null,""]
[null,null,null,null,null,null,null,""]
[null,null,null,null,null,null,null,""]
[null,null,null,null,null,null,null,""]
[null,null,null,null,null,null,null,""]
[null,null,null,null,null,null,null,""]
[null,null,null,null,null,null,null,""]
[null,null,null,null,null,null,null,""]
[null,null,null,null,null,null,null,""]
[null,null,null,null,null,null,null,""]
[null,null,null,null,null,null,null,""]
[null,null,null,null,null,null,null,""]
[null,null,null,null,null,null,null,""]
[null,null,null,null,null,null,null,""]
[null,null,null,null,null,null,null,""]
[null,null,null,null,null,null,null,""]
[null,null,null,null,null,null,null,""]
[null,null,null,null,null,null,null,""]
[null,null,null,null,null,null,null,""]
[null,null,null,null,null,null,null,""]
[null,null,null,null,null,null,null,""]
[null,null,null,null,null,null,null,""]
[null,null,null,null,null,null,null,""]
[null,null,null,null,null,null,null,""]
[null,null,null,null,null,null,null,""]
[null,null,null,null,null,null,null,""]
[null,null,null,null,null,null,null,""]
[null,null,null,null,null,null,null,""]
[null,null,null,null,null,null,null,""]
[null,null,null,null,null,null,null,""]
[null,null,null,null,null,null,null,""]
[null,null,null,null,null,null,null,""]
[null,null,null,null,null,null,null,""]
[null,null,null,null,null,null,null,{"$f":"IF(A394<>0,SUM(H394+C395-D395),\"\")","v":""}]
[null,null,null,null,null,null,null,""]
[null,null,null,null,null,null,null,""]
[null,null,null,null,null,null,null,""]
[null,null,null,null,null,null,null,""]
[null,null,null,null,null,null,null,""]
[null,null,null,null,null,null,null,""]
[null,null,null,null,null,null,null,""]
[null,null,null,null,null,null,null,""]
[null,null,null,null,null,null,null,""]
[null,null,null,null,null,null,null,""]
[null,null,null,null,null,null,null,""]
[null,null,null,null,null,null,null,""]
[null,null,null,null,null,null,null,""]
[null,null,null,null,null,null,null,""]
[null,null,null,null,null,null,null,""]
[null,null,null,null,null,null,null,""]
[null,null,null,null,null,null,null,""]
[null,null,null,null,null,null,null,""]
[null,null,null,null,null,null,null,""]
[null,null,null,null,null,null,null,""]
[null,null,null,null,null,null,null,""]
[null,null,null,null,null,null,null,""]
[null,null,null,null,null,null,null,""]
[null,null,null,null,null,null,null,""]
[null,null,null,null,null,null,null,""]
[null,null,null,null,null,null,null,""]
[null,null,null,null,null,null,null,""]
[null,null,null,null,null,null,null,""]
[null,null,null,null,null,null,null,""]
[null,null,null,null,null,null,null,""]
[null,null,null,null,null,null,null,""]
[null,null,null,null,null,null,null,""]
[null,null,null,null,null,null,null,""]
[null,null,null,null,null,null,null,""]
[null,null,null,null,null,null,null,""]
[null,null,null,null,null,null,null,""]
[null,null,null,null,null,null,null,""]
[null,null,null,null,null,null,null,""]
[null,null,null,null,null,null,null,""]
[null,null,null,null,null,null,null,""]
[null,null,null,null,null,null,null,""]
[null,null,null,null,null,null,null,""]
[null,null,null,null,null,null,null,""]
[null,null,null,null,null,null,null,""]
[null,null,null,null,null,null,null,""]
[null,null,null,null,null,null,null,""]
[null,null,null,null,null,null,null,""]
[null,null,null,null,null,null,null,""]
[null,null,null,null,null,null,null,""]
[null,null,null,null,null,null,null,""]
[null,null,null,null,null,null,null,""]
[null,null,null,null,null,null,null,""]
[null,null,null,null,null,null,null,""]
[null,null,null,null,null,null,null,""]
[null,null,null,null,null,null,null,""]
[null,null,null,null,null,null,null,""]
[null,null,null,null,null,null,null,""]
[null,null,null,null,null,null,null,""]
[null,null,null,null,null,null,null,""]
[null,null,null,null,null,null,null,""]
[null,null,null,null,null,null,null,""]
[null,null,null,null,null,null,null,""]
[null,null,null,null,null,null,null,""]
[null,null,null,null,null,null,null,{"$f":"IF(A458<>0,SUM(H458+C459-D459),\"\")","v":""}]
[null,null,null,null,null,null,null,""]
[null,null,null,null,null,null,null,""]
[null,null,null,null,null,null,null,""]
[null,null,null,null,null,null,null,""]
[null,null,null,null,null,null,null,""]
[null,null,null,null,null,null,null,""]
[null,null,null,null,null,null,null,""]
[null,null,null,null,null,null,null,""]
[null,null,null,null,null,null,null,""]
[null,null,null,null,null,null,null,""]
[null,null,null,null,null,null,null,""]
[null,null,null,null,null,null,null,""]
[null,null,null,null,null,null,null,""]
[null,null,null,null,null,null,null,""]
[null,null,null,null,null,null,null,""]
[null,null,null,null,null,null,null,""]
[null,null,null,null,null,null,null,""]
[null,null,null,null,null,null,null,""]
[null,null,null,null,null,null,null,""]
[null,null,null,null,null,null,null,""]
[null,null,null,null,null,null,null,""]
[null,null,null,null,null,null,null,""]
[null,null,null,null,null,null,null,""]
[null,null,null,null,null,null,null,""]
[null,null,null,null,null,null,null,""]
[null,null,null,null,null,null,null,""]
[null,null,null,null,null,null,null,""]
[null,null,null,null,null,null,null,""]
[null,null,null,null,null,null,null,""]
[null,null,null,null,null,null,null,""]
[null,null,null,null,null,null,null,""]
[null,null,null,null,null,null,null,""]
[null,null,null,null,null,null,null,""]
[null,null,null,null,null,null,null,""]
[null,null,null,null,null,null,null,""]
[null,null,null,null,null,null,null,""]
[null,null,null,null,null,null,null,""]
[null,null,null,null,null,null,null,""]
[null,null,null,null,null,null,null,""]
[null,null,null,null,null,null,null,""]
[null,null,null,null,null,null,null,""]
[null,null,null,null,null,null,null,""]
[null,null,null,null,null,null,null,""]
[null,null,null,null,null,null,null,""]
[null,null,null,null,null,null,null,""]
[null,null,null,null,null,null,null,""]
[null,null,null,null,null,null,null,""]
[null,null,null,null,null,null,null,""]
[null,null,null,null,null,null,null,""]
[null,null,null,null,null,null,null,""]
[null,null,null,null,null,null,null,""]
[null,null,null,null,null,null,null,""]
[null,null,null,null,null,null,null,""]
[null,null,null,null,null,null,null,""]
[null,null,null,null,null,null,null,""]
[null,null,null,null,null,null,null,""]
[null,null,null,null,null,null,null,""]
[null,null,null,null,null,null,null,""]
[null,null,null,null,null,null,null,""]
[null,null,null,null,null,null,null,""]
[null,null,null,null,null,null,null,""]
[null,null,null,null,null,null,null,""]
[null,null,null,null,null,null,null,""]
[null,null,null,null,null,null,null,{"$f":"IF(A522<>0,SUM(H522+C523-D523),\"\")","v":""}]
[null,null,null,null,null,null,null,""]
[null,null,null,null,null,null,null,""]
[null,null,null,null,null,null,null,""]
[null,null,null,null,null,null,null,""]
[null,null,null,null,null,null,null,""]
[null,null,null,null,null,null,null,""]
[null,null,null,null,null,null,null,""]
[null,null,null,null,null,null,null,""]
[null,null,null,null,null,null,null,""]
[null,null,null,null,null,null,null,""]
[null,null,null,null,null,null,null,""]
[null,null,null,null,null,null,null,""]
[null,null,null,null,null,null,null,""]
[null,null,null,null,null,null,null,""]
[null,null,null,null,null,null,null,""]
[null,null,null,null,null,null,null,""]
[null,null,null,null,null,null,null,""]
[null,null,null,null,null,null,null,""]
[null,null,null,null,null,null,null,""]
[null,null,null,null,null,null,null,""]
[null,null,null,null,null,null,null,""]
[null,null,null,null,null,null,null,""]
[null,null,null,null,null,null,null,""]
[null,null,null,null,null,null,null,""]
[null,null,null,null,null,null,null,""]
[null,null,null,null,null,null,null,""]
[null,null,null,null,null,null,null,""]
[null,null,null,null,null,null,null,""]
[null,null,null,null,null,null,null,""]
[null,null,null,null,null,null,null,""]
[null,null,null,null,null,null,null,""]
[null,null,null,null,null,null,null,""]
[null,null,null,null,null,null,null,""]
[null,null,null,null,null,null,null,""]
[null,null,null,null,null,null,null,""]
[null,null,null,null,null,null,null,""]
[null,null,null,null,null,null,null,""]
[null,null,null,null,null,null,null,""]
[null,null,null,null,null,null,null,""]
[null,null,null,null,null,null,null,""]
[null,null,null,null,null,null,null,""]
[null,null,null,null,null,null,null,""]
[null,null,null,null,null,null,null,""]
[null,null,null,null,null,null,null,""]
[null,null,null,null,null,null,null,""]
[null,null,null,null,null,null,null,""]
[null,null,null,null,null,null,null,""]
[null,null,null,null,null,null,null,""]
[null,null,null,null,null,null,null,""]
[null,null,null,null,null,null,null,""]
[null,null,null,null,null,null,null,""]
[null,null,null,null,null,null,null,""]
[null,null,null,null,null,null,null,""]
[null,null,null,null,null,null,null,""]
[null,null,null,null,null,null,null,""]
[null,null,null,null,null,null,null,""]
[null,null,null,null,null,null,null,""]
[null,null,null,null,null,null,null,""]
[null,null,null,null,null,null,null,""]
[null,null,null,null,null,null,null,""]
[null,null,null,null,null,null,null,""]
[null,null,null,null,null,null,null,""]
[null,null,null,null,null,null,null,""]
[null,null,null,null,null,null,null,{"$f":"IF(A586<>0,SUM(H586+C587-D587),\"\")","v":""}]
[null,null,null,null,null,null,null,""]
[null,null,null,null,null,null,null,""]
[null,null,null,null,null,null,null,""]
[null,null,null,null,null,null,null,""]
[null,null,null,null,null,null,null,""]
[null,null,null,null,null,null,null,""]
[null,null,null,null,null,null,null,""]
[null,null,null,null,null,null,null,""]
[null,null,null,null,null,null,null,""]
[null,null,null,null,null,null,null,""]
[null,null,null,null,null,null,null,""]
[null,null,null,null,null,null,null,""]
[null,null,null,null,null,null,null,""]
[null,null,null,null,null,null,null,""]
[null,null,null,null,null,null,null,""]
[null,null,null,null,null,null,null,""]
[null,null,null,null,null,null,null,""]
[null,null,null,null,null,null,null,""]
[null,null,null,null,null,null,null,""]
[null,null,null,null,null,null,null,""]
[null,null,null,null,null,null,null,""]
[null,null,null,null,null,null,null,""]
[null,null,null,null,null,null,null,""]
[null,null,null,null,null,null,null,""]
[null,null,null,null,null,null,null,""]
[null,null,null,null,null,null,null,""]
[null,null,null,null,null,null,null,""]
[null,null,null,null,null,null,null,""]
[null,null,null,null,null,null,null,""]
[null,null,null,null,null,null,null,""]
[null,null,null,null,null,null,null,""]
[null,null,null,null,null,null,null,""]
[null,null,null,null,null,null,null,""]
[null,null,null,null,null,null,null,""]
[null,null,null,null,null,null,null,""]
[null,null,null,null,null,null,null,""]
[null,null,null,null,null,null,null,""]
[null,null,null,null,null,null,null,""]
[null,null,null,null,null,null,null,""]
[null,null,null,null,null,null,null,""]
[null,null,null,null,null,null,null,""]
[null,null,null,null,null,null,null,""]
[null,null,null,null,null,null,null,""]
[null,null,null,null,null,null,null,""]
[null,null,null,null,null,null,null,""]
[null,null,null,null,null,null,null,""]
[null,null,null,null,null,null,null,""]
[null,null,null,null,null,null,null,""]
[null,null,null,null,null,null,null,""]
[null,null,null,null,null,null,null,""]
[null,null,null,null,null,null,null,""]
[null,null,null,null,null,null,null,""]
[null,null,null,null,null,null,null,""]
[null,null,null,null,null,null,null,""]
[null,null,null,null,null,null,null,""]
[null,null,null,null,null,null,null,""]
[null,null,null,null,null,null,null,""]
[null,null,null,null,null,null,null,""]
[null,null,null,null,null,null,null,""]
[null,null,null,null,null,null,null,""]
[null,null,null,null,null,null,null,""]
[null,null,null,null,null,null,null,""]
[null,null,null,null,null,null,null,""]
[null,null,null,null,null,null,null,{"$f":"IF(A650<>0,SUM(H650+C651-D651),\"\")","v":""}]
[null,null,null,null,null,null,null,""]
[null,null,null,null,null,null,null,""]
[null,null,null,null,null,null,null,""]
[null,null,null,null,null,null,null,""]
[null,null,null,null,null,null,null,""]
[null,null,null,null,null,null,null,""]
[null,null,null,null,null,null,null,""]
[null,null,null,null,null,null,null,""]
[null,null,null,null,null,null,null,""]
[null,null,null,null,null,null,null,""]
[null,null,null,null,null,null,null,""]
[null,null,null,null,null,null,null,""]
[null,null,null,null,null,null,null,""]
[null,null,null,null,null,null,null,""]
[null,null,null,null,null,null,null,""]
[null,null,null,null,null,null,null,""]
[null,null,null,null,null,null,null,""]
[null,null,null,null,null,null,null,""]
[null,null,null,null,null,null,null,""]
[null,null,null,null,null,null,null,""]
[null,null,null,null,null,null,null,""]
[null,null,null,null,null,null,null,""]
[null,null,null,null,null,null,null,""]
[null,null,null,null,null,null,null,""]
[null,null,null,null,null,null,null,""]
[null,null,null,null,null,null,null,""]
[null,null,null,null,null,null,null,""]
[null,null,null,null,null,null,null,""]
[null,null,null,null,null,null,null,""]
[null,null,null,null,null,null,null,""]
[null,null,null,null,null,null,null,""]
[null,null,null,null,null,null,null,""]
[null,null,null,null,null,null,null,""]
[null,null,null,null,null,null,null,""]
[null,null,null,null,null,null,null,""]
[null,null,null,null,null,null,null,""]
[null,null,null,null,null,null,null,""]
[null,null,null,null,null,null,null,""]
[null,null,null,null,null,null,null,""]
[null,null,null,null,null,null,null,""]
[null,null,null,null,null,null,null,""]
[null,null,null,null,null,null,null,""]
[null,null,null,null,null,null,null,""]
[null,null,null,null,null,null,null,""]
[null,null,null,null,null,null,null,""]
[null,null,null,null,null,null,null,""]
[null,null,null,null,null,null,null,""]
[null,null,null,null,null,null,null,""]
[null,null,null,null,null,null,null,""]
[null,null,null,null,null,null,null,""]
[null,null,null,null,null,null,null,""]
[null,null,null,null,null,null,null,""]
[null,null,null,null,null,null,null,""]
[null,null,null,null,null,null,null,""]
[null,null,null,null,null,null,null,""]
[null,null,null,null,null,null,null,""]
[null,null,null,null,null,null,null,""]
[null,null,null,null,null,null,null,""]
[null,null,null,null,null,null,null,""]
[null,null,null,null,null,null,null,""]
[null,null,null,null,null,null,null,""]
[null,null,null,null,null,null,null,""]
[null,null,null,null,null,null,null,""]
[null,null,null,null,null,null,null,{"$f":"IF(A714<>0,SUM(H714+C715-D715),\"\")","v":""}]
[null,null,null,null,null,null,null,""]
[null,null,null,null,null,null,null,""]
[null,null,null,null,null,null,null,""]
[null,null,null,null,null,null,null,""]
[null,null,null,null,null,null,null,""]
[null,null,null,null,null,null,null,""]
[null,null,null,null,null,null,null,""]
[null,null,null,null,null,null,null,""]
[null,null,null,null,null,null,null,""]
[null,null,null,null,null,null,null,""]
[null,null,null,null,null,null,null,""]
[null,null,null,null,null,null,null,""]
[null,null,null,null,null,null,null,""]
[null,null,null,null,null,null,null,""]
[null,null,null,null,null,null,null,""]
[null,null,null,null,null,null,null,""]
[null,null,null,null,null,null,null,""]
[null,null,null,null,null,null,null,""]
[null,null,null,null,null,null,null,""]
[null,null,null,null,null,null,null,""]
[null,null,null,null,null,null,null,""]
[null,null,null,null,null,null,null,""]
[null,null,null,null,null,null,null,""]
[null,null,null,null,null,null,null,""]
[null,null,null,null,null,null,null,""]
[null,null,null,null,null,null,null,""]
[null,null,null,null,null,null,null,""]
[null,null,null,null,null,null,null,""]
[null,null,null,null,null,null,null,""]
[null,null,null,null,null,null,null,""]
[null,null,null,null,null,null,null,""]
[null,null,null,null,null,null,null,""]
[null,null,null,null,null,null,null,""]
[null,null,null,null,null,null,null,""]
[null,null,null,null,null,null,null,""]
[null,null,null,null,null,null,null,""]
[null,null,null,null,null,null,null,""]
[null,null,null,null,null,null,null,""]
[null,null,null,null,null,null,null,""]
[null,null,null,null,null,null,null,""]
[null,null,null,null,null,null,null,""]
[null,null,null,null,null,null,null,""]
[null,null,null,null,null,null,null,""]
[null,null,null,null,null,null,null,""]
[null,null,null,null,null,null,null,""]
[null,null,null,null,null,null,null,""]
[null,null,null,null,null,null,null,""]
[null,null,null,null,null,null,null,""]
[null,null,null,null,null,null,null,""]
[null,null,null,null,null,null,null,""]
[null,null,null,null,null,null,null,""]
[null,null,null,null,null,null,null,""]
[null,null,null,null,null,null,null,""]
[null,null,null,null,null,null,null,""]
[null,null,null,null,null,null,null,""]
[null,null,null,null,null,null,null,""]
[null,null,null,null,null,null,null,""]
[null,null,null,null,null,null,null,""]
[null,null,null,null,null,null,null,""]
[null,null,null,null,null,null,null,""]
[null,null,null,null,null,null,null,""]
[null,null,null,null,null,null,null,""]
[null,null,null,null,null,null,null,""]
[null,null,null,null,null,null,null,{"$f":"IF(A778<>0,SUM(H778+C779-D779),\"\")","v":""}]
[null,null,null,null,null,null,null,""]
[null,null,null,null,null,null,null,""]
[null,null,null,null,null,null,null,""]
[null,null,null,null,null,null,null,""]
[null,null,null,null,null,null,null,""]
[null,null,null,null,null,null,null,""]
[null,null,null,null,null,null,null,""]
[null,null,null,null,null,null,null,""]
[null,null,null,null,null,null,null,""]
[null,null,null,null,null,null,null,""]
[null,null,null,null,null,null,null,""]
[null,null,null,null,null,null,null,""]
[null,null,null,null,null,null,null,""]
[null,null,null,null,null,null,null,""]
[null,null,null,null,null,null,null,""]
[null,null,null,null,null,null,null,""]
[null,null,null,null,null,null,null,""]
[null,null,null,null,null,null,null,""]
[null,null,null,null,null,null,null,""]
[null,null,null,null,null,null,null,""]
[null,null,null,null,null,null,null,""]
[null,null,null,null,null,null,null,""]
[null,null,null,null,null,null,null,""]
[null,null,null,null,null,null,null,""]
[null,null,null,null,null,null,null,""]
[null,null,null,null,null,null,null,""]
[null,null,null,null,null,null,null,""]
[null,null,null,null,null,null,null,""]
[null,null,null,null,null,null,null,""]
[null,null,null,null,null,null,null,""]
[null,null,null,null,null,null,null,""]
[null,null,null,null,null,null,null,""]
[null,null,null,null,null,null,null,""]
[null,null,null,null,null,null,null,""]
[null,null,null,null,null,null,null,""]
[null,null,null,null,null,null,null,""]
[null,null,null,null,null,null,null,""]
[null,null,null,null,null,null,null,""]
[null,null,null,null,null,null,null,""]
[null,null,null,null,null,null,null,""]
[null,null,null,null,null,null,null,""]
[null,null,null,null,null,null,null,""]
[null,null,null,null,null,null,null,""]
[null,null,null,null,null,null,null,""]
[null,null,null,null,null,null,null,""]
[null,null,null,null,null,null,null,""]
[null,null,null,null,null,null,null,""]
[null,null,null,null,null,null,null,""]
[null,null,null,null,null,null,null,""]
[null,null,null,null,null,null,null,""]
[null,null,null,null,null,null,null,""]
[null,null,null,null,null,null,null,""]
[null,null,null,null,null,null,null,""]
[null,null,null,null,null,null,null,""]
[null,null,null,null,null,null,null,""]
[null,null,null,null,null,null,null,""]
[null,null,null,null,null,null,null,""]
[null,null,null,null,null,null,null,""]
[null,null,null,null,null,null,null,""]
[null,null,null,null,null,null,null,""]
[null,null,null,null,null,null,null,""]
[null,null,null,null,null,null,null,""]
[null,null,null,null,null,null,null,""]
[null,null,null,null,null,null,null,{"$f":"IF(A842<>0,SUM(H842+C843-D843),\"\")","v":""}]
[null,null,null,null,null,null,null,""]
[null,null,null,null,null,null,null,""]
[null,null,null,null,null,null,null,""]
[null,null,null,null,null,null,null,""]
[null,null,null,null,null,null,null,""]
[null,null,null,null,null,null,null,""]
[null,null,null,null,null,null,null,""]
[null,null,null,null,null,null,null,""]
[null,null,null,null,null,null,null,""]
[null,null,null,null,null,null,null,""]
[null,null,null,null,null,null,null,""]
[null,null,null,null,null,null,null,""]
[null,null,null,null,null,null,null,""]
[null,null,null,null,null,null,null,""]
[null,null,null,null,null,null,null,""]
[null,null,null,null,null,null,null,""]
[null,null,null,null,null,null,null,""]
[null,null,null,null,null,null,null,""]
[null,null,null,null,null,null,null,""]
[null,null,null,null,null,null,null,""]
[null,null,null,null,null,null,null,""]
[null,null,null,null,null,null,null,""]
[null,null,null,null,null,null,null,""]
[null,null,null,null,null,null,null,""]
[null,null,null,null,null,null,null,""]
[null,null,null,null,null,null,null,""]
[null,null,null,null,null,null,null,""]
[null,null,null,null,null,null,null,""]
[null,null,null,null,null,null,null,""]
[null,null,null,null,null,null,null,""]
[null,null,null,null,null,null,null,""]
[null,null,null,null,null,null,null,""]
[null,null,null,null,null,null,null,""]
[null,null,null,null,null,null,null,""]
[null,null,null,null,null,null,null,""]
[null,null,null,null,null,null,null,""]
[null,null,null,null,null,null,null,""]
[null,null,null,null,null,null,null,""]
[null,null,null,null,null,null,null,""]
[null,null,null,null,null,null,null,""]
[null,null,null,null,null,null,null,""]
[null,null,null,null,null,null,null,""]
[null,null,null,null,null,null,null,""]
[null,null,null,null,null,null,null,""]
[null,null,null,null,null,null,null,""]
[null,null,null,null,null,null,null,""]
[null,null,null,null,null,null,null,""]
[null,null,null,null,null,null,null,""]
[null,null,null,null,null,null,null,""]
[null,null,null,null,null,null,null,""]
[null,null,null,null,null,null,null,""]
[null,null,null,null,null,null,null,""]
[null,null,null,null,null,null,null,""]
[null,null,null,null,null,null,null,""]
[null,null,null,null,null,null,null,""]
[null,null,null,null,null,null,null,""]
[null,null,null,null,null,null,null,""]
[null,null,null,null,null,null,null,""]
[null,null,null,null,null,null,null,""]
[null,null,null,null,null,null,null,""]
[null,null,null,null,null,null,null,""]
[null,null,null,null,null,null,null,""]
[null,null,null,null,null,null,null,""]
[null,null,null,null,null,null,null,{"$f":"IF(A906<>0,SUM(H906+C907-D907),\"\")","v":""}]
[null,null,null,null,null,null,null,""]
[null,null,null,null,null,null,null,""]
[null,null,null,null,null,null,null,""]
[null,null,null,null,null,null,null,""]
[null,null,null,null,null,null,null,""]
[null,null,null,null,null,null,null,""]
[null,null,null,null,null,null,null,""]
[null,null,null,null,null,null,null,""]
[null,null,null,null,null,null,null,""]
[null,null,null,null,null,null,null,""]
[null,null,null,null,null,null,null,""]
[null,null,null,null,null,null,null,""]
[null,null,null,null,null,null,null,""]
[null,null,null,null,null,null,null,""]
[null,null,null,null,null,null,null,""]
[null,null,null,null,null,null,null,""]
[null,null,null,null,null,null,null,""]
[null,null,null,null,null,null,null,""]
[null,null,null,null,null,null,null,""]
[null,null,null,null,null,null,null,""]
[null,null,null,null,null,null,null,""]
[null,null,null,null,null,null,null,""]
[null,null,null,null,null,null,null,""]
[null,null,null,null,null,null,null,""]
[null,null,null,null,null,null,null,""]
[null,null,null,null,null,null,null,""]
[null,null,null,null,null,null,null,""]
[null,null,null,null,null,null,null,""]
[null,null,null,null,null,null,null,""]
[null,null,null,null,null,null,null,""]
[null,null,null,null,null,null,null,""]
[null,null,null,null,null,null,null,""]
[null,null,null,null,null,null,null,""]
[null,null,null,null,null,null,null,""]
[null,null,null,null,null,null,null,""]
[null,null,null,null,null,null,null,""]
[null,null,null,null,null,null,null,""]
[null,null,null,null,null,null,null,""]
[null,null,null,null,null,null,null,""]
[null,null,null,null,null,null,null,""]
[null,null,null,null,null,null,null,""]
[null,null,null,null,null,null,null,""]
[null,null,null,null,null,null,null,""]
[null,null,null,null,null,null,null,""]
[null,null,null,null,null,null,null,""]
[null,null,null,null,null,null,null,""]
[null,null,null,null,null,null,null,""]
[null,null,null,null,null,null,null,""]
[null,null,null,null,null,null,null,""]
[null,null,null,null,null,null,null,""]
[null,null,null,null,null,null,null,""]
[null,null,null,null,null,null,null,""]
[null,null,null,null,null,null,null,""]
[null,null,null,null,null,null,null,""]
[null,null,null,null,null,null,null,""]
[null,null,null,null,null,null,null,""]
[null,null,null,null,null,null,null,""]
[null,null,null,null,null,null,null,""]
[null,null,null,null,null,null,null,""]
[null,null,null,null,null,null,null,""]
[null,null,null,null,null,null,null,""]
[null,null,null,null,null,null,null,""]
[null,null,null,null,null,null,null,""]
[null,null,null,null,null,null,null,{"$f":"IF(A970<>0,SUM(H970+C971-D971),\"\")","v":""}]
[null,null,null,null,null,null,null,""]
[null,null,null,null,null,null,null,""]
[null,null,null,null,null,null,null,""]
[null,null,null,null,null,null,null,""]
[null,null,null,null,null,null,null,""]
[null,null,null,null,null,null,null,""]
[null,null,null,null,null,null,null,""]
[null,null,null,null,null,null,null,""]
[null,null,null,null,null,null,null,""]
[null,null,null,null,null,null,null,""]
[null,null,null,null,null,null,null,""]
[null,null,null,null,null,null,null,""]
[null,null,null,null,null,null,null,""]
[null,null,null,null,null,null,null,""]
[null,null,null,null,null,null,null,""]
[null,null,null,null,null,null,null,""]
[null,null,null,null,null,null,null,""]
[null,null,null,null,null,null,null,""]
[null,null,null,null,null,null,null,""]
[null,null,null,null,null,null,null,""]
[null,null,null,null,null,null,null,""]
[null,null,null,null,null,null,null,""]
[null,null,null,null,null,null,null,""]
[null,null,null,null,null,null,null,""]
[null,null,null,null,null,null,null,""]
[null,null,null,null,null,null,null,""]
[null,null,null,null,null,null,null,""]
[null,null,null,null,null,null,null,""]
[null,null,null,null,null,null,null,""]
[null,null,null,null,null,null,null,""]
[null,null,null,null,null,null,null,""]
[null,null,null,null,null,null,null,""]
[null,null,null,null,null,null,null,""]
[null,null,null,null,null,null,null,""]
[null,null,null,null,null,null,null,""]
[null,null,null,null,null,null,null,""]
[null,null,null,null,null,null,null,""]
[null,null,null,null,null,null,null,""]
[null,null,null,null,null,null,null,""]
[null,null,null,null,null,null,null,""]
[null,null,null,null,null,null,null,""]
[null,null,null,null,null,null,null,""]
[null,null,null,null,null,null,null,""]
[null,null,null,null,null,null,null,""]
[null,null,null,null,null,null,null,""]
[null,null,null,null,null,null,null,""]
[null,null,null,null,null,null,null,""]
[null,null,null,null,null,null,null,""]
[null,null,null,null,null,null,null,""]
[null,null,null,null,null,null,null,""]
[null,null,null,null,null,null,null,""]
[null,null,null,null,null,null,null,""]
[null,null,null,null,null,null,null,""]
[null,null,null,null,null,null,null,""]
[null,null,null,null,null,null,null,""]
[null,null,null,null,null,null,null,""]
[null,null,null,null,null,null,null,""]
[null,null,null,null,null,null,null,""]
[null,null,null,null,null,null,null,""]
[null,null,null,null,null,null,null,""]
[null,null,null,null,null,null,null,""]
[null,null,null,null,null,null,null,""]
[null,null,null,null,null,null,null,""]
[null,null,null,null,null,null,null,{"$f":"IF(A1034<>0,SUM(H1034+C1035-D1035),\"\")","v":""}]
[null,null,null,null,null,null,null,""]
[null,null,null,null,null,null,null,""]
[null,null,null,null,null,null,null,""]
[null,null,null,null,null,null,null,""]
[null,null,null,null,null,null,null,""]
[null,null,null,null,null,null,null,""]
[null,null,null,null,null,null,null,""]
[null,null,null,null,null,null,null,""]
[null,null,null,null,null,null,null,""]
[null,null,null,null,null,null,null,""]
[null,null,null,null,null,null,null,""]
[null,null,null,null,null,null,null,""]
[null,null,null,null,null,null,null,""]
[null,null,null,null,null,null,null,""]
[null,null,null,null,null,null,null,""]
[null,null,null,null,null,null,null,""]
[null,null,null,null,null,null,null,""]
[null,null,null,null,null,null,null,""]
[null,null,null,null,null,null,null,""]
[null,null,null,null,null,null,null,""]
[null,null,null,null,null,null,null,""]
[null,null,null,null,null,null,null,""]
[null,null,null,null,null,null,null,""]
[null,null,null,null,null,null,null,""]
[null,null,null,null,null,null,null,""]
[null,null,null,null,null,null,null,""]
[null,null,null,null,null,null,null,""]
[null,null,null,null,null,null,null,""]
[null,null,null,null,null,null,null,""]
[null,null,null,null,null,null,null,""]
[null,null,null,null,null,null,null,""]
[null,null,null,null,null,null,null,""]
[null,null,null,null,null,null,null,""]
[null,null,null,null,null,null,null,""]
[null,null,null,null,null,null,null,""]
[null,null,null,null,null,null,null,""]
[null,null,null,null,null,null,null,""]
[null,null,null,null,null,null,null,""]
[null,null,null,null,null,null,null,""]
[null,null,null,null,null,null,null,""]
[null,null,null,null,null,null,null,""]
[null,null,null,null,null,null,null,""]
[null,null,null,null,null,null,null,""]
[null,null,null,null,null,null,null,""]
[null,null,null,null,null,null,null,""]
[null,null,null,null,null,null,null,""]
[null,null,null,null,null,null,null,""]
[null,null,null,null,null,null,null,""]
[null,null,null,null,null,null,null,""]
[null,null,null,null,null,null,null,""]
[null,null,null,null,null,null,null,""]
[null,null,null,null,null,null,null,""]
[null,null,null,null,null,null,null,""]
[null,null,null,null,null,null,null,""]
[null,null,null,null,null,null,null,""]
[null,null,null,null,null,null,null,""]
[null,null,null,null,null,null,null,""]
[null,null,null,null,null,null,null,""]
[null,null,null,null,null,null,null,""]
[null,null,null,null,null,null,null,""]
[null,null,null,null,null,null,null,""]
[null,null,null,null,null,null,null,""]
[null,null,null,null,null,null,null,""]
[null,null,null,null,null,null,null,{"$f":"IF(A1098<>0,SUM(H1098+C1099-D1099),\"\")","v":""}]
[null,null,null,null,null,null,null,""]
[null,null,null,null,null,null,null,""]
[null,null,null,null,null,null,null,""]
[null,null,null,null,null,null,null,""]
[null,null,null,null,null,null,null,""]
[null,null,null,null,null,null,null,""]
[null,null,null,null,null,null,null,""]
[null,null,null,null,null,null,null,""]
[null,null,null,null,null,null,null,""]
[null,null,null,null,null,null,null,""]
[null,null,null,null,null,null,null,""]
[null,null,null,null,null,null,null,""]
[null,null,null,null,null,null,null,""]
[null,null,null,null,null,null,null,""]
[null,null,null,null,null,null,null,""]
[null,null,null,null,null,null,null,""]
[null,null,null,null,null,null,null,""]
[null,null,null,null,null,null,null,""]
[null,null,null,null,null,null,null,""]
[null,null,null,null,null,null,null,""]
[null,null,null,null,null,null,null,""]
[null,null,null,null,null,null,null,""]
[null,null,null,null,null,null,null,""]
[null,null,null,null,null,null,null,""]
[null,null,null,null,null,null,null,""]
[null,null,null,null,null,null,null,""]
[null,null,null,null,null,null,null,""]
[null,null,null,null,null,null,null,""]
[null,null,null,null,null,null,null,""]
[null,null,null,null,null,null,null,""]
[null,null,null,null,null,null,null,""]
[null,null,null,null,null,null,null,""]
[null,null,null,null,null,null,null,""]
[null,null,null,null,null,null,null,""]
[null,null,null,null,null,null,null,""]
[null,null,null,null,null,null,null,""]
[null,null,null,null,null,null,null,""]
[null,null,null,null,null,null,null,""]
[null,null,null,null,null,null,null,""]
[null,null,null,null,null,null,null,""]
[null,null,null,null,null,null,null,""]
[null,null,null,null,null,null,null,""]
[null,null,null,null,null,null,null,""]
[null,null,null,null,null,null,null,""]
[null,null,null,null,null,null,null,""]
[null,null,null,null,null,null,null,""]
[null,null,null,null,null,null,null,""]
[null,null,null,null,null,null,null,""]
[null,null,null,null,null,null,null,""]
[null,null,null,null,null,null,null,""]
[null,null,null,null,null,null,null,""]
[null,null,null,null,null,null,null,""]
[null,null,null,null,null,null,null,""]
[null,null,null,null,null,null,null,""]
[null,null,null,null,null,null,null,""]
[null,null,null,null,null,null,null,""]
[null,null,null,null,null,null,null,""]
[null,null,null,null,null,null,null,""]
[null,null,null,null,null,null,null,""]
[null,null,null,null,null,null,null,""]
[null,null,null,null,null,null,null,""]
[null,null,null,null,null,null,null,""]
[null,null,null,null,null,null,null,""]
[null,null,null,null,null,null,null,{"$f":"IF(A1162<>0,SUM(H1162+C1163-D1163),\"\")","v":""}]
[null,null,null,null,null,null,null,""]
[null,null,null,null,null,null,null,""]
[null,null,null,null,null,null,null,""]
[null,null,null,null,null,null,null,""]
[null,null,null,null,null,null,null,""]
[null,null,null,null,null,null,null,""]
[null,null,null,null,null,null,null,""]
[null,null,null,null,null,null,null,""]
[null,null,null,null,null,null,null,""]
[null,null,null,null,null,null,null,""]
[null,null,null,null,null,null,null,""]
[null,null,null,null,null,null,null,""]
[null,null,null,null,null,null,null,""]
[null,null,null,null,null,null,null,""]
[null,null,null,null,null,null,null,""]
[null,null,null,null,null,null,null,""]
[null,null,null,null,null,null,null,""]
[null,null,null,null,null,null,null,""]
[null,null,null,null,null,null,null,""]
[null,null,null,null,null,null,null,""]
[null,null,null,null,null,null,null,""]
[null,null,null,null,null,null,null,""]
[null,null,null,null,null,null,null,""]
[null,null,null,null,null,null,null,""]
[null,null,null,null,null,null,null,""]
[null,null,null,null,null,null,null,""]
[null,null,null,null,null,null,null,""]
[null,null,null,null,null,null,null,""]
[null,null,null,null,null,null,null,""]
[null,null,null,null,null,null,null,""]
[null,null,null,null,null,null,null,""]
[null,null,null,null,null,null,null,""]
[null,null,null,null,null,null,null,""]
[null,null,null,null,null,null,null,""]
[null,null,null,null,null,null,null,""]
[null,null,null,null,null,null,null,""]
[null,null,null,null,null,null,null,""]
[null,null,null,null,null,null,null,""]
[null,null,null,null,null,null,null,""]
[null,null,null,null,null,null,null,""]
[null,null,null,null,null,null,null,""]
[null,null,null,null,null,null,null,""]
[null,null,null,null,null,null,null,""]
[null,null,null,null,null,null,null,""]
[null,null,null,null,null,null,null,""]
[null,null,null,null,null,null,null,""]
[null,null,null,null,null,null,null,""]
[null,null,null,null,null,null,null,""]
[null,null,null,null,null,null,null,""]
[null,null,null,null,null,null,null,""]
[null,null,null,null,null,null,null,""]
[null,null,null,null,null,null,null,""]
[null,null,null,null,null,null,null,""]
[null,null,null,null,null,null,null,""]
[null,null,null,null,null,null,null,""]
[null,null,null,null,null,null,null,""]
[null,null,null,null,null,null,null,""]
[null,null,null,null,null,null,null,""]
[null,null,null,null,null,null,null,""]
[null,null,null,null,null,null,null,""]
[null,null,null,null,null,null,null,""]
[null,null,null,null,null,null,null,""]
[null,null,null,null,null,null,null,""]
[null,null,null,null,null,null,null,{"$f":"IF(A1226<>0,SUM(H1226+C1227-D1227),\"\")","v":""}]
[null,null,null,null,null,null,null,""]
[null,null,null,null,null,null,null,""]
[null,null,null,null,null,null,null,""]
[null,null,null,null,null,null,null,""]
[null,null,null,null,null,null,null,""]
[null,null,null,null,null,null,null,""]
[null,null,null,null,null,null,null,""]
[null,null,null,null,null,null,null,""]
[null,null,null,null,null,null,null,""]
[null,null,null,null,null,null,null,""]
[null,null,null,null,null,null,null,""]
[null,null,null,null,null,null,null,""]
[null,null,null,null,null,null,null,""]
[null,null,null,null,null,null,null,""]
[null,null,null,null,null,null,null,""]
[null,null,null,null,null,null,null,""]
[null,null,null,null,null,null,null,""]
[null,null,null,null,null,null,null,""]
[null,null,null,null,null,null,null,""]
[null,null,null,null,null,null,null,""]
[null,null,null,null,null,null,null,""]
[null,null,null,null,null,null,null,""]
[null,null,null,null,null,null,null,""]
[null,null,null,null,null,null,null,""]
[null,null,null,null,null,null,null,""]
[null,null,null,null,null,null,null,""]
[null,null,null,null,null,null,null,""]
[null,null,null,null,null,null,null,""]
[null,null,null,null,null,null,null,""]
[null,null,null,null,null,null,null,""]
[null,null,null,null,null,null,null,""]
[null,null,null,null,null,null,null,""]
[null,null,null,null,null,null,null,""]
[null,null,null,null,null,null,null,""]
[null,null,null,null,null,null,null,""]
[null,null,null,null,null,null,null,""]
[null,null,null,null,null,null,null,""]
[null,null,null,null,null,null,null,""]
[null,null,null,null,null,null,null,""]
[null,null,null,null,null,null,null,""]
[null,null,null,null,null,null,null,""]
[null,null,null,null,null,null,null,""]
[null,null,null,null,null,null,null,""]
[null,null,null,null,null,null,null,""]
[null,null,null,null,null,null,null,""]
[null,null,null,null,null,null,null,""]
[null,null,null,null,null,null,null,""]
[null,null,null,null,null,null,null,""]
[null,null,null,null,null,null,null,""]
[null,null,null,null,null,null,null,""]
[null,null,null,null,null,null,null,""]
[null,null,null,null,null,null,null,""]
[null,null,null,null,null,null,null,""]
[null,null,null,null,null,null,null,""]
[null,null,null,null,null,null,null,""]
[null,null,null,null,null,null,null,""]
[null,null,null,null,null,null,null,""]
[null,null,null,null,null,null,null,""]
[null,null,null,null,null,null,null,""]
[null,null,null,null,null,null,null,""]
[null,null,null,null,null,null,null,""]
[null,null,null,null,null,null,null,""]
[null,null,null,null,null,null,null,""]
[null,null,null,null,null,null,null,{"$f":"IF(A1290<>0,SUM(H1290+C1291-D1291),\"\")","v":""}]
[null,null,null,null,null,null,null,""]
[null,null,null,null,null,null,null,""]
[null,null,null,null,null,null,null,""]
[null,null,null,null,null,null,null,""]
[null,null,null,null,null,null,null,""]
[null,null,null,null,null,null,null,""]
[null,null,null,null,null,null,null,""]
[null,null,null,null,null,null,null,""]
[null,null,null,null,null,null,null,""]
[null,null,null,null,null,null,null,""]
[null,null,null,null,null,null,null,""]
[null,null,null,null,null,null,null,""]
[null,null,null,null,null,null,null,""]
[null,null,null,null,null,null,null,""]
[null,null,null,null,null,null,null,""]
[null,null,null,null,null,null,null,""]
[null,null,null,null,null,null,null,""]
[null,null,null,null,null,null,null,""]
[null,null,null,null,null,null,null,""]
[null,null,null,null,null,null,null,""]
[null,null,null,null,null,null,null,""]
[null,null,null,null,null,null,null,""]
[null,null,null,null,null,null,null,""]
[null,null,null,null,null,null,null,""]
[null,null,null,null,null,null,null,""]
[null,null,null,null,null,null,null,""]
[null,null,null,null,null,null,null,""]
[null,null,null,null,null,null,null,""]
[null,null,null,null,null,null,null,""]
[null,null,null,null,null,null,null,""]
[null,null,null,null,null,null,null,""]
[null,null,null,null,null,null,null,""]
[null,null,null,null,null,null,null,""]
[null,null,null,null,null,null,null,""]
[null,null,null,null,null,null,null,""]
[null,null,null,null,null,null,null,""]
[null,null,null,null,null,null,null,""]
[null,null,null,null,null,null,null,""]
[null,null,null,null,null,null,null,""]
[null,null,null,null,null,null,null,""]
[null,null,null,null,null,null,null,""]
[null,null,null,null,null,null,null,""]
[null,null,null,null,null,null,null,""]
[null,null,null,null,null,null,null,""]
[null,null,null,null,null,null,null,""]
[null,null,null,null,null,null,null,""]
[null,null,null,null,null,null,null,""]
[null,null,null,null,null,null,null,""]
[null,null,null,null,null,null,null,""]
[null,null,null,null,null,null,null,""]
[null,null,null,null,null,null,null,""]
[null,null,null,null,null,null,null,""]
[null,null,null,null,null,null,null,""]
[null,null,null,null,null,null,null,""]
[null,null,null,null,null,null,null,""]
[null,null,null,null,null,null,null,""]
[null,null,null,null,null,null,null,""]
[null,null,null,null,null,null,null,""]
[null,null,null,null,null,null,null,""]
[null,null,null,null,null,null,null,""]
[null,null,null,null,null,null,null,""]
[null,null,null,null,null,null,null,""]
[null,null,null,null,null,null,null,""]
[null,null,null,null,null,null,null,{"$f":"IF(A1354<>0,SUM(H1354+C1355-D1355),\"\")","v":""}]
[null,null,null,null,null,null,null,""]
[null,null,null,null,null,null,null,""]
[null,null,null,null,null,null,null,""]
[null,null,null,null,null,null,null,""]
[null,null,null,null,null,null,null,""]
[null,null,null,null,null,null,null,""]
[null,null,null,null,null,null,null,""]
[null,null,null,null,null,null,null,""]
[null,null,null,null,null,null,null,""]
[null,null,null,null,null,null,null,""]
[null,null,null,null,null,null,null,""]
[null,null,null,null,null,null,null,""]
[null,null,null,null,null,null,null,""]
[null,null,null,null,null,null,null,""]
[null,null,null,null,null,null,null,""]
[null,null,null,null,null,null,null,""]
[null,null,null,null,null,null,null,""]
[null,null,null,null,null,null,null,""]
[null,null,null,null,null,null,null,""]
[null,null,null,null,null,null,null,""]
[null,null,null,null,null,null,null,""]
[null,null,null,null,null,null,null,""]
[null,null,null,null,null,null,null,""]
[null,null,null,null,null,null,null,""]
[null,null,null,null,null,null,null,""]
[null,null,null,null,null,null,null,""]
[null,null,null,null,null,null,null,""]
[null,null,null,null,null,null,null,""]
[null,null,null,null,null,null,null,""]
[null,null,null,null,null,null,null,""]
[null,null,null,null,null,null,null,""]
[null,null,null,null,null,null,null,""]
[null,null,null,null,null,null,null,""]
[null,null,null,null,null,null,null,""]
[null,null,null,null,null,null,null,""]
[null,null,null,null,null,null,null,""]
[null,null,null,null,null,null,null,""]
[null,null,null,null,null,null,null,""]
[null,null,null,null,null,null,null,""]
[null,null,null,null,null,null,null,""]
[null,null,null,null,null,null,null,""]
[null,null,null,null,null,null,null,""]
[null,null,null,null,null,null,null,""]
[null,null,null,null,null,null,null,""]
[null,null,null,null,null,null,null,""]
[null,null,null,null,null,null,null,""]
[null,null,null,null,null,null,null,""]
[null,null,null,null,null,null,null,""]
[null,null,null,null,null,null,null,""]
[null,null,null,null,null,null,null,""]
[null,null,null,null,null,null,null,""]
[null,null,null,null,null,null,null,""]
[null,null,null,null,null,null,null,""]
[null,null,null,null,null,null,null,""]
[null,null,null,null,null,null,null,""]
[null,null,null,null,null,null,null,""]
[null,null,null,null,null,null,null,""]
[null,null,null,null,null,null,null,""]
[null,null,null,null,null,null,null,""]
[null,null,null,null,null,null,null,""]
[null,null,null,null,null,null,null,""]
[null,null,null,null,null,null,null,""]
[null,null,null,null,null,null,null,""]
[null,null,null,null,null,null,null,{"$f":"IF(A1418<>0,SUM(H1418+C1419-D1419),\"\")","v":""}]
[null,null,null,null,null,null,null,""]
[null,null,null,null,null,null,null,""]
[null,null,null,null,null,null,null,""]
[null,null,null,null,null,null,null,""]
[null,null,null,null,null,null,null,""]
[null,null,null,null,null,null,null,""]
[null,null,null,null,null,null,null,""]
[null,null,null,null,null,null,null,""]
[null,null,null,null,null,null,null,""]
[null,null,null,null,null,null,null,""]
[null,null,null,null,null,null,null,""]
[null,null,null,null,null,null,null,""]
[null,null,null,null,null,null,null,""]
[null,null,null,null,null,null,null,""]
[null,null,null,null,null,null,null,""]
[null,null,null,null,null,null,null,""]
[null,null,null,null,null,null,null,""]
[null,null,null,null,null,null,null,""]
[null,null,null,null,null,null,null,""]
[null,null,null,null,null,null,null,""]
[null,null,null,null,null,null,null,""]
[null,null,null,null,null,null,null,""]
[null,null,null,null,null,null,null,""]
[null,null,null,null,null,null,null,""]
[null,null,null,null,null,null,null,""]
[null,null,null,null,null,null,null,""]
[null,null,null,null,null,null,null,""]
[null,null,null,null,null,null,null,""]
[null,null,null,null,null,null,null,""]
[null,null,null,null,null,null,null,""]
[null,null,null,null,null,null,null,""]
[null,null,null,null,null,null,null,""]
[null,null,null,null,null,null,null,""]
[null,null,null,null,null,null,null,""]
[null,null,null,null,null,null,null,""]
[null,null,null,null,null,null,null,""]
[null,null,null,null,null,null,null,""]
[null,null,null,null,null,null,null,""]
[null,null,null,null,null,null,null,""]
[null,null,null,null,null,null,null,""]
[null,null,null,null,null,null,null,""]
[null,null,null,null,null,null,null,""]
[null,null,null,null,null,null,null,""]
[null,null,null,null,null,null,null,""]
[null,null,null,null,null,null,null,""]
[null,null,null,null,null,null,null,""]
[null,null,null,null,null,null,null,""]
[null,null,null,null,null,null,null,""]
[null,null,null,null,null,null,null,""]
[null,null,null,null,null,null,null,""]
[null,null,null,null,null,null,null,""]
[null,null,null,null,null,null,null,""]
[null,null,null,null,null,null,null,""]
[null,null,null,null,null,null,null,""]
[null,null,null,null,null,null,null,""]
[null,null,null,null,null,null,null,""]
[null,null,null,null,null,null,null,""]
[null,null,null,null,null,null,null,""]
[null,null,null,null,null,null,null,""]
[null,null,null,null,null,null,null,""]
[null,null,null,null,null,null,null,""]
[null,null,null,null,null,null,null,""]
[null,null,null,null,null,null,null,""]
[null,null,null,null,null,null,null,{"$f":"IF(A1482<>0,SUM(H1482+C1483-D1483),\"\")","v":""}]
[null,null,null,null,null,null,null,""]
[null,null,null,null,null,null,null,""]
[null,null,null,null,null,null,null,""]
[null,null,null,null,null,null,null,""]
[null,null,null,null,null,null,null,""]
[null,null,null,null,null,null,null,""]
[null,null,null,null,null,null,null,""]
[null,null,null,null,null,null,null,""]
[null,null,null,null,null,null,null,""]
[null,null,null,null,null,null,null,""]
[null,null,null,null,null,null,null,""]
[null,null,null,null,null,null,null,""]
[null,null,null,null,null,null,null,""]
[null,null,null,null,null,null,null,""]
[null,null,null,null,null,null,null,""]
[null,null,null,null,null,null,null,""]
[null,null,null,null,null,null,null,""]
[null,null,null,null,null,null,null,""]
[null,null,null,null,null,null,null,""]
[null,null,null,null,null,null,null,""]
[null,null,null,null,null,null,null,""]
[null,null,null,null,null,null,null,""]
[null,null,null,null,null,null,null,""]
[null,null,null,null,null,null,null,""]
[null,null,null,null,null,null,null,""]
[null,null,null,null,null,null,null,""]
[null,null,null,null,null,null,null,""]
[null,null,null,null,null,null,null,""]
[null,null,null,null,null,null,null,""]
[null,null,null,null,null,null,null,""]
[null,null,null,null,null,null,null,""]
[null,null,null,null,null,null,null,""]
[null,null,null,null,null,null,null,""]
[null,null,null,null,null,null,null,""]
[null,null,null,null,null,null,null,""]
[null,null,null,null,null,null,null,""]
[null,null,null,null,null,null,null,""]
[null,null,null,null,null,null,null,""]
[null,null,null,null,null,null,null,""]
[null,null,null,null,null,null,null,""]
[null,null,null,null,null,null,null,""]
[null,null,null,null,null,null,null,""]
[null,null,null,null,null,null,null,""]
[null,null,null,null,null,null,null,""]
[null,null,null,null,null,null,null,""]
[null,null,null,null,null,null,null,""]
[null,null,null,null,null,null,null,""]
[null,null,null,null,null,null,null,""]
[null,null,null,null,null,null,null,""]
[null,null,null,null,null,null,null,""]
[null,null,null,null,null,null,null,""]
[null,null,null,null,null,null,null,""]
[null,null,null,null,null,null,null,""]
[null,null,null,null,null,null,null,""]
[null,null,null,null,null,null,null,""]
[null,null,null,null,null,null,null,""]
[null,null,null,null,null,null,null,""]
[null,null,null,null,null,null,null,""]
[null,null,null,null,null,null,null,""]
[null,null,null,null,null,null,null,""]
[null,null,null,null,null,null,null,""]
[null,null,null,null,null,null,null,""]
[null,null,null,null,null,null,null,""]
[null,null,null,null,null,null,null,{"$f":"IF(A1546<>0,SUM(H1546+C1547-D1547),\"\")","v":""}]
[null,null,null,null,null,null,null,""]
[null,null,null,null,null,null,null,""]
[null,null,null,null,null,null,null,""]
[null,null,null,null,null,null,null,""]
[null,null,null,null,null,null,null,""]
[null,null,null,null,null,null,null,""]
[null,null,null,null,null,null,null,""]
[null,null,null,null,null,null,null,""]
[null,null,null,null,null,null,null,""]
[null,null,null,null,null,null,null,""]
[null,null,null,null,null,null,null,""]
[null,null,null,null,null,null,null,""]
[null,null,null,null,null,null,null,""]
[null,null,null,null,null,null,null,""]
[null,null,null,null,null,null,null,""]
[null,null,null,null,null,null,null,""]
[null,null,null,null,null,null,null,""]
[null,null,null,null,null,null,null,""]
[null,null,null,null,null,null,null,""]
[null,null,null,null,null,null,null,""]
[null,null,null,null,null,null,null,""]
[null,null,null,null,null,null,null,""]
[null,null,null,null,null,null,null,""]
[null,null,null,null,null,null,null,""]
[null,null,null,null,null,null,null,""]
[null,null,null,null,null,null,null,""]
[null,null,null,null,null,null,null,""]
[null,null,null,null,null,null,null,""]
[null,null,null,null,null,null,null,""]
[null,null,null,null,null,null,null,""]
[null,null,null,null,null,null,null,""]
[null,null,null,null,null,null,null,""]
[null,null,null,null,null,null,null,""]
[null,null,null,null,null,null,null,""]
[null,null,null,null,null,null,null,""]
[null,null,null,null,null,null,null,""]
[null,null,null,null,null,null,null,""]
[null,null,null,null,null,null,null,""]
[null,null,null,null,null,null,null,""]
[null,null,null,null,null,null,null,""]
[null,null,null,null,null,null,null,""]
[null,null,null,null,null,null,null,""]
[null,null,null,null,null,null,null,""]
[null,null,null,null,null,null,null,""]
[null,null,null,null,null,null,null,""]
[null,null,null,null,null,null,null,""]
[null,null,null,null,null,null,null,""]
[null,null,null,null,null,null,null,""]
[null,null,null,null,null,null,null,""]
[null,null,null,null,null,null,null,""]
[null,null,null,null,null,null,null,""]
[null,null,null,null,null,null,null,""]
[null,null,null,null,null,null,null,""]
[null,null,null,null,null,null,null,""]
[null,null,null,null,null,null,null,""]
[null,null,null,null,null,null,null,""]
[null,null,null,null,null,null,null,""]
[null,null,null,null,null,null,null,""]
[null,null,null,null,null,null,null,""]
[null,null,null,null,null,null,null,""]
[null,null,null,null,null,null,null,""]
[null,null,null,null,null,null,null,""]
[null,null,null,null,null,null,null,""]
[null,null,null,null,null,null,null,{"$f":"IF(A1610<>0,SUM(H1610+C1611-D1611),\"\")","v":""}]
[null,null,null,null,null,null,null,""]
[null,null,null,null,null,null,null,""]
[null,null,null,null,null,null,null,""]
[null,null,null,null,null,null,null,""]
[null,null,null,null,null,null,null,""]
[null,null,null,null,null,null,null,""]
[null,null,null,null,null,null,null,""]
[null,null,null,null,null,null,null,""]
[null,null,null,null,null,null,null,""]
[null,null,null,null,null,null,null,""]
[null,null,null,null,null,null,null,""]
[null,null,null,null,null,null,null,""]
[null,null,null,null,null,null,null,""]
[null,null,null,null,null,null,null,""]
[null,null,null,null,null,null,null,""]
[null,null,null,null,null,null,null,""]
[null,null,null,null,null,null,null,""]
[null,null,null,null,null,null,null,""]
[null,null,null,null,null,null,null,""]
[null,null,null,null,null,null,null,""]
[null,null,null,null,null,null,null,""]
[null,null,null,null,null,null,null,""]
[null,null,null,null,null,null,null,""]
[null,null,null,null,null,null,null,""]
[null,null,null,null,null,null,null,""]
[null,null,null,null,null,null,null,""]
[null,null,null,null,null,null,null,""]
[null,null,null,null,null,null,null,""]
[null,null,null,null,null,null,null,""]
[null,null,null,null,null,null,null,""]
[null,null,null,null,null,null,null,""]
[null,null,null,null,null,null,null,""]
[null,null,null,null,null,null,null,""]
[null,null,null,null,null,null,null,""]
[null,null,null,null,null,null,null,""]
[null,null,null,null,null,null,null,""]
[null,null,null,null,null,null,null,""]
[null,null,null,null,null,null,null,""]
[null,null,null,null,null,null,null,""]
[null,null,null,null,null,null,null,""]
[null,null,null,null,null,null,null,""]
[null,null,null,null,null,null,null,""]
[null,null,null,null,null,null,null,""]
[null,null,null,null,null,null,null,""]
[null,null,null,null,null,null,null,""]
[null,null,null,null,null,null,null,""]
[null,null,null,null,null,null,null,""]
[null,null,null,null,null,null,null,""]
[null,null,null,null,null,null,null,""]
[null,null,null,null,null,null,null,""]
[null,null,null,null,null,null,null,""]
[null,null,null,null,null,null,null,""]
[null,null,null,null,null,null,null,""]
[null,null,null,null,null,null,null,""]
[null,null,null,null,null,null,null,""]
[null,null,null,null,null,null,null,""]
[null,null,null,null,null,null,null,""]
[null,null,null,null,null,null,null,""]
[null,null,null,null,null,null,null,""]
[null,null,null,null,null,null,null,""]
[null,null,null,null,null,null,null,""]
[null,null,null,null,null,null,null,""]
[null,null,null,null,null,null,null,""]
[null,null,null,null,null,null,null,{"$f":"IF(A1674<>0,SUM(H1674+C1675-D1675),\"\")","v":""}]
[null,null,null,null,null,null,null,""]
[null,null,null,null,null,null,null,""]
[null,null,null,null,null,null,null,""]
[null,null,null,null,null,null,null,""]
[null,null,null,null,null,null,null,""]
[null,null,null,null,null,null,null,""]
[null,null,null,null,null,null,null,""]
[null,null,null,null,null,null,null,""]
[null,null,null,null,null,null,null,""]
[null,null,null,null,null,null,null,""]
[null,null,null,null,null,null,null,""]
[null,null,null,null,null,null,null,""]
[null,null,null,null,null,null,null,""]
[null,null,null,null,null,null,null,""]
[null,null,null,null,null,null,null,""]
[null,null,null,null,null,null,null,""]
[null,null,null,null,null,null,null,""]
[null,null,null,null,null,null,null,""]
[null,null,null,null,null,null,null,""]
[null,null,null,null,null,null,null,""]
[null,null,null,null,null,null,null,""]
[null,null,null,null,null,null,null,""]
[null,null,null,null,null,null,null,""]
[null,null,null,null,null,null,null,""]
[null,null,null,null,null,null,null,""]
[null,null,null,null,null,null,null,""]
[null,null,null,null,null,null,null,""]
[null,null,null,null,null,null,null,""]
[null,null,null,null,null,null,null,""]
[null,null,null,null,null,null,null,""]
[null,null,null,null,null,null,null,""]
[null,null,null,null,null,null,null,""]
[null,null,null,null,null,null,null,""]
[null,null,null,null,null,null,null,""]
[null,null,null,null,null,null,null,""]
[null,null,null,null,null,null,null,""]
[null,null,null,null,null,null,null,""]
[null,null,null,null,null,null,null,""]
[null,null,null,null,null,null,null,""]
[null,null,null,null,null,null,null,""]
[null,null,null,null,null,null,null,""]
[null,null,null,null,null,null,null,""]
[null,null,null,null,null,null,null,""]
[null,null,null,null,null,null,null,""]
[null,null,null,null,null,null,null,""]
[null,null,null,null,null,null,null,""]
[null,null,null,null,null,null,null,""]
[null,null,null,null,null,null,null,""]
[null,null,null,null,null,null,null,""]
[null,null,null,null,null,null,null,""]
[null,null,null,null,null,null,null,""]
[null,null,null,null,null,null,null,""]
[null,null,null,null,null,null,null,""]
[null,null,null,null,null,null,null,""]
[null,null,null,null,null,null,null,""]
[null,null,null,null,null,null,null,""]
[null,null,null,null,null,null,null,""]
[null,null,null,null,null,null,null,""]
[null,null,null,null,null,null,null,""]
[null,null,null,null,null,null,null,""]
[null,null,null,null,null,null,null,""]
[null,null,null,null,null,null,null,""]
[null,null,null,null,null,null,null,""]
[null,null,null,null,null,null,null,{"$f":"IF(A1738<>0,SUM(H1738+C1739-D1739),\"\")","v":""}]
[null,null,null,null,null,null,null,""]
[null,null,null,null,null,null,null,""]
[null,null,null,null,null,null,null,""]
[null,null,null,null,null,null,null,""]
[null,null,null,null,null,null,null,""]
[null,null,null,null,null,null,null,""]
[null,null,null,null,null,null,null,""]
[null,null,null,null,null,null,null,""]
[null,null,null,null,null,null,null,""]
[null,null,null,null,null,null,null,""]
[null,null,null,null,null,null,null,""]
[null,null,null,null,null,null,null,""]
[null,null,null,null,null,null,null,""]
[null,null,null,null,null,null,null,""]
[null,null,null,null,null,null,null,""]
[null,null,null,null,null,null,null,""]
[null,null,null,null,null,null,null,""]
[null,null,null,null,null,null,null,""]
[null,null,null,null,null,null,null,""]
[null,null,null,null,null,null,null,""]
[null,null,null,null,null,null,null,""]
[null,null,null,null,null,null,null,""]
[null,null,null,null,null,null,null,""]
[null,null,null,null,null,null,null,""]
[null,null,null,null,null,null,null,""]
[null,null,null,null,null,null,null,""]
[null,null,null,null,null,null,null,""]
[null,null,null,null,null,null,null,""]
[null,null,null,null,null,null,null,""]
[null,null,null,null,null,null,null,""]
[null,null,null,null,null,null,null,""]
[null,null,null,null,null,null,null,""]
[null,null,null,null,null,null,null,""]
[null,null,null,null,null,null,null,""]
[null,null,null,null,null,null,null,""]
[null,null,null,null,null,null,null,""]
[null,null,null,null,null,null,null,""]
[null,null,null,null,null,null,null,""]
[null,null,null,null,null,null,null,""]
[null,null,null,null,null,null,null,""]
[null,null,null,null,null,null,null,""]
[null,null,null,null,null,null,null,""]
[null,null,null,null,null,null,null,""]
[null,null,null,null,null,null,null,""]
[null,null,null,null,null,null,null,""]
[null,null,null,null,null,null,null,""]
[null,null,null,null,null,null,null,""]
[null,null,null,null,null,null,null,""]
[null,null,null,null,null,null,null,""]
[null,null,null,null,null,null,null,""]
[null,null,null,null,null,null,null,""]
[null,null,null,null,null,null,null,""]
[null,null,null,null,null,null,null,""]
[null,null,null,null,null,null,null,""]
[null,null,null,null,null,null,null,""]
[null,null,null,null,null,null,null,""]
[null,null,null,null,null,null,null,""]
[null,null,null,null,null,null,null,""]
[null,null,null,null,null,null,null,""]
[null,null,null,null,null,null,null,""]
[null,null,null,null,null,null,null,""]
[null,null,null,null,null,null,null,""]
[null,null,null,null,null,null,null,""]
[null,null,null,null,null,null,null,{"$f":"IF(A1802<>0,SUM(H1802+C1803-D1803),\"\")","v":""}]
[null,null,null,null,null,null,null,""]
[null,null,null,null,null,null,null,""]
[null,null,null,null,null,null,null,""]
[null,null,null,null,null,null,null,""]
[null,null,null,null,null,null,null,""]
[null,null,null,null,null,null,null,""]
[null,null,null,null,null,null,null,""]
[null,null,null,null,null,null,null,""]
[null,null,null,null,null,null,null,""]
[null,null,null,null,null,null,null,""]
[null,null,null,null,null,null,null,""]
[null,null,null,null,null,null,null,""]
[null,null,null,null,null,null,null,""]
[null,null,null,null,null,null,null,""]
[null,null,null,null,null,null,null,""]
[null,null,null,null,null,null,null,""]
[null,null,null,null,null,null,null,""]
[null,null,null,null,null,null,null,""]
[null,null,null,null,null,null,null,""]
[null,null,null,null,null,null,null,""]
[null,null,null,null,null,null,null,""]
[null,null,null,null,null,null,null,""]
[null,null,null,null,null,null,null,""]
[null,null,null,null,null,null,null,""]
[null,null,null,null,null,null,null,""]
[null,null,null,null,null,null,null,""]
[null,null,null,null,null,null,null,""]
[null,null,null,null,null,null,null,""]
[null,null,null,null,null,null,null,""]
[null,null,null,null,null,null,null,""]
[null,null,null,null,null,null,null,""]
[null,null,null,null,null,null,null,""]
[null,null,null,null,null,null,null,""]
[null,null,null,null,null,null,null,""]
[null,null,null,null,null,null,null,""]
[null,null,null,null,null,null,null,""]
[null,null,null,null,null,null,null,""]
[null,null,null,null,null,null,null,""]
[null,null,null,null,null,null,null,""]
[null,null,null,null,null,null,null,""]
[null,null,null,null,null,null,null,""]
[null,null,null,null,null,null,null,""]
[null,null,null,null,null,null,null,""]
[null,null,null,null,null,null,null,""]
[null,null,null,null,null,null,null,""]
[null,null,null,null,null,null,null,""]
[null,null,null,null,null,null,null,""]
[null,null,null,null,null,null,null,""]
[null,null,null,null,null,null,null,""]
[null,null,null,null,null,null,null,""]
[null,null,null,null,null,null,null,""]
[null,null,null,null,null,null,null,""]
[null,null,null,null,null,null,null,""]
[null,null,null,null,null,null,null,""]
[null,null,null,null,null,null,null,""]
[null,null,null,null,null,null,null,""]
[null,null,null,null,null,null,null,""]
[null,null,null,null,null,null,null,""]
[null,null,null,null,null,null,null,""]
[null,null,null,null,null,null,null,""]
[null,null,null,null,null,null,null,""]
[null,null,null,null,null,null,null,""]
[null,null,null,null,null,null,null,""]
[null,null,null,null,null,null,null,{"$f":"IF(A1866<>0,SUM(H1866+C1867-D1867),\"\")","v":""}]
[null,null,null,null,null,null,null,""]
[null,null,null,null,null,null,null,""]
[null,null,null,null,null,null,null,""]
[null,null,null,null,null,null,null,""]
[null,null,null,null,null,null,null,""]
[null,null,null,null,null,null,null,""]
[null,null,null,null,null,null,null,""]
[null,null,null,null,null,null,null,""]
[null,null,null,null,null,null,null,""]
[null,null,null,null,null,null,null,""]
[null,null,null,null,null,null,null,""]
[null,null,null,null,null,null,null,""]
[null,null,null,null,null,null,null,""]
[null,null,null,null,null,null,null,""]
[null,null,null,null,null,null,null,""]
[null,null,null,null,null,null,null,""]
[null,null,null,null,null,null,null,""]
[null,null,null,null,null,null,null,""]
[null,null,null,null,null,null,null,""]
[null,null,null,null,null,null,null,""]
[null,null,null,null,null,null,null,""]
[null,null,null,null,null,null,null,""]
[null,null,null,null,null,null,null,""]
[null,null,null,null,null,null,null,""]
[null,null,null,null,null,null,null,""]
[null,null,null,null,null,null,null,""]
[null,null,null,null,null,null,null,""]
[null,null,null,null,null,null,null,""]
[null,null,null,null,null,null,null,""]
[null,null,null,null,null,null,null,""]
[null,null,null,null,null,null,null,""]
[null,null,null,null,null,null,null,""]
[null,null,null,null,null,null,null,""]
[null,null,null,null,null,null,null,""]
[null,null,null,null,null,null,null,""]
[null,null,null,null,null,null,null,""]
[null,null,null,null,null,null,null,""]
[null,null,null,null,null,null,null,""]
[null,null,null,null,null,null,null,""]
[null,null,null,null,null,null,null,""]
[null,null,null,null,null,null,null,""]
[null,null,null,null,null,null,null,""]
[null,null,null,null,null,null,null,""]
[null,null,null,null,null,null,null,""]
[null,null,null,null,null,null,null,""]
[null,null,null,null,null,null,null,""]
[null,null,null,null,null,null,null,""]
[null,null,null,null,null,null,null,""]
[null,null,null,null,null,null,null,""]
[null,null,null,null,null,null,null,""]
[null,null,null,null,null,null,null,""]
[null,null,null,null,null,null,null,""]
[null,null,null,null,null,null,null,""]
[null,null,null,null,null,null,null,""]
[null,null,null,null,null,null,null,""]
[null,null,null,null,null,null,null,""]
[null,null,null,null,null,null,null,""]
[null,null,null,null,null,null,null,""]
[null,null,null,null,null,null,null,""]
[null,null,null,null,null,null,null,""]
[null,null,null,null,null,null,null,""]
[null,null,null,null,null,null,null,""]
[null,null,null,null,null,null,null,""]
[null,null,null,null,null,null,null,{"$f":"IF(A1930<>0,SUM(H1930+C1931-D1931),\"\")","v":""}]
[null,null,null,null,null,null,null,""]
[null,null,null,null,null,null,null,""]
[null,null,null,null,null,null,null,""]
[null,null,null,null,null,null,null,""]
[null,null,null,null,null,null,null,""]
[null,null,null,null,null,null,null,""]
[null,null,null,null,null,null,null,""]
[null,null,null,null,null,null,null,""]
[null,null,null,null,null,null,null,""]
[null,null,null,null,null,null,null,""]
[null,null,null,null,null,null,null,""]
[null,null,null,null,null,null,null,""]
[null,null,null,null,null,null,null,""]
[null,null,null,null,null,null,null,""]
[null,null,null,null,null,null,null,""]
[null,null,null,null,null,null,null,""]
[null,null,null,null,null,null,null,""]
[null,null,null,null,null,null,null,""]
[null,null,null,null,null,null,null,""]
[null,null,null,null,null,null,null,""]
[null,null,null,null,null,null,null,""]
[null,null,null,null,null,null,null,""]
[null,null,null,null,null,null,null,""]
[null,null,null,null,null,null,null,""]
[null,null,null,null,null,null,null,""]
[null,null,null,null,null,null,null,""]
[null,null,null,null,null,null,null,""]
[null,null,null,null,null,null,null,""]
[null,null,null,null,null,null,null,""]
[null,null,null,null,null,null,null,""]
[null,null,null,null,null,null,null,""]
[null,null,null,null,null,null,null,""]
[null,null,null,null,null,null,null,""]
[null,null,null,null,null,null,null,""]
[null,null,null,null,null,null,null,""]
[null,null,null,null,null,null,null,""]
[null,null,null,null,null,null,null,""]
[null,null,null,null,null,null,null,""]
[null,null,null,null,null,null,null,""]
[null,null,null,null,null,null,null,""]
[null,null,null,null,null,null,null,""]
[null,null,null,null,null,null,null,""]
[null,null,null,null,null,null,null,""]
[null,null,null,null,null,null,null,""]
[null,null,null,null,null,null,null,""]
[null,null,null,null,null,null,null,""]
[null,null,null,null,null,null,null,""]
[null,null,null,null,null,null,null,""]
[null,null,null,null,null,null,null,""]
[null,null,null,null,null,null,null,""]
[null,null,null,null,null,null,null,""]
[null,null,null,null,null,null,null,""]
[null,null,null,null,null,null,null,""]
[null,null,null,null,null,null,null,""]
[null,null,null,null,null,null,null,""]
[null,null,null,null,null,null,null,""]
[null,null,null,null,null,null,null,""]
[null,null,null,null,null,null,null,""]
[null,null,null,null,null,null,null,""]
[null,null,null,null,null,null,null,""]
[null,null,null,null,null,null,null,""]
[null,null,null,null,null,null,null,""]
[null,null,null,null,null,null,null,""]
[null,null,null,null,null,null,null,{"$f":"IF(A1994<>0,SUM(H1994+C1995-D1995),\"\")","v":""}]
[null,null,null,null,null,null,null,""]
[null,null,null,null,null,null,null,""]
[null,null,null,null,null,null,null,""]
[null,null,null,null,null,null,null,""]
[null,null,null,null,null,null,null,""]

{"sheet":"اسماء الزبائن","index":5,"n_rows":10,"n_cols":1,"rows_kept":10,"cut":false,"hidden":false,"merged":[]}
["عمر"]
["خالد"]
["نبيل"]
["رامي"]
["محمد"]
["محمود"]
["رباح"]
["خليل"]
["عبود"]
["كارول"]